Organisation ,Effective date ,Directorate,Supplier name ,Payment date ,Transaction Number , Amount  ,Purpose of spend,Category Name
Leeds City Council,13/11/2017,Citizens and Communities,Barca - Leeds,05/04/16,2016170001," 5,937.32 ",Housing Grant,Supplies & Services
Leeds City Council,13/11/2017,Citizens and Communities,Barca - Leeds,19/04/16,2016170002," 5,690.00 ",Housing Grant,Supplies & Services
Leeds City Council,13/11/2017,Citizens and Communities,Barca - Leeds,05/04/16,2016170003," 4,134.78 ",Housing Grant,Supplies & Services
Leeds City Council,13/11/2017,Citizens and Communities,Christ Church Halton,21/04/16,2016170004, 210.00 ,Locality Grant,Supplies & Services
Leeds City Council,13/11/2017,Citizens and Communities,Care & Repair Leeds,21/04/16,2016170005," 2,640.00 ",Support Grant,Supplies & Services
Leeds City Council,13/11/2017,Citizens and Communities,Care & Repair Leeds,21/04/16,2016170006," 3,648.00 ",Support Grant,Supplies & Services
Leeds City Council,13/11/2017,Citizens and Communities,East Leeds Cricket And Social Club,08/04/16,2016170007," 2,000.00 ",Sports Grant,Supplies & Services
Leeds City Council,13/11/2017,Citizens and Communities,Fdm Bus,21/04/16,2016170008, 45.00 ,Neighbourhood Grant,Supplies & Services
Leeds City Council,13/11/2017,Citizens and Communities,Friends Of Cross Flatts Park,22/04/16,2016170009," 2,300.00 ",Locality Grant,Supplies & Services
Leeds City Council,13/11/2017,Citizens and Communities,Gipton Together,08/04/16,2016170010," 1,000.00 ",Housing Grant,Supplies & Services
Leeds City Council,13/11/2017,Citizens and Communities,Hunslet Festival,29/04/16,2016170011," 1,230.00 ",Locality Grant,Supplies & Services
Leeds City Council,13/11/2017,Citizens and Communities,Headingley Litfest,12/04/16,2016170012," 1,750.00 ",Arts grant,Supplies & Services
Leeds City Council,13/11/2017,Citizens and Communities,Headingley Litfest,12/04/16,2016170013," 2,000.00 ",Arts grant,Supplies & Services
Leeds City Council,13/11/2017,Citizens and Communities,Interact Church & Community Partnership,08/04/16,2016170014, 575.00 ,Locality Grant,Supplies & Services
Leeds City Council,13/11/2017,Citizens and Communities,Irish Arts Foundation,25/04/16,2016170015, 990.00 ,Arts grant,Supplies & Services
Leeds City Council,13/11/2017,Citizens and Communities,Making Space,21/04/16,2016170016," 2,500.00 ",Neighbourhood Grant,Supplies & Services
Leeds City Council,13/11/2017,Citizens and Communities,Neighbourhood Elders Team,04/04/16,2016170017," 1,243.79 ",Locality Grant,Supplies & Services
Leeds City Council,13/11/2017,Citizens and Communities,Project Hope Leeds,01/04/16,2016170018, 261.79 ,Locality Grant,Supplies & Services
Leeds City Council,13/11/2017,Citizens and Communities,St John Ambulance,04/04/16,2016170019, 34.40 ,Neighbourhood Grant,Supplies & Services
Leeds City Council,13/11/2017,Citizens and Communities,St Lukes Cares,08/04/16,2016170020," 1,120.00 ",Locality Grant,Supplies & Services
Leeds City Council,13/11/2017,Citizens and Communities,St Margarets Church (Parish Centre),22/04/16,2016170021, 60.00 ,Neighbourhood Grant,Supplies & Services
Leeds City Council,13/11/2017,Citizens and Communities,St Margarets Church (Parish Centre),07/04/16,2016170022, 60.00 ,Neighbourhood Grant,Supplies & Services
Leeds City Council,13/11/2017,Citizens and Communities,The Conservation Volunteers,11/04/16,2016170023," 3,260.00 ",Support Grant,Supplies & Services
Leeds City Council,13/11/2017,Citizens and Communities,Wcr Ltd,15/04/16,2016170024," 1,000.00 ",Children's Services Grant,Supplies & Services
Leeds City Council,13/11/2017,Citizens and Communities,West Yorkshire Playhouse,05/04/16,2016170025," 1,500.00 ",Creative Employment Grant,Supplies & Services
Leeds City Council,13/11/2017,Citizens and Communities,Woodsley Road Community Centre,25/04/16,2016170026, 96.00 ,Neighbourhood Grant,Supplies & Services
Leeds City Council,13/11/2017,Citizens and Communities,Young Minds,12/04/16,2016170027," 1,356.00 ",Neighbourhood Grant,Supplies & Services
Leeds City Council,13/11/2017,City Development,Leeds West Indian Carnival,08/04/16,2016170028," 1,000.00 ",Arts grant,Supplies & Services
Leeds City Council,13/11/2017,Environment & Housing,Barnardo Services Ltd,01/04/16,2016170029," 3,750.00 ",Homelessness Grant,Supplies & Services
Leeds City Council,13/11/2017,Environment & Housing,Groundwork Leeds,14/04/16,2016170030," 9,839.75 ",Support Grant,Supplies & Services
Leeds City Council,13/11/2017,Environment & Housing,Groundwork Leeds,22/04/16,2016170031," 13,600.00 ",Support Grant,Supplies & Services
Leeds City Council,13/11/2017,Strategic Landlord,Gipton Supported Independent Living Ltd,06/04/16,2016170032," 18,000.00 ",Housing Grant,Supplies & Services
Leeds City Council,13/11/2017,Strategic Landlord,Hunslet Methodist Church,01/04/16,2016170033," 10,000.00 ",Neighbourhood Grant,Supplies & Services
Leeds City Council,13/11/2017,Strategic Landlord,Little London Tara,12/04/16,2016170034, 450.00 ,Housing Grant,Supplies & Services
Leeds City Council,13/11/2017,Strategic Landlord,Middleton Minstrels,01/04/16,2016170035," 1,500.00 ",Housing Grant,Supplies & Services
Leeds City Council,13/11/2017,Strategic Landlord,The West Yorkshire Crc Ltd,08/04/16,2016170036," 21,964.49 ",Housing Grant,Supplies & Services
Leeds City Council,13/11/2017,Adult Social Care,Leeds Involving People,01/04/16,2016170037," 11,666.25 ",Adult Social Care Grant,Supplies & Services
Leeds City Council,13/11/2017,Adult Social Care,William Merritt Centre,01/04/16,2016170038," 8,131.00 ",Adult Social Care Grant,Supplies & Services
Leeds City Council,13/11/2017,Childrens Services,Path Yorkshire,22/04/16,2016170039," 10,000.00 ",Miscode - Not a grant ; Commissioned service,Supplies & Services
Leeds City Council,13/11/2017,Citizens and Communities,Beeston Community Forum,20/04/16,2016170040, 500.00 ,Support Grant,Supplies & Services
Leeds City Council,13/11/2017,Citizens and Communities,Irish Arts Foundation,21/04/16,2016170041," 2,250.00 ",Arts grant,Supplies & Services
Leeds City Council,13/11/2017,Citizens and Communities,Leeds Citizens Advice Bureau,25/04/16,2016170042," 401,254.00 ",Advisory Grant,Supplies & Services
Leeds City Council,13/11/2017,Citizens and Communities,Playful Anywhere Cic,20/04/16,2016170043," 2,000.00 ",Arts grant,Supplies & Services
Leeds City Council,13/11/2017,Citizens and Communities,Prince Philip Centre Phab Club,14/04/16,2016170044, 114.41 ,Neighbourhood Grant,Supplies & Services
Leeds City Council,13/11/2017,Citizens and Communities,Wise,19/04/16,2016170045," 3,600.00 ",Locality Grant,Supplies & Services
Leeds City Council,13/11/2017,City Development,Artlink West Yorkshire,08/04/16,2016170046," 8,208.00 ",Arts grant,Supplies & Services
Leeds City Council,13/11/2017,City Development,Alchemy Anew,08/04/16,2016170047," 1,900.00 ",Arts grant,Supplies & Services
Leeds City Council,13/11/2017,City Development,Arts @ Trinity Ltd,08/04/16,2016170048," 1,900.00 ",Arts grant,Supplies & Services
Leeds City Council,13/11/2017,City Development,Courthouse Project (Otley) Ltd,08/04/16,2016170049," 4,180.00 ",Arts grant,Supplies & Services
Leeds City Council,13/11/2017,City Development,Heads Together Productions Ltd,08/04/16,2016170050," 7,695.00 ",Arts grant,Supplies & Services
Leeds City Council,13/11/2017,City Development,Interplay Theatre Trust,08/04/16,2016170051," 10,901.25 ",Arts grant,Supplies & Services
Leeds City Council,13/11/2017,City Development,Kirkstall Festival,08/04/16,2016170052," 1,900.00 ",Arts grant,Supplies & Services
Leeds City Council,13/11/2017,City Development,Lifeforce Productions,07/04/16,2016170053," 3,800.00 ",Arts grant,Supplies & Services
Leeds City Council,13/11/2017,City Development,Lumen Arts,08/04/16,2016170054," 3,230.00 ",Arts grant,Supplies & Services
Leeds City Council,13/11/2017,City Development,Leeds Chinese Community Association Ltd,25/04/16,2016170055," 1,900.00 ",Arts grant,Supplies & Services
Leeds City Council,13/11/2017,City Development,Left Bank Leeds,08/04/16,2016170056," 1,900.00 ",Arts grant,Supplies & Services
Leeds City Council,13/11/2017,City Development,Musical Arc,25/04/16,2016170057," 2,280.00 ",Arts grant,Supplies & Services
Leeds City Council,13/11/2017,City Development,Northern School Of Contemporary,08/04/16,2016170058," 6,156.00 ",Arts grant,Supplies & Services
Leeds City Council,13/11/2017,City Development,Northern Ballet Theatre Limited,08/04/16,2016170059," 190,665.00 ",Arts grant,Supplies & Services
Leeds City Council,13/11/2017,City Development,Opera North Ltd,27/04/16,2016170060," 436,050.00 ",Arts grant,Supplies & Services
Leeds City Council,13/11/2017,City Development,Rjc Productions Ltd,25/04/16,2016170061," 10,687.50 ",Arts grant,Supplies & Services
Leeds City Council,13/11/2017,City Development,South Asian Arts-Uk,25/04/16,2016170062," 14,107.50 ",Arts grant,Supplies & Services
Leeds City Council,13/11/2017,City Development,Space2 Leeds,08/04/16,2016170063," 3,040.00 ",Arts grant,Supplies & Services
Leeds City Council,13/11/2017,City Development,Temple Works ,27/04/16,2016170064," 2,750.00 ",Arts grant,Supplies & Services
Leeds City Council,13/11/2017,City Development,Tutti Frutti Productions,08/04/16,2016170065," 1,900.00 ",Arts grant,Supplies & Services
Leeds City Council,13/11/2017,City Development,Unlimited Theatre,08/04/16,2016170066," 1,900.00 ",Arts grant,Supplies & Services
Leeds City Council,13/11/2017,City Development,West Yorkshire Playhouse,27/04/16,2016170067," 538,650.00 ",Arts grant,Supplies & Services
Leeds City Council,13/11/2017,City Development,Youth Theatres Leeds,25/04/16,2016170068," 1,900.00 ",Arts grant,Supplies & Services
Social Services Pooled Budgets,13/11/2017,Jcs For People With Learning Disabilitie,Leeds People First,28/04/16,2016170069," 2,177.75 ",Social Services Pooled Budget grant,Supplies & Services
Leeds City Council,13/11/2017,Strategic Landlord,Archway,28/04/16,2016170070," 2,725.00 ",Housing Grant,Supplies & Services
Leeds City Council,13/11/2017,Strategic Landlord,Cranmer Call Tenants And Residents,26/04/16,2016170071, 350.00 ,Locality Grant,Supplies & Services
Leeds City Council,13/11/2017,Strategic Landlord,Community Unity,28/04/16,2016170072," 2,000.00 ",Housing Grant,Supplies & Services
Leeds City Council,13/11/2017,Strategic Landlord,Cornerstone Youth Club,28/04/16,2016170073," 1,180.00 ",Housing Grant,Supplies & Services
Leeds City Council,13/11/2017,Strategic Landlord,Moorhaven Tenants Association,26/04/16,2016170074, 100.00 ,Housing Grant,Supplies & Services
Leeds City Council,13/11/2017,Strategic Landlord,Morley Town Centre Management Board,19/04/16,2016170075," 1,000.00 ",Neighbourhood Grant,Supplies & Services
Leeds City Council,13/11/2017,Strategic Landlord,New Wortley Community Association,28/04/16,2016170076," 2,000.00 ",Housing Grant,Supplies & Services
Leeds City Council,13/11/2017,Strategic Landlord,St.Agnes United Church Hall,29/04/16,2016170077," 1,985.00 ",Housing Grant,Supplies & Services
Leeds City Council,13/11/2017,Strategic Landlord,Zest Health For Life,29/04/16,2016170078, 750.00 ,Neighbourhood Grant,Supplies & Services
Leeds City Council,13/11/2017,Citizens and Communities,Health For All (Leeds) Ltd,03/05/16,2016170079," 1,000.00 ",Housing Grant,Supplies & Services
Leeds City Council,13/11/2017,Citizens and Communities,Morley Elderly Action,04/05/16,2016170080," 8,250.00 ",Neighbourhood Grant,Supplies & Services
Leeds City Council,13/11/2017,Citizens and Communities,Older Peoples Action In The Locality,05/05/16,2016170081," 7,500.00 ",Housing Grant,Supplies & Services
Leeds City Council,13/11/2017,Citizens and Communities,Older Peoples Action In The Locality,05/05/16,2016170082," 7,500.00 ",Housing Grant,Supplies & Services
Leeds City Council,13/11/2017,Adult Social Care,Leeds Community Foundation,18/05/16,2016170083," 184,991.38 ",Luncheon Club Grant,Supplies & Services
Leeds City Council,13/11/2017,Citizens and Communities,Altogether Armley,11/05/16,2016170084, 438.28 ,Locality Grant,Supplies & Services
Leeds City Council,13/11/2017,Citizens and Communities,Armley Juniors Project For Young People,12/05/16,2016170085," 2,071.50 ",Neighbourhood Grant,Supplies & Services
Leeds City Council,13/11/2017,Citizens and Communities,Barca - Leeds,27/05/16,2016170086," 3,802.72 ",Housing Grant,Supplies & Services
Leeds City Council,13/11/2017,Citizens and Communities,Beeston In Bloom,12/05/16,2016170087," 1,000.00 ",Locality Grant,Supplies & Services
Leeds City Council,13/11/2017,Citizens and Communities,Behind Closed Doors (Bcd),24/05/16,2016170088, 400.00 ,Locality Grant,Supplies & Services
Leeds City Council,13/11/2017,Citizens and Communities,Caring Together In Woodhouse And Little,16/05/16,2016170089," 1,657.56 ",Locality Grant,Supplies & Services
Leeds City Council,13/11/2017,Citizens and Communities,Farsley Community Initiative,18/05/16,2016170090," 2,100.00 ",Neighbourhood Grant,Supplies & Services
Leeds City Council,13/11/2017,Citizens and Communities,Guiseley Senior Citizens Association,27/05/16,2016170091, 700.00 ,Neighbourhood Grant,Supplies & Services
Leeds City Council,13/11/2017,Citizens and Communities,Guiseley Community Foundation,17/05/16,2016170092," 2,160.00 ",Sports Grant,Supplies & Services
Leeds City Council,13/11/2017,Citizens and Communities,Headingley Litfest,17/05/16,2016170093, 999.93 ,Arts grant,Supplies & Services
Leeds City Council,13/11/2017,Citizens and Communities,Moor Allerton Elderly Care,24/05/16,2016170094, 650.00 ,Housing Grant,Supplies & Services
Leeds City Council,13/11/2017,Citizens and Communities,Moor Allerton Elderly Care,25/05/16,2016170095," 2,750.00 ",Housing Grant,Supplies & Services
Leeds City Council,13/11/2017,Citizens and Communities,Morley Literature Festival,05/05/16,2016170096," 10,000.00 ",Arts grant,Supplies & Services
Leeds City Council,13/11/2017,Citizens and Communities,Owls,25/05/16,2016170097, 500.00 ,Neighbourhood Grant,Supplies & Services
Leeds City Council,13/11/2017,Citizens and Communities,Owls,13/05/16,2016170098, 500.00 ,Neighbourhood Grant,Supplies & Services
Leeds City Council,13/11/2017,Citizens and Communities,Prince Philip Centre Phab Club,03/05/16,2016170099, 171.61 ,Neighbourhood Grant,Supplies & Services
Leeds City Council,13/11/2017,Citizens and Communities,Prince Philip Centre Phab Club,11/05/16,2016170100, 286.02 ,Neighbourhood Grant,Supplies & Services
Leeds City Council,13/11/2017,Citizens and Communities,Prince Philip Centre Phab Club,11/05/16,2016170101, 371.82 ,Neighbourhood Grant,Supplies & Services
Leeds City Council,13/11/2017,Citizens and Communities,Prince Philip Centre Phab Club,23/05/16,2016170102, 543.43 ,Neighbourhood Grant,Supplies & Services
Leeds City Council,13/11/2017,Citizens and Communities,Prince Philip Centre Phab Club,03/05/16,2016170103, 85.81 ,Neighbourhood Grant,Supplies & Services
Leeds City Council,13/11/2017,Citizens and Communities,Prince Philip Centre Phab Club,11/05/16,2016170104, 257.42 ,Neighbourhood Grant,Supplies & Services
Leeds City Council,13/11/2017,Citizens and Communities,South Leeds Live At Home Scheme,20/05/16,2016170105," 1,000.00 ",Locality Grant,Supplies & Services
Leeds City Council,13/11/2017,Citizens and Communities,St Georges Crypt,20/05/16,2016170106, 500.00 ,Neighbourhood Grant,Supplies & Services
Leeds City Council,13/11/2017,Citizens and Communities,Shadwell Independent Library And Arts Ce,04/05/16,2016170107," 1,188.00 ",Locality Grant,Supplies & Services
Leeds City Council,13/11/2017,Citizens and Communities,St Marys The Blessed Virgin Hawksworth,13/05/16,2016170108," 1,250.00 ",Neighbourhood Grant,Supplies & Services
Leeds City Council,13/11/2017,Citizens and Communities,St Peters Luncheon Club,23/05/16,2016170109, 865.65 ,Luncheon Club Grant,Supplies & Services
Leeds City Council,13/11/2017,Citizens and Communities,St Stephens Well Community Garden,11/05/16,2016170110, 500.00 ,Neighbourhood Grant,Supplies & Services
Leeds City Council,13/11/2017,Citizens and Communities,The Cardigan Centre,11/05/16,2016170111, 553.50 ,Housing Grant,Supplies & Services
Leeds City Council,13/11/2017,Citizens and Communities,The Cardigan Centre,20/05/16,2016170112, 844.80 ,Housing Grant,Supplies & Services
Leeds City Council,13/11/2017,Citizens and Communities,The Works Skatepark Charity,06/05/16,2016170113," 3,000.00 ",Children's Services Grant,Supplies & Services
Leeds City Council,13/11/2017,Citizens and Communities,Voluntary Action-Leeds,05/05/16,2016170114," 74,411.00 ",Children's Services Grant,Supplies & Services
Leeds City Council,13/11/2017,Citizens and Communities,Yeadon Carnival,11/05/16,2016170115, 500.00 ,Locality Grant,Supplies & Services
Leeds City Council,13/11/2017,City Development,Artlink West Yorkshire,27/05/16,2016170116, 912.00 ,Arts grant,Supplies & Services
Leeds City Council,13/11/2017,City Development,Black Health Initiative,19/05/16,2016170117," 38,025.00 ",Arts grant,Supplies & Services
Leeds City Council,13/11/2017,City Development,East Street Arts,19/05/16,2016170118," 25,650.00 ",Arts grant,Supplies & Services
Leeds City Council,13/11/2017,City Development,Garforth Brass,05/05/16,2016170119, 450.00 ,Leeds Inspired Grant,Supplies & Services
Leeds City Council,13/11/2017,City Development,Leeds Mencap Ltd,13/05/16,2016170120," 1,900.00 ",Arts grant,Supplies & Services
Leeds City Council,13/11/2017,City Development,Leeds Pride,20/05/16,2016170121," 15,000.00 ",Leeds Inspired Grant,Supplies & Services
Leeds City Council,13/11/2017,City Development,Northern School Of Contemporary,27/05/16,2016170122, 684.00 ,Arts grant,Supplies & Services
Leeds City Council,13/11/2017,City Development,Northern Ballet Theatre Limited,27/05/16,2016170123," 21,185.00 ",Arts grant,Supplies & Services
Leeds City Council,13/11/2017,City Development,Opera North Ltd,27/05/16,2016170124," 48,450.00 ",Arts grant,Supplies & Services
Leeds City Council,13/11/2017,City Development,Rjc Productions Ltd,05/05/16,2016170125," 1,000.00 ",Leeds Inspired Grant,Supplies & Services
Leeds City Council,13/11/2017,City Development,South Asian Arts-Uk,27/05/16,2016170126," 1,567.50 ",Arts grant,Supplies & Services
Leeds City Council,13/11/2017,City Development,Yorkshire Dance Centre Trust Co Ltd,19/05/16,2016170127," 44,460.00 ",Adult Social Care Grant,Supplies & Services
Leeds City Council,13/11/2017,Strategic Accounts,Aireborough Civic Society,16/05/16,2016170128, 400.00 ,Locality Grant,Supplies & Services
Leeds City Council,13/11/2017,Strategic Accounts,Arts @ Trinity Ltd,23/05/16,2016170129, 50.00 ,Arts grant,Supplies & Services
Leeds City Council,13/11/2017,Strategic Accounts,Bots N Tots,19/05/16,2016170130, 570.00 ,Locality Grant,Supplies & Services
Leeds City Council,13/11/2017,Strategic Accounts,Bramley Eldery Action - Bramley Lawn,23/05/16,2016170131, 300.00 ,Locality Grant,Supplies & Services
Leeds City Council,13/11/2017,Strategic Accounts,Friends Of Stanningley Primary School,31/05/16,2016170132, 500.00 ,Locality Grant,Supplies & Services
Leeds City Council,13/11/2017,Strategic Accounts,Guiseley Methodist Church,16/05/16,2016170133, 37.00 ,Locality Grant,Supplies & Services
Leeds City Council,13/11/2017,Strategic Accounts,Garforth Allotment Association,19/05/16,2016170134, 100.00 ,Locality Grant,Supplies & Services
Leeds City Council,13/11/2017,Strategic Accounts,Garforth Net,16/05/16,2016170135, 300.00 ,Housing Grant,Supplies & Services
Leeds City Council,13/11/2017,Strategic Accounts,Garforth Rangers Afc,19/05/16,2016170136, 300.00 ,Locality Grant,Supplies & Services
Leeds City Council,13/11/2017,Strategic Accounts,Glenthorpe & Walford Community Group,31/05/16,2016170137, 300.00 ,Housing Grant,Supplies & Services
Leeds City Council,13/11/2017,Strategic Accounts,Great And Little Preston In Bloom,16/05/16,2016170138, 100.00 ,Locality Grant,Supplies & Services
Leeds City Council,13/11/2017,Strategic Accounts,Guiseley Primary School Fund,31/05/16,2016170139, 400.00 ,Locality Grant,Supplies & Services
Leeds City Council,13/11/2017,Strategic Accounts,Gulf War Veterans Support,16/05/16,2016170140, 200.00 ,Locality Grant,Supplies & Services
Leeds City Council,13/11/2017,Strategic Accounts,Headingley Network,23/05/16,2016170141, 15.00 ,Locality Grant,Supplies & Services
Leeds City Council,13/11/2017,Strategic Accounts,Hilltop Good Companions,31/05/16,2016170142, 200.00 ,Locality Grant,Supplies & Services
Leeds City Council,13/11/2017,Strategic Accounts,Holbeck Food Bank,16/05/16,2016170143, 300.00 ,Locality Grant,Supplies & Services
Leeds City Council,13/11/2017,Strategic Accounts,Holbeck Neighbourhood Forum,31/05/16,2016170144, 100.00 ,Locality Grant,Supplies & Services
Leeds City Council,13/11/2017,Strategic Accounts,Islamic Centre Leeds,31/05/16,2016170145, 90.00 ,Locality Grant,Supplies & Services
Leeds City Council,13/11/2017,Strategic Accounts,Leeds & District Audio Visual Group,23/05/16,2016170146, 100.00 ,Locality Grant,Supplies & Services
Leeds City Council,13/11/2017,Strategic Accounts,Ls14 Trust,12/05/16,2016170147, 500.00 ,Housing Grant,Supplies & Services
Leeds City Council,13/11/2017,Strategic Accounts,Leeds Christian Community Trust,31/05/16,2016170148," 1,000.00 ",Locality Grant,Supplies & Services
Leeds City Council,13/11/2017,Strategic Accounts,Leeds Kabaddi Club,31/05/16,2016170149, 300.00 ,Neighbourhood Grant,Supplies & Services
Leeds City Council,13/11/2017,Strategic Accounts,Leeds Mencap Ltd,31/05/16,2016170150," 1,000.00 ",Children's Services Grant,Supplies & Services
Leeds City Council,13/11/2017,Strategic Accounts,Midland House Social Club,16/05/16,2016170151, 150.00 ,Locality Grant,Supplies & Services
Leeds City Council,13/11/2017,Strategic Accounts,New Wortley Community Association,16/05/16,2016170152, 500.00 ,Housing Grant,Supplies & Services
Leeds City Council,13/11/2017,Strategic Accounts,Rothwell & District Rotary Club,31/05/16,2016170153, 250.00 ,Locality Grant,Supplies & Services
Leeds City Council,13/11/2017,Strategic Accounts,Slaid Hill In Bloom,23/05/16,2016170154, 300.00 ,Neighbourhood Grant,Supplies & Services
Leeds City Council,13/11/2017,Strategic Accounts,St Lukes Cares,16/05/16,2016170155, 100.00 ,Locality Grant,Supplies & Services
Leeds City Council,13/11/2017,Strategic Accounts,Sam Dam Asian Womens Group,23/05/16,2016170156, 200.00 ,Locality Grant,Supplies & Services
Leeds City Council,13/11/2017,Strategic Accounts,Swillington Recreational Group For Older,19/05/16,2016170157, 100.00 ,Locality Grant,Supplies & Services
Leeds City Council,13/11/2017,Strategic Accounts,The Sandringham Tenants And Residents,31/05/16,2016170158, 100.00 ,Housing Grant,Supplies & Services
Leeds City Council,13/11/2017,Strategic Accounts,Think Like A Pony Cic,16/05/16,2016170159, 160.00 ,Locality Grant,Supplies & Services
Leeds City Council,13/11/2017,Strategic Accounts,Trustees Of Wetherby Town Hall,31/05/16,2016170160, 350.00 ,Locality Grant,Supplies & Services
Leeds City Council,13/11/2017,Strategic Accounts,Westbourne Gardens Community Games,16/05/16,2016170161, 100.00 ,Locality Grant,Supplies & Services
Leeds City Council,13/11/2017,Strategic Accounts,Whitehouse Farm Allotments Association,31/05/16,2016170162, 450.00 ,Locality Grant,Supplies & Services
Leeds City Council,13/11/2017,Strategic Accounts,Woodlesford In Bloom,23/05/16,2016170163, 200.00 ,Locality Grant,Supplies & Services
Leeds City Council,13/11/2017,Strategic Landlord,Beeston Festival,17/05/16,2016170164, 50.00 ,Neighbourhood Grant,Supplies & Services
Leeds City Council,13/11/2017,Strategic Landlord,Burnsall Court Tenants Group,23/05/16,2016170165, 100.00 ,Housing Grant,Supplies & Services
Leeds City Council,13/11/2017,Strategic Landlord,Gipton Together,03/05/16,2016170166," 2,000.00 ",Housing Grant,Supplies & Services
Leeds City Council,13/11/2017,Strategic Landlord,Groundwork Leeds,17/05/16,2016170167," 25,000.00 ",Support Grant,Supplies & Services
Leeds City Council,13/11/2017,Strategic Landlord,Garforth Net,27/05/16,2016170168, 591.76 ,Housing Grant,Supplies & Services
Leeds City Council,13/11/2017,Strategic Landlord,Halliday Road Tara,10/05/16,2016170169, 250.00 ,Housing Grant,Supplies & Services
Leeds City Council,13/11/2017,Strategic Landlord,Health For All (Leeds) Ltd,12/05/16,2016170170," 3,400.00 ",Housing Grant,Supplies & Services
Leeds City Council,13/11/2017,Strategic Landlord,Moor Allerton Elderly Care,09/05/16,2016170171," 3,588.00 ",Housing Grant,Supplies & Services
Leeds City Council,13/11/2017,Strategic Landlord,Morley Elderly Action,11/05/16,2016170172," 5,000.00 ",Neighbourhood Grant,Supplies & Services
Leeds City Council,13/11/2017,Strategic Landlord,Queensview Residents Association,03/05/16,2016170173, 200.00 ,Housing Grant,Supplies & Services
Leeds City Council,13/11/2017,Strategic Landlord,Seacroft Gala,03/05/16,2016170174," 1,870.00 ",Housing Grant,Supplies & Services
Leeds City Council,13/11/2017,Strategic Landlord,Seacroft Green Residents Association,03/05/16,2016170175," 1,005.00 ",Housing Grant,Supplies & Services
Leeds City Council,13/11/2017,Childrens Services,Leeds Foster Carers Assocation,08/06/16,2016170176," 4,000.00 ",Children's Services Grant,Supplies & Services
Leeds City Council,13/11/2017,Citizens and Communities,1st Micklefield Scout Group,02/06/16,2016170177, 500.00 ,Locality Grant,Supplies & Services
Leeds City Council,13/11/2017,Citizens and Communities,Altogether Armley,23/06/16,2016170178," 1,000.00 ",Locality Grant,Supplies & Services
Leeds City Council,13/11/2017,Citizens and Communities,Armley Juniors Project For Young People,21/06/16,2016170179," 2,071.50 ",Neighbourhood Grant,Supplies & Services
Leeds City Council,13/11/2017,Citizens and Communities,Barca - Leeds,01/06/16,2016170180," 1,968.18 ",Housing Grant,Supplies & Services
Leeds City Council,13/11/2017,Citizens and Communities,Barca - Leeds,24/06/16,2016170181," 1,870.54 ",Housing Grant,Supplies & Services
Leeds City Council,13/11/2017,Citizens and Communities,Barca - Leeds,29/06/16,2016170182, 273.44 ,Housing Grant,Supplies & Services
Leeds City Council,13/11/2017,Citizens and Communities,Barwick In Elmet And Scholes,09/06/16,2016170183, 500.00 ,Locality Grant,Supplies & Services
Leeds City Council,13/11/2017,Citizens and Communities,Beeston Festival,16/06/16,2016170184, 30.00 ,Neighbourhood Grant,Supplies & Services
Leeds City Council,13/11/2017,Citizens and Communities,Denshaws Newlands And Rydals Residents,23/06/16,2016170185, 495.00 ,Locality Grant,Supplies & Services
Leeds City Council,13/11/2017,Citizens and Communities,Getaway Girls,08/06/16,2016170186," 9,846.31 ",Housing Grant,Supplies & Services
Leeds City Council,13/11/2017,Citizens and Communities,Hunslet Festival,16/06/16,2016170187, 10.00 ,Locality Grant,Supplies & Services
Leeds City Council,13/11/2017,Citizens and Communities,Hyde Park Unity Day,13/06/16,2016170188," 5,000.00 ",Arts grant,Supplies & Services
Leeds City Council,13/11/2017,Citizens and Communities,Holbeck Gala,16/06/16,2016170189, 28.00 ,Neighbourhood Grant,Supplies & Services
Leeds City Council,13/11/2017,Citizens and Communities,Irish Arts Foundation,09/06/16,2016170190, 431.13 ,Arts grant,Supplies & Services
Leeds City Council,13/11/2017,Citizens and Communities,Irish Arts Foundation,09/06/16,2016170191," 2,500.00 ",Arts grant,Supplies & Services
Leeds City Council,13/11/2017,Citizens and Communities,Kvca,01/06/16,2016170192," 1,500.00 ",Locality Grant,Supplies & Services
Leeds City Council,13/11/2017,Citizens and Communities,Kidz & Co,02/06/16,2016170193, 500.00 ,Neighbourhood Grant,Supplies & Services
Leeds City Council,13/11/2017,Citizens and Communities,Kidz & Co,02/06/16,2016170194, 500.00 ,Neighbourhood Grant,Supplies & Services
Leeds City Council,13/11/2017,Citizens and Communities,Kirkstall Neighbourhood Forum,24/06/16,2016170195, 500.00 ,Locality Grant,Supplies & Services
Leeds City Council,13/11/2017,Citizens and Communities,Meanwood Community Centre No 2 Account,09/06/16,2016170196, 620.00 ,Children's Services Grant,Supplies & Services
Leeds City Council,13/11/2017,Citizens and Communities,Meanwood Junior Playscheme,08/06/16,2016170197, 690.00 ,Housing Grant,Supplies & Services
Leeds City Council,13/11/2017,Citizens and Communities,Meanwood Village Association,15/06/16,2016170198, 800.00 ,Locality Grant,Supplies & Services
Leeds City Council,13/11/2017,Citizens and Communities,Morley Town Centre Management Board,10/06/16,2016170199," 3,067.60 ",Neighbourhood Grant,Supplies & Services
Leeds City Council,13/11/2017,Citizens and Communities,New Wortley Community Association,10/06/16,2016170200," 2,500.00 ",Housing Grant,Supplies & Services
Leeds City Council,13/11/2017,Citizens and Communities,New Wortley Community Association,16/06/16,2016170201, 670.00 ,Housing Grant,Supplies & Services
Leeds City Council,13/11/2017,Citizens and Communities,Nigeria Community Leeds (Ncl),29/06/16,2016170202, 500.00 ,Sports Grant,Supplies & Services
Leeds City Council,13/11/2017,Citizens and Communities,Prince Philip Centre Phab Club,24/06/16,2016170203, 85.80 ,Neighbourhood Grant,Supplies & Services
Leeds City Council,13/11/2017,Citizens and Communities,Right Choices,28/06/16,2016170204," 5,499.96 ",Neighbourhood Grant,Supplies & Services
Leeds City Council,13/11/2017,Citizens and Communities,Rjc Productions Ltd,03/06/16,2016170205," 4,317.29 ",Arts grant,Supplies & Services
Leeds City Council,13/11/2017,Citizens and Communities,Rjc Productions Ltd,15/06/16,2016170206," 1,122.35 ",Arts grant,Supplies & Services
Leeds City Council,13/11/2017,Citizens and Communities,Rothwell Competitive Music Festival,16/06/16,2016170207," 2,000.00 ",Locality Grant,Supplies & Services
Leeds City Council,13/11/2017,Citizens and Communities,Russian Speakers Group For Children,09/06/16,2016170208, 500.00 ,Neighbourhood Grant,Supplies & Services
Leeds City Council,13/11/2017,Citizens and Communities,Step,15/06/16,2016170209, 226.12 ,Neighbourhood Grant,Supplies & Services
Leeds City Council,13/11/2017,Citizens and Communities,Street Work Soccer Academy Ltd,03/06/16,2016170210," 4,900.00 ",Housing Grant,Supplies & Services
Leeds City Council,13/11/2017,Citizens and Communities,The Cardigan Centre,10/06/16,2016170211, 500.00 ,Housing Grant,Supplies & Services
Leeds City Council,13/11/2017,Citizens and Communities,The New Wortley Community Association,24/06/16,2016170212, 500.00 ,Locality Grant,Supplies & Services
Leeds City Council,13/11/2017,Citizens and Communities,Wycas,23/06/16,2016170213," 10,112.75 ",Infrastructure Support Grant,Supplies & Services
Leeds City Council,13/11/2017,Citizens and Communities,Zest Health For Life,29/06/16,2016170214, 468.00 ,Neighbourhood Grant,Supplies & Services
Leeds City Council,13/11/2017,Citizens and Communities,Zest Health For Life,03/06/16,2016170215," 1,515.90 ",Neighbourhood Grant,Supplies & Services
Leeds City Council,13/11/2017,City Development,Chapel Allerton Festival,28/06/16,2016170216, 975.00 ,Leeds Inspired Grant,Supplies & Services
Leeds City Council,13/11/2017,City Development,Dazl,10/06/16,2016170217," 5,771.50 ",Arts grant,Supplies & Services
Leeds City Council,13/11/2017,City Development,East Street Arts,10/06/16,2016170218," 1,000.00 ",Leeds Inspired Grant,Supplies & Services
Leeds City Council,13/11/2017,City Development,Irish Arts Foundation,10/06/16,2016170219," 2,850.00 ",Arts grant,Supplies & Services
Leeds City Council,13/11/2017,City Development,Leeds West Indian Carnival,16/06/16,2016170220," 43,875.00 ",Arts grant,Supplies & Services
Leeds City Council,13/11/2017,City Development,Little London Arts,16/06/16,2016170221," 3,040.00 ",Arts grant,Supplies & Services
Leeds City Council,13/11/2017,City Development,Leeds Childrens Circus,10/06/16,2016170222," 1,900.00 ",Arts grant,Supplies & Services
Leeds City Council,13/11/2017,City Development,Morley Literature Festival,28/06/16,2016170223, 900.00 ,Leeds Inspired Grant,Supplies & Services
Leeds City Council,13/11/2017,City Development,Phoenix Dance Theatre,10/06/16,2016170224," 61,750.00 ",Arts grant,Supplies & Services
Leeds City Council,13/11/2017,City Development,Rjc Productions Ltd,16/06/16,2016170225," 1,187.50 ",Arts grant,Supplies & Services
Leeds City Council,13/11/2017,City Development,Sunshire And Smiles,28/06/16,2016170226," 1,000.00 ",Leeds Inspired Grant,Supplies & Services
Leeds City Council,13/11/2017,City Development,Theatre Company Blah Blah Blah,10/06/16,2016170227," 6,840.00 ",Arts grant,Supplies & Services
Leeds City Council,13/11/2017,Environment & Housing,Care & Repair Leeds,15/06/16,2016170228," 5,000.00 ",Support Grant,Supplies & Services
Leeds City Council,13/11/2017,Environment & Housing,Leeds & Moortown Furniture Store,14/06/16,2016170229," 18,000.00 ",Homelessness Grant,Supplies & Services
Leeds City Council,13/11/2017,Environment & Housing,Leeds & Moortown Furniture Store,14/06/16,2016170230," 1,995.00 ",Homelessness Grant,Supplies & Services
Leeds City Council,13/11/2017,Environment & Housing,Meanwood Valley Urban Farm Ltd,16/06/16,2016170231," 49,600.00 ",Support Grant,Supplies & Services
Leeds City Council,13/11/2017,Environment & Housing,St Judes Furniture Store,15/06/16,2016170232," 18,000.00 ",Homelessness Grant,Supplies & Services
Leeds City Council,13/11/2017,Environment & Housing,The Conservation Volunteers,16/06/16,2016170233," 4,116.00 ",Support Grant,Supplies & Services
Leeds City Council,13/11/2017,Environment & Housing,The Conservation Volunteers,16/06/16,2016170234," 4,100.00 ",Support Grant,Supplies & Services
Leeds City Council,13/11/2017,Strategic Accounts,168(City Of Leeds)Sqd,27/06/16,2016170235, 210.00 ,Locality Grant,Supplies & Services
Leeds City Council,13/11/2017,Strategic Accounts,Armley Junk-Tion,20/06/16,2016170236, 200.00 ,Housing Grant,Supplies & Services
Leeds City Council,13/11/2017,Strategic Accounts,Arts @ Trinity Ltd,29/06/16,2016170237, 100.00 ,Arts grant,Supplies & Services
Leeds City Council,13/11/2017,Strategic Accounts,Better Leeds Communities,06/06/16,2016170238, 150.00 ,Housing Grant,Supplies & Services
Leeds City Council,13/11/2017,Strategic Accounts,Caring Together In Woodhouse And Little,06/06/16,2016170239, 100.00 ,Locality Grant,Supplies & Services
Leeds City Council,13/11/2017,Strategic Accounts,Community Action Little London & Servias,27/06/16,2016170240," 1,000.00 ",Locality Grant,Supplies & Services
Leeds City Council,13/11/2017,Strategic Accounts,Courthouse Project (Otley) Ltd,27/06/16,2016170241, 300.00 ,Locality Grant,Supplies & Services
Leeds City Council,13/11/2017,Strategic Accounts,Cafe Leep,16/06/16,2016170242, 500.00 ,Locality Grant,Supplies & Services
Leeds City Council,13/11/2017,Strategic Accounts,Calverley Project 2000,13/06/16,2016170243, 750.00 ,Locality Grant,Supplies & Services
Leeds City Council,13/11/2017,Strategic Accounts,Crossgates & Whinmoor Youth Provision,27/06/16,2016170244, 325.00 ,Locality Grant,Supplies & Services
Leeds City Council,13/11/2017,Strategic Accounts,Eastleigh Senior Citizens Group,13/06/16,2016170245, 345.00 ,Housing Grant,Supplies & Services
Leeds City Council,13/11/2017,Strategic Accounts,Friends Of Middleton Park,13/06/16,2016170246, 80.00 ,Children's Services Grant,Supplies & Services
Leeds City Council,13/11/2017,Strategic Accounts,Friends Of Wigton Moor Woods,06/06/16,2016170247, 360.00 ,Locality Grant,Supplies & Services
Leeds City Council,13/11/2017,Strategic Accounts,Friends Of Dartmouth Park,06/06/16,2016170248, 250.00 ,Locality Grant,Supplies & Services
Leeds City Council,13/11/2017,Strategic Accounts,Garforth In Bloom,13/06/16,2016170249, 100.00 ,Neighbourhood Grant,Supplies & Services
Leeds City Council,13/11/2017,Strategic Accounts,Gca Art Group,13/06/16,2016170250, 100.00 ,Locality Grant,Supplies & Services
Leeds City Council,13/11/2017,Strategic Accounts,Garforth Historical Society,13/06/16,2016170251, 100.00 ,Neighbourhood Grant,Supplies & Services
Leeds City Council,13/11/2017,Strategic Accounts,Hunslet Festival,06/06/16,2016170252, 235.00 ,Locality Grant,Supplies & Services
Leeds City Council,13/11/2017,Strategic Accounts,Hyde Park Source,20/06/16,2016170253, 100.00 ,Housing Grant,Supplies & Services
Leeds City Council,13/11/2017,Strategic Accounts,Haleysfield Allotment Association,13/06/16,2016170254, 500.00 ,Locality Grant,Supplies & Services
Leeds City Council,13/11/2017,Strategic Accounts,Halliday Court Social Fund,13/06/16,2016170255, 200.00 ,Locality Grant,Supplies & Services
Leeds City Council,13/11/2017,Strategic Accounts,Headingley Festival,06/06/16,2016170256, 50.00 ,Locality Grant,Supplies & Services
Leeds City Council,13/11/2017,Strategic Accounts,Headingley Veterans Social Fund,27/06/16,2016170257, 100.00 ,Locality Grant,Supplies & Services
Leeds City Council,13/11/2017,Strategic Accounts,Leeds & Moortown Furniture Store,13/06/16,2016170258, 200.00 ,Homelessness Grant,Supplies & Services
Leeds City Council,13/11/2017,Strategic Accounts,Leeds Baton Rouge Majorettes,06/06/16,2016170259, 300.00 ,Neighbourhood Grant,Supplies & Services
Leeds City Council,13/11/2017,Strategic Accounts,Leeds Kabaddi Club,06/06/16,2016170260, 750.00 ,Neighbourhood Grant,Supplies & Services
Leeds City Council,13/11/2017,Strategic Accounts,Leeds Kabaddi Club,08/06/16,2016170261, 400.00 ,Neighbourhood Grant,Supplies & Services
Leeds City Council,13/11/2017,Strategic Accounts,Leeds Kabaddi Club,20/06/16,2016170262, 200.00 ,Neighbourhood Grant,Supplies & Services
Leeds City Council,13/11/2017,Strategic Accounts,Lincoln Green Community Cafe,29/06/16,2016170263, 300.00 ,Locality Grant,Supplies & Services
Leeds City Council,13/11/2017,Strategic Accounts,Lord Mayor'S Charity Appeal,27/06/16,2016170264, 200.00 ,Locality Grant,Supplies & Services
Leeds City Council,13/11/2017,Strategic Accounts,Lord Mayor'S Charity Appeal,20/06/16,2016170265," 2,200.00 ",Locality Grant,Supplies & Services
Leeds City Council,13/11/2017,Strategic Accounts,Lord Mayor'S Charity Appeal,13/06/16,2016170266, 700.00 ,Locality Grant,Supplies & Services
Leeds City Council,13/11/2017,Strategic Accounts,Lowry Road In Bloom,06/06/16,2016170267, 300.00 ,Locality Grant,Supplies & Services
Leeds City Council,13/11/2017,Strategic Accounts,Middleton Railway Trust Limited,13/06/16,2016170268, 175.00 ,Locality Grant,Supplies & Services
Leeds City Council,13/11/2017,Strategic Accounts,Moor Allerton Elderly Care,06/06/16,2016170269, 300.00 ,Housing Grant,Supplies & Services
Leeds City Council,13/11/2017,Strategic Accounts,Memory Lane,06/06/16,2016170270, 300.00 ,Locality Grant,Supplies & Services
Leeds City Council,13/11/2017,Strategic Accounts,Morley Town Afc,27/06/16,2016170271, 500.00 ,Locality Grant,Supplies & Services
Leeds City Council,13/11/2017,Strategic Accounts,Orchard Croft,29/06/16,2016170272, 250.00 ,Locality Grant,Supplies & Services
Leeds City Council,13/11/2017,Strategic Accounts,Pudsey Live At Home Scheme,06/06/16,2016170273, 480.00 ,Locality Grant,Supplies & Services
Leeds City Council,13/11/2017,Strategic Accounts,Queensview Residents Association,06/06/16,2016170274, 150.00 ,Housing Grant,Supplies & Services
Leeds City Council,13/11/2017,Strategic Accounts,Robin Hood Residents Association,06/06/16,2016170275, 200.00 ,Housing Grant,Supplies & Services
Leeds City Council,13/11/2017,Strategic Accounts,Robin Hood Residents Association,29/06/16,2016170276, 50.00 ,Housing Grant,Supplies & Services
Leeds City Council,13/11/2017,Strategic Accounts,Samaritans Of Leeds,06/06/16,2016170277, 300.00 ,Locality Grant,Supplies & Services
Leeds City Council,13/11/2017,Strategic Accounts,Samaritans Of Leeds,13/06/16,2016170278," 1,150.00 ",Locality Grant,Supplies & Services
Leeds City Council,13/11/2017,Strategic Accounts,Samaritans Of Leeds,20/06/16,2016170279, 200.00 ,Locality Grant,Supplies & Services
Leeds City Council,13/11/2017,Strategic Accounts,Siegen Circle,20/06/16,2016170280, 500.00 ,Locality Grant,Supplies & Services
Leeds City Council,13/11/2017,Strategic Accounts,South Leeds Alternative Trading,13/06/16,2016170281, 700.00 ,Locality Grant,Supplies & Services
Leeds City Council,13/11/2017,Strategic Accounts,Swarthmore Education Centre,06/06/16,2016170282, 100.00 ,Locality Grant,Supplies & Services
Leeds City Council,13/11/2017,Strategic Accounts,Saxton Gardens Residents Association,27/06/16,2016170283, 100.00 ,Housing Grant,Supplies & Services
Leeds City Council,13/11/2017,Strategic Accounts,Scholes Village Show,13/06/16,2016170284, 300.00 ,Locality Grant,Supplies & Services
Leeds City Council,13/11/2017,Strategic Accounts,Seacroft Parish Project,27/06/16,2016170285, 160.00 ,Locality Grant,Supplies & Services
Leeds City Council,13/11/2017,Strategic Accounts,St Cyprians With St James Church,13/06/16,2016170286, 100.00 ,Neighbourhood Grant,Supplies & Services
Leeds City Council,13/11/2017,Strategic Accounts,St Marys Church Swillington,13/06/16,2016170287, 100.00 ,Locality Grant,Supplies & Services
Leeds City Council,13/11/2017,Strategic Accounts,St Michael'S Church,20/06/16,2016170288, 150.00 ,Locality Grant,Supplies & Services
Leeds City Council,13/11/2017,Strategic Accounts,St Peters Luncheon Club,06/06/16,2016170289, 150.00 ,Luncheon Club Grant,Supplies & Services
Leeds City Council,13/11/2017,Strategic Accounts,St Theresas Retirement Club,27/06/16,2016170290, 300.00 ,Locality Grant,Supplies & Services
Leeds City Council,13/11/2017,Strategic Accounts,Supreme Starlets Majorettes,20/06/16,2016170291, 900.00 ,Locality Grant,Supplies & Services
Leeds City Council,13/11/2017,Strategic Accounts,Swarcliffe Good Neighbours Scheme,13/06/16,2016170292, 500.00 ,Neighbourhood Grant,Supplies & Services
Leeds City Council,13/11/2017,Strategic Accounts,Swinnow Community Centre,06/06/16,2016170293, 280.00 ,Housing Grant,Supplies & Services
Leeds City Council,13/11/2017,Strategic Accounts,The 58 Centre,06/06/16,2016170294, 500.00 ,Locality Grant,Supplies & Services
Leeds City Council,13/11/2017,Strategic Accounts,The Cardigan Centre,27/06/16,2016170295," 2,000.00 ",Housing Grant,Supplies & Services
Leeds City Council,13/11/2017,Strategic Accounts,The Church Lads' & Church Girls' Brigade,27/06/16,2016170296," 1,000.00 ",Locality Grant,Supplies & Services
Leeds City Council,13/11/2017,Strategic Accounts,The Poppy Appeal,06/06/16,2016170297, 300.00 ,Locality Grant,Supplies & Services
Leeds City Council,13/11/2017,Strategic Accounts,The Poppy Appeal,29/06/16,2016170298, 300.00 ,Locality Grant,Supplies & Services
Leeds City Council,13/11/2017,Strategic Accounts,West Leeds Walking Groups,13/06/16,2016170299, 500.00 ,Locality Grant,Supplies & Services
Leeds City Council,13/11/2017,Strategic Accounts,Whingate Court Association,06/06/16,2016170300, 350.00 ,Locality Grant,Supplies & Services
Leeds City Council,13/11/2017,Strategic Accounts,Yorkshire Wildlife Trust,20/06/16,2016170301, 250.00 ,Locality Grant,Supplies & Services
Leeds City Council,13/11/2017,Strategic Landlord,Burmantofts Senior Action,10/06/16,2016170302," 1,250.00 ",Neighbourhood Grant,Supplies & Services
Leeds City Council,13/11/2017,Strategic Landlord,Button Hill Residents Association,23/06/16,2016170303, 100.00 ,Housing Grant,Supplies & Services
Leeds City Council,13/11/2017,Strategic Landlord,Button Hill Residents Association,24/06/16,2016170304, 460.00 ,Housing Grant,Supplies & Services
Leeds City Council,13/11/2017,Strategic Landlord,Denshaws Newlands And Rydals Residents,23/06/16,2016170305, 450.00 ,Support Grant,Supplies & Services
Leeds City Council,13/11/2017,Strategic Landlord,East Ardsley Community Association,23/06/16,2016170306, 500.00 ,Housing Grant,Supplies & Services
Leeds City Council,13/11/2017,Strategic Landlord,Friends Of Sandringham Park,16/06/16,2016170307, 100.00 ,Support Grant,Supplies & Services
Leeds City Council,13/11/2017,Strategic Landlord,Getaway Girls,16/06/16,2016170308," 2,424.00 ",Housing Grant,Supplies & Services
Leeds City Council,13/11/2017,Strategic Landlord,Nursery Garth Community Group,16/06/16,2016170309, 100.00 ,Housing Grant,Supplies & Services
Leeds City Council,13/11/2017,Adult Social Care,Leeds Involving People,01/07/16,2016170310," 11,666.25 ",Adult Social Care Grant,Supplies & Services
Leeds City Council,13/11/2017,Adult Social Care,William Merritt Centre,01/07/16,2016170311," 8,131.00 ",Adult Social Care Grant,Supplies & Services
Leeds City Council,13/11/2017,Citizens and Communities,Barca - Leeds,29/07/16,2016170312, 400.00 ,Housing Grant,Supplies & Services
Leeds City Council,13/11/2017,Citizens and Communities,Barca - Leeds,29/07/16,2016170313," 3,468.00 ",Housing Grant,Supplies & Services
Leeds City Council,13/11/2017,Citizens and Communities,Barca - Leeds,13/07/16,2016170314," 1,411.34 ",Housing Grant,Supplies & Services
Leeds City Council,13/11/2017,Citizens and Communities,Barca - Leeds,27/07/16,2016170315, 500.00 ,Housing Grant,Supplies & Services
Leeds City Council,13/11/2017,Citizens and Communities,Behno Group (Sisters),04/07/16,2016170316," 1,513.00 ",Neighbourhood Grant,Supplies & Services
Leeds City Council,13/11/2017,Citizens and Communities,Better Leeds Communities,29/07/16,2016170317, 426.30 ,Housing Grant,Supplies & Services
Leeds City Council,13/11/2017,Citizens and Communities,Better Leeds Communities,29/07/16,2016170318," 1,573.70 ",Housing Grant,Supplies & Services
Leeds City Council,13/11/2017,Citizens and Communities,Chapeltown Community Netball,15/07/16,2016170319, 445.00 ,Housing Grant,Supplies & Services
Leeds City Council,13/11/2017,Citizens and Communities,Ebor Gardens Advice Centre,29/07/16,2016170320," 1,065.00 ",Neighbourhood Grant,Supplies & Services
Leeds City Council,13/11/2017,Citizens and Communities,Ebor Gardens Advice Centre,12/07/16,2016170321," 1,065.00 ",Neighbourhood Grant,Supplies & Services
Leeds City Council,13/11/2017,Citizens and Communities,East Ardsley United Cricket Club,29/07/16,2016170322, 500.00 ,Neighbourhood Grant,Supplies & Services
Leeds City Council,13/11/2017,Citizens and Communities,East Leeds Cricket And Social Club,06/07/16,2016170323, 500.00 ,Locality Grant,Supplies & Services
Leeds City Council,13/11/2017,Citizens and Communities,Getaway Girls,29/07/16,2016170324," 2,500.00 ",Housing Grant,Supplies & Services
Leeds City Council,13/11/2017,Citizens and Communities,Guiseley Brass Band,15/07/16,2016170325, 100.00 ,Locality Grant,Supplies & Services
Leeds City Council,13/11/2017,Citizens and Communities,Guiseley Neighbourhood Watch Association,11/07/16,2016170326, 199.50 ,Locality Grant,Supplies & Services
Leeds City Council,13/11/2017,Citizens and Communities,Hunslet Nelson Cricket Club,28/07/16,2016170327," 1,871.61 ",Locality Grant,Supplies & Services
Leeds City Council,13/11/2017,Citizens and Communities,Hunslet Club,29/07/16,2016170328," 5,797.55 ",Neighbourhood Grant,Supplies & Services
Leeds City Council,13/11/2017,Citizens and Communities,Hunslet Club,29/07/16,2016170329," 5,797.55 ",Neighbourhood Grant,Supplies & Services
Leeds City Council,13/11/2017,Citizens and Communities,Irish Arts Foundation,15/07/16,2016170330, 500.00 ,Arts grant,Supplies & Services
Leeds City Council,13/11/2017,Citizens and Communities,Kirkstall In Bloom,05/07/16,2016170331," 3,000.00 ",Locality Grant,Supplies & Services
Leeds City Council,13/11/2017,Citizens and Communities,Leeds Citizens Advice Bureau,08/07/16,2016170332," 401,254.00 ",Advisory Grant,Supplies & Services
Leeds City Council,13/11/2017,Citizens and Communities,Leeds Mandela Warriors,14/07/16,2016170333, 725.00 ,Sports Grant,Supplies & Services
Leeds City Council,13/11/2017,Citizens and Communities,Morley Community Church,14/07/16,2016170334," 1,695.00 ",Housing Grant,Supplies & Services
Leeds City Council,13/11/2017,Citizens and Communities,Meanwood Junior Playscheme,04/07/16,2016170335," 1,158.60 ",Housing Grant,Supplies & Services
Leeds City Council,13/11/2017,Citizens and Communities,Meanwood Valley Partnership,04/07/16,2016170336," 2,000.00 ",Locality Grant,Supplies & Services
Leeds City Council,13/11/2017,Citizens and Communities,Milford Juniors Arlfc,26/07/16,2016170337," 2,200.00 ",Sports Grant,Supplies & Services
Leeds City Council,13/11/2017,Citizens and Communities,New Wortley Community Association Ltd,22/07/16,2016170338," 2,500.00 ",Locality Grant,Supplies & Services
Leeds City Council,13/11/2017,Citizens and Communities,Next Generation Arts,14/07/16,2016170339," 5,000.00 ",Neighbourhood Grant,Supplies & Services
Leeds City Council,13/11/2017,Citizens and Communities,Owls,01/07/16,2016170340," 1,366.00 ",Neighbourhood Grant,Supplies & Services
Leeds City Council,13/11/2017,Citizens and Communities,Oakwood Traders And Residents Ass,01/07/16,2016170341," 1,900.00 ",Locality Grant,Supplies & Services
Leeds City Council,13/11/2017,Citizens and Communities,Project Hope Leeds,07/07/16,2016170342, 402.96 ,Locality Grant,Supplies & Services
Leeds City Council,13/11/2017,Citizens and Communities,Seagulls Re-Use Ltd,20/07/16,2016170343, 500.00 ,Housing Grant,Supplies & Services
Leeds City Council,13/11/2017,Citizens and Communities,Siegen Circle,15/07/16,2016170344," 1,494.00 ",Locality Grant,Supplies & Services
Leeds City Council,13/11/2017,Citizens and Communities,Stitch Up Cic,29/07/16,2016170345," 2,500.00 ",Neighbourhood Grant,Supplies & Services
Leeds City Council,13/11/2017,Citizens and Communities,Swinnow Community Centre,15/07/16,2016170346," 1,619.12 ",Housing Grant,Supplies & Services
Leeds City Council,13/11/2017,Citizens and Communities,Upbeat Social Enterprises Cic,07/07/16,2016170347," 2,500.00 ",Neighbourhood Grant,Supplies & Services
Leeds City Council,13/11/2017,Citizens and Communities,Voluntary Action-Leeds,26/07/16,2016170348," 74,411.00 ",Children's Services Grant,Supplies & Services
Leeds City Council,13/11/2017,Citizens and Communities,Woodsley Road Community Centre,01/07/16,2016170349, 64.00 ,Neighbourhood Grant,Supplies & Services
Leeds City Council,13/11/2017,Citizens and Communities,Woodsley Road Community Centre,22/07/16,2016170350, 96.00 ,Neighbourhood Grant,Supplies & Services
Leeds City Council,13/11/2017,Citizens and Communities,Wycas,26/07/16,2016170351," 10,112.75 ",Infrastructure Support Grant,Supplies & Services
Leeds City Council,13/11/2017,Citizens and Communities,Yorkshire Cricket Board,28/07/16,2016170352," 5,730.00 ",Sports Grant,Supplies & Services
Leeds City Council,13/11/2017,Citizens and Communities,Yorkshire Cricket Board,29/07/16,2016170353," 4,670.00 ",Sports Grant,Supplies & Services
Leeds City Council,13/11/2017,City Development,Basement Arts Project,20/07/16,2016170354, 700.00 ,Leeds Inspired Grant,Supplies & Services
Leeds City Council,13/11/2017,City Development,East Street Arts,06/07/16,2016170355," 2,850.00 ",Arts grant,Supplies & Services
Leeds City Council,13/11/2017,City Development,Hyde Park Unity Day,27/07/16,2016170356," 1,900.00 ",Arts grant,Supplies & Services
Leeds City Council,13/11/2017,City Development,Leeds Community Foundation,29/07/16,2016170357," 45,124.40 ",Adult Social Care Grant,Supplies & Services
Leeds City Council,13/11/2017,City Development,Leeds Grand Theatre & Opera,14/07/16,2016170358," 136,800.00 ",Arts grant,Supplies & Services
Leeds City Council,13/11/2017,City Development,Leeds Sports Federation,08/07/16,2016170359," 9,700.00 ",Sports Grant,Supplies & Services
Leeds City Council,13/11/2017,City Development,Morley Literature Festival,28/07/16,2016170360," 1,900.00 ",Arts grant,Supplies & Services
Leeds City Council,13/11/2017,City Development,Red Ladder Theatre Co Ltd,11/07/16,2016170361," 5,130.00 ",Arts grant,Supplies & Services
Leeds City Council,13/11/2017,City Development,Skippko Arts Team,27/07/16,2016170362," 4,560.00 ",Arts grant,Supplies & Services
Leeds City Council,13/11/2017,City Development,Yorkshire Dance Centre Trust Co Ltd,13/07/16,2016170363," 4,940.00 ",Arts grant,Supplies & Services
Leeds City Council,13/11/2017,City Development,Yorkshire Sculpture Park,19/07/16,2016170364," 20,000.00 ",Arts grant,Supplies & Services
Leeds City Council,13/11/2017,Environment & Housing,Rspb,25/07/16,2016170365," 2,688.00 ",Support Grant,Supplies & Services
Social Services Pooled Budgets,13/11/2017,Jcs For People With Learning Disabilitie,Leeds People First,07/07/16,2016170366," 2,177.75 ",Social Services Pooled Budget grant,Supplies & Services
Social Services Pooled Budgets,13/11/2017,Jcs For People With Learning Disabilitie,Meanwood Valley Urban Farm Ltd,07/07/16,2016170367," 17,826.00 ",Support Grant,Supplies & Services
Leeds City Council,13/11/2017,Public Health,Leeds Older Peoples Forum,21/07/16,2016170368, 500.00 ,Neighbourhood Grant,Supplies & Services
Leeds City Council,13/11/2017,Strategic Accounts,11th Whinmoor Brownies,11/07/16,2016170369, 100.00 ,Locality Grant,Supplies & Services
Leeds City Council,13/11/2017,Strategic Accounts,1st Drighlington Girls Brigade,18/07/16,2016170370, 300.00 ,Locality Grant,Supplies & Services
Leeds City Council,13/11/2017,Strategic Accounts,Arts @ Trinity Ltd,11/07/16,2016170371, 300.00 ,Arts grant,Supplies & Services
Leeds City Council,13/11/2017,Strategic Accounts,Better Action For Families,25/07/16,2016170372, 500.00 ,Adult Social Care Grant,Supplies & Services
Leeds City Council,13/11/2017,Strategic Accounts,Bots N Tots,07/07/16,2016170373, 300.00 ,Locality Grant,Supplies & Services
Leeds City Council,13/11/2017,Strategic Accounts,Caring Together In Woodhouse And Little,11/07/16,2016170374, 100.00 ,Locality Grant,Supplies & Services
Leeds City Council,13/11/2017,Strategic Accounts,Calverley Village Guide Association,25/07/16,2016170375, 375.00 ,Neighbourhood Grant,Supplies & Services
Leeds City Council,13/11/2017,Strategic Accounts,Devonshire Neighbourhood Watch,11/07/16,2016170376, 300.00 ,Locality Grant,Supplies & Services
Leeds City Council,13/11/2017,Strategic Accounts,East Leeds Comets Majorette Troupe,18/07/16,2016170377, 250.00 ,Locality Grant,Supplies & Services
Leeds City Council,13/11/2017,Strategic Accounts,Friends Of Roundhay Park,25/07/16,2016170378, 300.00 ,Locality Grant,Supplies & Services
Leeds City Council,13/11/2017,Strategic Accounts,Guiseley Methodist Church,11/07/16,2016170379, 37.00 ,Locality Grant,Supplies & Services
Leeds City Council,13/11/2017,Strategic Accounts,Guiseley Senior Citizens Association,18/07/16,2016170380, 800.00 ,Neighbourhood Grant,Supplies & Services
Leeds City Council,13/11/2017,Strategic Accounts,Gargrave Group Tenants Association,11/07/16,2016170381, 300.00 ,Housing Grant,Supplies & Services
Leeds City Council,13/11/2017,Strategic Accounts,Hyde Park Unity Day,11/07/16,2016170382, 100.00 ,Locality Grant,Supplies & Services
Leeds City Council,13/11/2017,Strategic Accounts,Hyde Park Unity Day,18/07/16,2016170383, 47.00 ,Locality Grant,Supplies & Services
Leeds City Council,13/11/2017,Strategic Accounts,Kirkstall In Bloom,18/07/16,2016170384, 300.00 ,Locality Grant,Supplies & Services
Leeds City Council,13/11/2017,Strategic Accounts,Leeds Kabaddi Club,18/07/16,2016170385, 500.00 ,Neighbourhood Grant,Supplies & Services
Leeds City Council,13/11/2017,Strategic Accounts,Lord Mayor'S Charity Appeal,11/07/16,2016170386, 300.00 ,Locality Grant,Supplies & Services
Leeds City Council,13/11/2017,Strategic Accounts,Lord Mayor'S Charity Appeal,18/07/16,2016170387, 250.00 ,Locality Grant,Supplies & Services
Leeds City Council,13/11/2017,Strategic Accounts,Lord Mayor'S Charity Appeal,25/07/16,2016170388, 100.00 ,Locality Grant,Supplies & Services
Leeds City Council,13/11/2017,Strategic Accounts,Lower Wortley Community Association,25/07/16,2016170389, 250.00 ,Locality Grant,Supplies & Services
Leeds City Council,13/11/2017,Strategic Accounts,Methleyfest Organisation Committee,18/07/16,2016170390, 600.00 ,Locality Grant,Supplies & Services
Leeds City Council,13/11/2017,Strategic Accounts,Otley Pub Club,11/07/16,2016170391, 500.00 ,Locality Grant,Supplies & Services
Leeds City Council,13/11/2017,Strategic Accounts,Rawdon Community Library,18/07/16,2016170392, 191.94 ,Locality Grant,Supplies & Services
Leeds City Council,13/11/2017,Strategic Accounts,Rotary Technology Tournament,11/07/16,2016170393, 250.00 ,Locality Grant,Supplies & Services
Leeds City Council,13/11/2017,Strategic Accounts,Rotary Technology Tournament,25/07/16,2016170394, 300.00 ,Locality Grant,Supplies & Services
Leeds City Council,13/11/2017,Strategic Accounts,Ruth For Women,11/07/16,2016170395, 100.00 ,Locality Grant,Supplies & Services
Leeds City Council,13/11/2017,Strategic Accounts,Samaritans Of Leeds,11/07/16,2016170396, 150.00 ,Locality Grant,Supplies & Services
Leeds City Council,13/11/2017,Strategic Accounts,St Georges Crypt,18/07/16,2016170397, 350.00 ,Neighbourhood Grant,Supplies & Services
Leeds City Council,13/11/2017,Strategic Accounts,St Georges Crypt,25/07/16,2016170398, 550.00 ,Neighbourhood Grant,Supplies & Services
Leeds City Council,13/11/2017,Strategic Accounts,Station Allotments Association,25/07/16,2016170399, 300.00 ,Locality Grant,Supplies & Services
Leeds City Council,13/11/2017,Strategic Accounts,Saxton Gardens Residents Association,11/07/16,2016170400, 200.00 ,Housing Grant,Supplies & Services
Leeds City Council,13/11/2017,Strategic Accounts,South Leeds And Morley Explorer Scouts,25/07/16,2016170401, 210.00 ,Locality Grant,Supplies & Services
Leeds City Council,13/11/2017,Strategic Accounts,St Peters Luncheon Club,18/07/16,2016170402, 330.00 ,Luncheon Club Grant,Supplies & Services
Leeds City Council,13/11/2017,Strategic Accounts,Swillington In Bloom,25/07/16,2016170403, 100.00 ,Neighbourhood Grant,Supplies & Services
Leeds City Council,13/11/2017,Strategic Accounts,Swillington Saints Fc,18/07/16,2016170404, 500.00 ,Locality Grant,Supplies & Services
Leeds City Council,13/11/2017,Strategic Accounts,The Cardigan Centre,18/07/16,2016170405, 400.00 ,Housing Grant,Supplies & Services
Leeds City Council,13/11/2017,Strategic Accounts,The Donkey Sanctuary,21/07/16,2016170406, 100.00 ,Neighbourhood Grant,Supplies & Services
Leeds City Council,13/11/2017,Strategic Accounts,The Poppy Appeal,11/07/16,2016170407, 200.00 ,Locality Grant,Supplies & Services
Leeds City Council,13/11/2017,Strategic Accounts,Tingley Tara (Tenants And Residents),25/07/16,2016170408, 300.00 ,Housing Grant,Supplies & Services
Leeds City Council,13/11/2017,Strategic Accounts,Willow Green Allotment Association,11/07/16,2016170409, 395.00 ,Locality Grant,Supplies & Services
Leeds City Council,13/11/2017,Strategic Accounts,Yeadon Town Hall Users Group,18/07/16,2016170410, 600.00 ,Neighbourhood Grant,Supplies & Services
Leeds City Council,13/11/2017,Strategic Accounts,Zest Health For Life,25/07/16,2016170411, 750.00 ,Neighbourhood Grant,Supplies & Services
Leeds City Council,13/11/2017,Strategic Accounts,Zest Health For Life,18/07/16,2016170412, 250.00 ,Neighbourhood Grant,Supplies & Services
Leeds City Council,13/11/2017,Strategic Landlord,Altogether Armley,11/07/16,2016170413," 3,463.00 ",Housing Grant,Supplies & Services
Leeds City Council,13/11/2017,Strategic Landlord,Atlanta Street Group Constitution,26/07/16,2016170414, 100.00 ,Support Grant,Supplies & Services
Leeds City Council,13/11/2017,Strategic Landlord,Barncroft Residents Association,22/07/16,2016170415, 100.00 ,Housing Grant,Supplies & Services
Leeds City Council,13/11/2017,Strategic Landlord,Denshaws Newlands And Rydals Residents,12/07/16,2016170416, 795.00 ,Housing Grant,Supplies & Services
Leeds City Council,13/11/2017,Strategic Landlord,Eastleigh Senior Citizens Group,04/07/16,2016170417," 1,125.00 ",Housing Grant,Supplies & Services
Leeds City Council,13/11/2017,Strategic Landlord,Morley Community Church,14/07/16,2016170418," 4,800.00 ",Housing Grant,Supplies & Services
Leeds City Council,13/11/2017,Strategic Landlord,Moorside Tenants And Residents,28/07/16,2016170419," 1,000.00 ",Housing Grant,Supplies & Services
Leeds City Council,13/11/2017,Strategic Landlord,Royds Court Social Fund,04/07/16,2016170420, 300.00 ,Housing Grant,Supplies & Services
Leeds City Council,13/11/2017,Strategic Landlord,Spring Close Gardens,07/07/16,2016170421, 100.00 ,Support Grant,Supplies & Services
Leeds City Council,13/11/2017,Strategic Landlord,St Peters Luncheon Club,18/07/16,2016170422, 500.00 ,Luncheon Club Grant,Supplies & Services
Leeds City Council,13/11/2017,Strategic Landlord,Street Work Soccer Academy Ltd,14/07/16,2016170423," 8,750.00 ",Housing Grant,Supplies & Services
Leeds City Council,13/11/2017,Strategic Landlord,The West Yorkshire Crc Ltd,18/07/16,2016170424," 21,964.49 ",Housing Grant,Supplies & Services
Leeds City Council,13/11/2017,Strategic Landlord,Zest Health For Life,14/07/16,2016170425, 998.00 ,Neighbourhood Grant,Supplies & Services
Leeds City Council,13/11/2017,Strategic Landlord,Zest Health For Life,14/07/16,2016170426," 5,000.00 ",Neighbourhood Grant,Supplies & Services
Leeds City Council,13/11/2017,Citizens and Communities,Aireborough Supported Activities Scheme,12/08/16,2016170427, 811.00 ,Children's Services Grant,Supplies & Services
Leeds City Council,13/11/2017,Citizens and Communities,Aireborough Supported Activities Scheme,12/08/16,2016170428, 372.00 ,Children's Services Grant,Supplies & Services
Leeds City Council,13/11/2017,Citizens and Communities,Caring Together In Woodhouse And Little,04/08/16,2016170429," 2,276.54 ",Locality Grant,Supplies & Services
Leeds City Council,13/11/2017,Citizens and Communities,Cfydc (Chance),19/08/16,2016170430," 4,858.00 ",Housing Grant,Supplies & Services
Leeds City Council,13/11/2017,Citizens and Communities,Courthouse Project (Otley) Ltd,22/08/16,2016170431," 1,850.00 ",Locality Grant,Supplies & Services
Leeds City Council,13/11/2017,Citizens and Communities,Care & Repair Leeds,26/08/16,2016170432," 1,001.00 ",Support Grant,Supplies & Services
Leeds City Council,13/11/2017,Citizens and Communities,Fairfield Enterprise And Community Cic,15/08/16,2016170433," 1,250.00 ",Housing Grant,Supplies & Services
Leeds City Council,13/11/2017,Citizens and Communities,Farsley Business Forum,18/08/16,2016170434," 1,000.00 ",Grant to Business,Supplies & Services
Leeds City Council,13/11/2017,Citizens and Communities,Farsley Community Initiative,25/08/16,2016170435," 2,710.00 ",Neighbourhood Grant,Supplies & Services
Leeds City Council,13/11/2017,Citizens and Communities,Gipton Together,15/08/16,2016170436," 1,000.00 ",Housing Grant,Supplies & Services
Leeds City Council,13/11/2017,Citizens and Communities,Holbeck Elderly Aid,03/08/16,2016170437," 1,000.00 ",Luncheon Club Grant,Supplies & Services
Leeds City Council,13/11/2017,Citizens and Communities,Health For All (Leeds) Ltd,30/08/16,2016170438, 37.50 ,Housing Grant,Supplies & Services
Leeds City Council,13/11/2017,Citizens and Communities,Health For All (Leeds) Ltd,30/08/16,2016170439, 50.00 ,Housing Grant,Supplies & Services
Leeds City Council,13/11/2017,Citizens and Communities,Hunslet Methodist Church,01/08/16,2016170440," 11,000.00 ",Neighbourhood Grant,Supplies & Services
Leeds City Council,13/11/2017,Citizens and Communities,Leeds Development Education Centre,16/08/16,2016170441, 612.89 ,Locality Grant,Supplies & Services
Leeds City Council,13/11/2017,Citizens and Communities,Leeds Baton Rouge Majorettes,23/08/16,2016170442, 292.00 ,Neighbourhood Grant,Supplies & Services
Leeds City Council,13/11/2017,Citizens and Communities,Leeds Jewish Ex-Serviceman & Womens Asso,26/08/16,2016170443, 500.00 ,Locality Grant,Supplies & Services
Leeds City Council,13/11/2017,Citizens and Communities,Moor Allerton Elderly Care,31/08/16,2016170444," 1,820.00 ",Housing Grant,Supplies & Services
Leeds City Council,13/11/2017,Citizens and Communities,Neighbourhood Elders Team,24/08/16,2016170445," 10,000.00 ",Neighbourhood Grant,Supplies & Services
Leeds City Council,13/11/2017,Citizens and Communities,Neighbourhood Elders Team,24/08/16,2016170446," 10,000.00 ",Neighbourhood Grant,Supplies & Services
Leeds City Council,13/11/2017,Citizens and Communities,New Chapeltown Development Trust,08/08/16,2016170447, 750.00 ,Neighbourhood Grant,Supplies & Services
Leeds City Council,13/11/2017,Citizens and Communities,Pudsey Carnival Committee,22/08/16,2016170448," 1,000.00 ",Locality Grant,Supplies & Services
Leeds City Council,13/11/2017,Citizens and Communities,Pudsey Swimming Club,24/08/16,2016170449," 3,054.00 ",Sports Grant,Supplies & Services
Leeds City Council,13/11/2017,Citizens and Communities,Rjc Productions Ltd,12/08/16,2016170450," 4,064.35 ",Arts grant,Supplies & Services
Leeds City Council,13/11/2017,Citizens and Communities,Royal British Legion Poppy Appeal,16/08/16,2016170451, 20.00 ,Locality Grant,Supplies & Services
Leeds City Council,13/11/2017,Citizens and Communities,Rothwell & District Carnival Committee,26/08/16,2016170452," 1,008.90 ",Neighbourhood Grant,Supplies & Services
Leeds City Council,13/11/2017,Citizens and Communities,Seagulls Re-Use Ltd,22/08/16,2016170453," 4,137.50 ",Housing Grant,Supplies & Services
Leeds City Council,13/11/2017,Citizens and Communities,St Agnes United Church,25/08/16,2016170454, 400.00 ,Locality Grant,Supplies & Services
Leeds City Council,13/11/2017,Citizens and Communities,St Cyprians With St James Church,08/08/16,2016170455, 500.00 ,Neighbourhood Grant,Supplies & Services
Leeds City Council,13/11/2017,Citizens and Communities,Touchstone - Leeds,05/08/16,2016170456, 500.00 ,Adult Social Care Grant,Supplies & Services
Leeds City Council,13/11/2017,Citizens and Communities,Yarnbury (Horsforth) Rugby Football Club,31/08/16,2016170457," 8,820.00 ",Locality Grant,Supplies & Services
Leeds City Council,13/11/2017,City Development,Irish Arts Foundation,03/08/16,2016170458," 2,665.00 ",Leeds Inspired Grant,Supplies & Services
Leeds City Council,13/11/2017,City Development,Leeds Gate Charity,26/08/16,2016170459," 11,320.00 ",Leeds Inspired Grant,Supplies & Services
Leeds City Council,13/11/2017,City Development,Love Pudsey,04/08/16,2016170460," 9,120.00 ",Leeds Inspired Grant,Supplies & Services
Leeds City Council,13/11/2017,City Development,Morley Literature Festival,08/08/16,2016170461," 1,900.00 ",Arts grant,Supplies & Services
Leeds City Council,13/11/2017,Strategic Accounts,168(City Of Leeds)Sqd,30/08/16,2016170462, 220.00 ,Locality Grant,Supplies & Services
Leeds City Council,13/11/2017,Strategic Accounts,168(City Of Leeds)Sqd,22/08/16,2016170463, 220.00 ,Locality Grant,Supplies & Services
Leeds City Council,13/11/2017,Strategic Accounts,Armley Junk-Tion,15/08/16,2016170464, 350.00 ,Housing Grant,Supplies & Services
Leeds City Council,13/11/2017,Strategic Accounts,Armley Junk-Tion,22/08/16,2016170465, 350.00 ,Housing Grant,Supplies & Services
Leeds City Council,13/11/2017,Strategic Accounts,Belle Isle Elderly Winter Aid,22/08/16,2016170466, 260.00 ,Locality Grant,Supplies & Services
Leeds City Council,13/11/2017,Strategic Accounts,Beeston Juniors,08/08/16,2016170467, 150.00 ,Locality Grant,Supplies & Services
Leeds City Council,13/11/2017,Strategic Accounts,Beeston Neighbourhood Forum,22/08/16,2016170468, 100.00 ,Locality Grant,Supplies & Services
Leeds City Council,13/11/2017,Strategic Accounts,Bramley Phoenix,08/08/16,2016170469, 250.00 ,Locality Grant,Supplies & Services
Leeds City Council,13/11/2017,Strategic Accounts,Briarsdale Community Centre,30/08/16,2016170470, 350.00 ,Locality Grant,Supplies & Services
Leeds City Council,13/11/2017,Strategic Accounts,Button Hill Residents Association,15/08/16,2016170471, 100.00 ,Housing Grant,Supplies & Services
Leeds City Council,13/11/2017,Strategic Accounts,Calverley In Bloom,30/08/16,2016170472, 250.00 ,Locality Grant,Supplies & Services
Leeds City Council,13/11/2017,Strategic Accounts,Cloth Cat Studios Ltd,15/08/16,2016170473, 500.00 ,Locality Grant,Supplies & Services
Leeds City Council,13/11/2017,Strategic Accounts,Cranmer Call Tenants And Residents,01/08/16,2016170474, 100.00 ,Locality Grant,Supplies & Services
Leeds City Council,13/11/2017,Strategic Accounts,Carlton Cricket Club,08/08/16,2016170475, 400.00 ,Locality Grant,Supplies & Services
Leeds City Council,13/11/2017,Strategic Accounts,Carlton Lodge Amenities,08/08/16,2016170476, 300.00 ,Locality Grant,Supplies & Services
Leeds City Council,13/11/2017,Strategic Accounts,Christ The Saviour Church,15/08/16,2016170477, 400.00 ,Locality Grant,Supplies & Services
Leeds City Council,13/11/2017,Strategic Accounts,Churwell Action Group,08/08/16,2016170478, 150.00 ,Locality Grant,Supplies & Services
Leeds City Council,13/11/2017,Strategic Accounts,Churwell Environmental Volunteers,01/08/16,2016170479, 103.45 ,Neighbourhood Capital Grant,Supplies & Services
Leeds City Council,13/11/2017,Strategic Accounts,East & West Ardsley Royal British Legion,08/08/16,2016170480, 200.00 ,Locality Grant,Supplies & Services
Leeds City Council,13/11/2017,Strategic Accounts,Farsley Community Church,22/08/16,2016170481, 500.00 ,Locality Grant,Supplies & Services
Leeds City Council,13/11/2017,Strategic Accounts,Friends Of Lofthouse Childrens Centre,01/08/16,2016170482, 200.00 ,Locality Grant,Supplies & Services
Leeds City Council,13/11/2017,Strategic Accounts,Friends Of Wigton Moor Woods,08/08/16,2016170483, 195.00 ,Locality Grant,Supplies & Services
Leeds City Council,13/11/2017,Strategic Accounts,Gulf War Illness Veterans Support,15/08/16,2016170484, 100.00 ,Locality Grant,Supplies & Services
Leeds City Council,13/11/2017,Strategic Accounts,Hawthorn Mill Sheltered Housing Assoc,15/08/16,2016170485, 280.00 ,Locality Grant,Supplies & Services
Leeds City Council,13/11/2017,Strategic Accounts,Health For All (Leeds) Ltd,01/08/16,2016170486, 750.00 ,Housing Grant,Supplies & Services
Leeds City Council,13/11/2017,Strategic Accounts,Khaanz Badminton Club,30/08/16,2016170487, 450.00 ,Locality Grant,Supplies & Services
Leeds City Council,13/11/2017,Strategic Accounts,Lofthouse 2000 Brass Band,30/08/16,2016170488, 300.00 ,Locality Grant,Supplies & Services
Leeds City Council,13/11/2017,Strategic Accounts,Lady Pit Lane Model Allotment Associatio,15/08/16,2016170489," 1,000.00 ",Locality Grant,Supplies & Services
Leeds City Council,13/11/2017,Strategic Accounts,Leeds Community Trust,01/08/16,2016170490, 100.00 ,Locality Grant,Supplies & Services
Leeds City Council,13/11/2017,Strategic Accounts,Leeds Community Trust,08/08/16,2016170491, 150.00 ,Locality Grant,Supplies & Services
Leeds City Council,13/11/2017,Strategic Accounts,Lord Mayor'S Charity Appeal,08/08/16,2016170492, 600.00 ,Locality Grant,Supplies & Services
Leeds City Council,13/11/2017,Strategic Accounts,Lord Mayor'S Charity Appeal,30/08/16,2016170493, 300.00 ,Locality Grant,Supplies & Services
Leeds City Council,13/11/2017,Strategic Accounts,Micklefield Tenants & Residents Assoc,08/08/16,2016170494, 153.90 ,Locality Grant,Supplies & Services
Leeds City Council,13/11/2017,Strategic Accounts,Middleton Mothers Union,08/08/16,2016170495, 600.00 ,Locality Grant,Supplies & Services
Leeds City Council,13/11/2017,Strategic Accounts,Morley Cricket Club,22/08/16,2016170496, 400.00 ,Locality Grant,Supplies & Services
Leeds City Council,13/11/2017,Strategic Accounts,North Leeds Bowling Club,15/08/16,2016170497, 300.00 ,Locality Grant,Supplies & Services
Leeds City Council,13/11/2017,Strategic Accounts,North Leeds District Scout Council,22/08/16,2016170498, 150.00 ,Locality Grant,Supplies & Services
Leeds City Council,13/11/2017,Strategic Accounts,Ramgarhia Sports Centre,22/08/16,2016170499, 300.00 ,Locality Grant,Supplies & Services
Leeds City Council,13/11/2017,Strategic Accounts,Rotary Technology Tournament,01/08/16,2016170500, 100.00 ,Locality Grant,Supplies & Services
Leeds City Council,13/11/2017,Strategic Accounts,Samaritans Of Leeds,08/08/16,2016170501, 150.00 ,Locality Grant,Supplies & Services
Leeds City Council,13/11/2017,Strategic Accounts,St Georges Crypt,01/08/16,2016170502, 600.00 ,Neighbourhood Grant,Supplies & Services
Leeds City Council,13/11/2017,Strategic Accounts,St Georges Crypt,22/08/16,2016170503, 250.00 ,Neighbourhood Grant,Supplies & Services
Leeds City Council,13/11/2017,Strategic Accounts,St Lukes Cares,08/08/16,2016170504, 100.00 ,Locality Grant,Supplies & Services
Leeds City Council,13/11/2017,Strategic Accounts,Sherburn Court Friday Social Club,01/08/16,2016170505, 200.00 ,Locality Grant,Supplies & Services
Leeds City Council,13/11/2017,Strategic Accounts,Shire Oak School Fund,01/08/16,2016170506, 404.80 ,Locality Grant,Supplies & Services
Leeds City Council,13/11/2017,Strategic Accounts,Spen Hill Residents Association,02/08/16,2016170507, 300.00 ,Locality Grant,Supplies & Services
Leeds City Council,13/11/2017,Strategic Accounts,Spin Star Twirlers,08/08/16,2016170508, 200.00 ,Locality Grant,Supplies & Services
Leeds City Council,13/11/2017,Strategic Accounts,St Agnes Parochial Church Council,15/08/16,2016170509, 100.00 ,Neighbourhood Grant,Supplies & Services
Leeds City Council,13/11/2017,Strategic Accounts,St Mary'S In The Wood Urc,08/08/16,2016170510, 200.00 ,Locality Grant,Supplies & Services
Leeds City Council,13/11/2017,Strategic Accounts,St Stephens Playschool,08/08/16,2016170511, 100.00 ,Locality Grant,Supplies & Services
Leeds City Council,13/11/2017,Strategic Accounts,Syrian Community Of Leeds,01/08/16,2016170512, 360.00 ,Luncheon Club Grant,Supplies & Services
Leeds City Council,13/11/2017,Strategic Accounts,Syrian Community Of Leeds,01/08/16,2016170513, 100.00 ,Luncheon Club Grant,Supplies & Services
Leeds City Council,13/11/2017,Strategic Accounts,The Big Hoo-Ha Company,01/08/16,2016170514, 150.00 ,Neighbourhood Grant,Supplies & Services
Leeds City Council,13/11/2017,Strategic Accounts,The Leeds Flower Club,01/08/16,2016170515, 50.00 ,Locality Grant,Supplies & Services
Leeds City Council,13/11/2017,Strategic Accounts,The Wednesday Club,15/08/16,2016170516, 300.00 ,Locality Grant,Supplies & Services
Leeds City Council,13/11/2017,Strategic Accounts,Think Like A Pony Cic,15/08/16,2016170517," 6,000.00 ",Locality Grant,Supplies & Services
Leeds City Council,13/11/2017,Strategic Accounts,Westerton Senior Citizens Club,15/08/16,2016170518, 300.00 ,Locality Grant,Supplies & Services
Leeds City Council,13/11/2017,Strategic Accounts,Winthorpe Residents Association,15/08/16,2016170519, 300.00 ,Housing Grant,Supplies & Services
Leeds City Council,13/11/2017,Strategic Landlord,Gilbert & Sandford Road,01/08/16,2016170520, 200.00 ,Housing Grant,Supplies & Services
Leeds City Council,13/11/2017,Strategic Landlord,Hope,31/08/16,2016170521," 1,400.00 ",Neighbourhood Grant,Supplies & Services
Leeds City Council,13/11/2017,Strategic Landlord,Ls14 Trust,19/08/16,2016170522," 8,000.00 ",Housing Grant,Supplies & Services
Leeds City Council,13/11/2017,Strategic Landlord,Leeds United Foundation,22/08/16,2016170523, 150.00 ,Housing Grant,Supplies & Services
Leeds City Council,13/11/2017,Strategic Landlord,Rothwell Allotment Association,31/08/16,2016170524, 500.00 ,Support Grant,Supplies & Services
Leeds City Council,13/11/2017,Adult Social Care,Leeds Involving People,30/09/16,2016170525," 11,666.25 ",Adult Social Care Grant,Supplies & Services
Leeds City Council,13/11/2017,Adult Social Care,William Merritt Disabled Living,30/09/16,2016170526," 8,131.00 ",Adult Social Care Grant,Supplies & Services
Leeds City Council,13/11/2017,Citizens and Communities,Al Khidmat Centre,02/09/16,2016170527," 2,500.00 ",Luncheon Club Grant,Supplies & Services
Leeds City Council,13/11/2017,Citizens and Communities,Al Khidmat Centre,01/09/16,2016170528," 2,500.00 ",Luncheon Club Grant,Supplies & Services
Leeds City Council,13/11/2017,Citizens and Communities,Armley Juniors Project For Young People,12/09/16,2016170529," 2,071.50 ",Neighbourhood Grant,Supplies & Services
Leeds City Council,13/11/2017,Citizens and Communities,Collingham Bowling Club,30/09/16,2016170530," 1,250.00 ",Locality Grant,Supplies & Services
Leeds City Council,13/11/2017,Citizens and Communities,Community Unity,02/09/16,2016170531," 2,000.00 ",Housing Grant,Supplies & Services
Leeds City Council,13/11/2017,Citizens and Communities,Community Unity,26/09/16,2016170532, 500.00 ,Housing Grant,Supplies & Services
Leeds City Council,13/11/2017,Citizens and Communities,Friends Of A War Memorial For Bramley,16/09/16,2016170533, 400.00 ,Locality Grant,Supplies & Services
Leeds City Council,13/11/2017,Citizens and Communities,Getaway Girls,07/09/16,2016170534," 3,523.05 ",Housing Grant,Supplies & Services
Leeds City Council,13/11/2017,Citizens and Communities,Groundwork Leeds,30/09/16,2016170535," 5,980.00 ",Support Grant,Supplies & Services
Leeds City Council,13/11/2017,Citizens and Communities,Gipton Supported Independent Living Ltd,13/09/16,2016170536," 16,000.00 ",Housing Grant,Supplies & Services
Leeds City Council,13/11/2017,Citizens and Communities,Health For All (Leeds) Ltd,09/09/16,2016170537, 151.19 ,Housing Grant,Supplies & Services
Leeds City Council,13/11/2017,Citizens and Communities,Kirkstall Festival,05/09/16,2016170538," 5,000.00 ",Arts grant,Supplies & Services
Leeds City Council,13/11/2017,Citizens and Communities,Leeds Citizens Advice Bureau,09/09/16,2016170539," 23,319.50 ",Advisory Grant,Supplies & Services
Leeds City Council,13/11/2017,Citizens and Communities,Ls14 Trust,12/09/16,2016170540, 630.00 ,Housing Grant,Supplies & Services
Leeds City Council,13/11/2017,Citizens and Communities,Ls14 Trust,12/09/16,2016170541, 540.00 ,Housing Grant,Supplies & Services
Leeds City Council,13/11/2017,Citizens and Communities,Ls14 Trust,12/09/16,2016170542, 630.00 ,Housing Grant,Supplies & Services
Leeds City Council,13/11/2017,Citizens and Communities,Ls14 Trust,30/09/16,2016170543, 540.00 ,Housing Grant,Supplies & Services
Leeds City Council,13/11/2017,Citizens and Communities,Leeds Univ Union,09/09/16,2016170544," 4,423.69 ",Locality Grant,Supplies & Services
Leeds City Council,13/11/2017,Citizens and Communities,Moor Allerton Elderly Care,16/09/16,2016170545, 785.00 ,Housing Grant,Supplies & Services
Leeds City Council,13/11/2017,Citizens and Communities,Morley Elderly Action,22/09/16,2016170546," 6,175.00 ",Neighbourhood Grant,Supplies & Services
Leeds City Council,13/11/2017,Citizens and Communities,Meanwood Valley Urban Farm Ltd,21/09/16,2016170547," 3,000.00 ",Support Grant,Supplies & Services
Leeds City Council,13/11/2017,Citizens and Communities,Meanwood Village Association,12/09/16,2016170548, 375.00 ,Locality Grant,Supplies & Services
Leeds City Council,13/11/2017,Citizens and Communities,Next Generation Arts,16/09/16,2016170549," 5,000.00 ",Neighbourhood Grant,Supplies & Services
Leeds City Council,13/11/2017,Citizens and Communities,Prince Philip Centre Phab Club,02/09/16,2016170550, 250.00 ,Neighbourhood Grant,Supplies & Services
Leeds City Council,13/11/2017,Citizens and Communities,Project Hope Leeds,15/09/16,2016170551, 636.79 ,Locality Grant,Supplies & Services
Leeds City Council,13/11/2017,Citizens and Communities,Right Choices,14/09/16,2016170552," 4,997.87 ",Neighbourhood Grant,Supplies & Services
Leeds City Council,13/11/2017,Citizens and Communities,Radio Asian Fever Ltd,01/09/16,2016170553," 2,000.00 ",Locality Grant,Supplies & Services
Leeds City Council,13/11/2017,Citizens and Communities,Rothwell & District Carnival Committee,16/09/16,2016170554," 3,054.00 ",Neighbourhood Grant,Supplies & Services
Leeds City Council,13/11/2017,Citizens and Communities,Shantona Womens Centre,16/09/16,2016170555, 80.00 ,Luncheon Club Grant,Supplies & Services
Leeds City Council,13/11/2017,Citizens and Communities,Seacroft Gala,09/09/16,2016170556," 1,151.80 ",Housing Grant,Supplies & Services
Leeds City Council,13/11/2017,Citizens and Communities,Street Work Soccer Academy Ltd,05/09/16,2016170557," 4,900.00 ",Housing Grant,Supplies & Services
Leeds City Council,13/11/2017,Citizens and Communities,The Ciaran Bingham Trust Foundation Trus,16/09/16,2016170558, 960.42 ,Housing Grant,Supplies & Services
Leeds City Council,13/11/2017,Citizens and Communities,The Works Skatepark Charity,21/09/16,2016170559," 2,500.00 ",Children's Services Grant,Supplies & Services
Leeds City Council,13/11/2017,Citizens and Communities,Westerton Close Elderly Community Group,26/09/16,2016170560, 500.00 ,Housing Grant,Supplies & Services
Leeds City Council,13/11/2017,Citizens and Communities,Wetherby District Scout Council,22/09/16,2016170561," 1,000.00 ",Neighbourhood Grant,Supplies & Services
Leeds City Council,13/11/2017,Citizens and Communities,Zest Health For Life,07/09/16,2016170562, 500.00 ,Neighbourhood Grant,Supplies & Services
Leeds City Council,13/11/2017,Citizens and Communities,Zest Health For Life,19/09/16,2016170563," 2,368.00 ",Neighbourhood Grant,Supplies & Services
Leeds City Council,13/11/2017,City Development,Cloth Cat Studios Ltd,12/09/16,2016170564," 10,843.00 ",Leeds Inspired Grant,Supplies & Services
Leeds City Council,13/11/2017,City Development,Casey Orr,12/09/16,2016170565," 7,250.00 ",Leeds Inspired Grant,Supplies & Services
Leeds City Council,13/11/2017,City Development,Headingley Litfest,16/09/16,2016170566," 1,900.00 ",Arts grant,Supplies & Services
Leeds City Council,13/11/2017,City Development,Makor Charitable Trust,16/09/16,2016170567," 1,900.00 ",Arts grant,Supplies & Services
Leeds City Council,13/11/2017,City Development,New Chapeltown Development Trust,12/09/16,2016170568," 4,387.00 ",Leeds Inspired Grant,Supplies & Services
Leeds City Council,13/11/2017,City Development,Olivia Santovetti,12/09/16,2016170569," 1,338.00 ",Leeds Inspired Grant,Supplies & Services
Leeds City Council,13/11/2017,City Development,St Patrick'S Day Parade,16/09/16,2016170570," 5,700.00 ",Arts grant,Supplies & Services
Leeds City Council,13/11/2017,Environment & Housing,Barnardos,23/09/16,2016170571," 3,562.50 ",Homelessness Grant,Supplies & Services
Leeds City Council,13/11/2017,Environment & Housing,Leeds & Moortown Furniture Store,13/09/16,2016170572," 1,995.00 ",Homelessness Grant,Supplies & Services
Leeds City Council,13/11/2017,Environment & Housing,Leeds & Moortown Furniture Store,13/09/16,2016170573," 18,000.00 ",Homelessness Grant,Supplies & Services
Leeds City Council,13/11/2017,Environment & Housing,St Judes Furniture Store,13/09/16,2016170574," 18,000.00 ",Homelessness Grant,Supplies & Services
Leeds City Council,13/11/2017,Strategic Accounts,Al-Hassan Education Centre,05/09/16,2016170575, 50.00 ,Locality Grant,Supplies & Services
Leeds City Council,13/11/2017,Strategic Accounts,Armley Juniors Project For Young People,19/09/16,2016170576, 260.00 ,Neighbourhood Grant,Supplies & Services
Leeds City Council,13/11/2017,Strategic Accounts,Beeston Festival,26/09/16,2016170577, 750.00 ,Neighbourhood Grant,Supplies & Services
Leeds City Council,13/11/2017,Strategic Accounts,Bilal Centre,05/09/16,2016170578," 1,349.00 ",Locality Grant,Supplies & Services
Leeds City Council,13/11/2017,Strategic Accounts,Calverley Bowling Club,19/09/16,2016170579, 200.00 ,Locality Grant,Supplies & Services
Leeds City Council,13/11/2017,Strategic Accounts,Church Gardens Coffee Club,26/09/16,2016170580, 200.00 ,Locality Grant,Supplies & Services
Leeds City Council,13/11/2017,Strategic Accounts,Crossgates & Whinmoor Youth Provision,26/09/16,2016170581, 300.00 ,Locality Grant,Supplies & Services
Leeds City Council,13/11/2017,Strategic Accounts,Daisyfield Grange Coffee Club,05/09/16,2016170582, 300.00 ,Locality Grant,Supplies & Services
Leeds City Council,13/11/2017,Strategic Accounts,For Disability Mobility,19/09/16,2016170583, 500.00 ,Neighbourhood Grant,Supplies & Services
Leeds City Council,13/11/2017,Strategic Accounts,Firthfields Community Association,26/09/16,2016170584, 100.00 ,Locality Grant,Supplies & Services
Leeds City Council,13/11/2017,Strategic Accounts,Garforth Flood Support Group,26/09/16,2016170585, 200.00 ,Locality Grant,Supplies & Services
Leeds City Council,13/11/2017,Strategic Accounts,Hope,05/09/16,2016170586, 500.00 ,Neighbourhood Grant,Supplies & Services
Leeds City Council,13/11/2017,Strategic Accounts,Headingley Veterans Social Fund,26/09/16,2016170587, 500.00 ,Locality Grant,Supplies & Services
Leeds City Council,13/11/2017,Strategic Accounts,Khaanz Badminton Club,12/09/16,2016170588, 200.00 ,Locality Grant,Supplies & Services
Leeds City Council,13/11/2017,Strategic Accounts,Khaanz Badminton Club,12/09/16,2016170589, 170.00 ,Locality Grant,Supplies & Services
Leeds City Council,13/11/2017,Strategic Accounts,Khaanz Badminton Club,05/09/16,2016170590, 150.00 ,Locality Grant,Supplies & Services
Leeds City Council,13/11/2017,Strategic Accounts,Leeds Irish Health & Homes,05/09/16,2016170591, 100.00 ,Locality Grant,Supplies & Services
Leeds City Council,13/11/2017,Strategic Accounts,Leeds Community Trust,12/09/16,2016170592, 350.00 ,Locality Grant,Supplies & Services
Leeds City Council,13/11/2017,Strategic Accounts,Leeds Community Trust,19/09/16,2016170593, 300.00 ,Locality Grant,Supplies & Services
Leeds City Council,13/11/2017,Strategic Accounts,Leeds Community Trust,26/09/16,2016170594, 150.00 ,Locality Grant,Supplies & Services
Leeds City Council,13/11/2017,Strategic Accounts,Rooms Lane Allotment Association,26/09/16,2016170595, 150.00 ,Locality Grant,Supplies & Services
Leeds City Council,13/11/2017,Strategic Accounts,Rothwell & District Carnival Committee,12/09/16,2016170596, 300.00 ,Neighbourhood Grant,Supplies & Services
Leeds City Council,13/11/2017,Strategic Accounts,Royal Voluntary Service,26/09/16,2016170597, 100.00 ,Locality Grant,Supplies & Services
Leeds City Council,13/11/2017,Strategic Accounts,Sports On Saturday,19/09/16,2016170598, 400.00 ,Locality Grant,Supplies & Services
Leeds City Council,13/11/2017,Strategic Accounts,St Cyprians With St James Church,05/09/16,2016170599, 300.00 ,Neighbourhood Grant,Supplies & Services
Leeds City Council,13/11/2017,Strategic Accounts,St Mary'S Woodkirk Pcc,12/09/16,2016170600, 400.00 ,Locality Grant,Supplies & Services
Leeds City Council,13/11/2017,Strategic Accounts,Swarcliffe Baptist Church,12/09/16,2016170601, 200.00 ,Locality Grant,Supplies & Services
Leeds City Council,13/11/2017,Strategic Accounts,Swillington Welfare,19/09/16,2016170602, 500.00 ,Locality Grant,Supplies & Services
Leeds City Council,13/11/2017,Strategic Accounts,Swinnow Community Centre,12/09/16,2016170603, 120.00 ,Housing Grant,Supplies & Services
Leeds City Council,13/11/2017,Strategic Accounts,The Conservation Volunteers,05/09/16,2016170604, 300.00 ,Support Grant,Supplies & Services
Leeds City Council,13/11/2017,Strategic Accounts,Whinmoor Juniors Rlfc,19/09/16,2016170605, 200.00 ,Locality Grant,Supplies & Services
Leeds City Council,13/11/2017,Strategic Landlord,Adel Crag Community Association,19/09/16,2016170606, 260.00 ,Housing Grant,Supplies & Services
Leeds City Council,13/11/2017,Strategic Landlord,Adel Crag Community Association,19/09/16,2016170607, 100.00 ,Housing Grant,Supplies & Services
Leeds City Council,13/11/2017,Strategic Landlord,Glenthorpe & Walford Community Group,06/09/16,2016170608, 100.00 ,Housing Grant,Supplies & Services
Leeds City Council,13/11/2017,Strategic Landlord,Leeds Play Network,16/09/16,2016170609, 912.00 ,Children's Services Grant,Supplies & Services
Leeds City Council,13/11/2017,Strategic Landlord,Leeds United Foundation,26/09/16,2016170610," 12,600.46 ",Housing Grant,Supplies & Services
Leeds City Council,13/11/2017,Strategic Landlord,Saxton Gardens Residents Association,02/09/16,2016170611, 950.00 ,Housing Grant,Supplies & Services
Leeds City Council,13/11/2017,Strategic Landlord,South Leeds Life Group,27/09/16,2016170612," 2,392.00 ",Neighbourhood Grant,Supplies & Services
Leeds City Council,13/11/2017,Strategic Landlord,St Augustines Court Residents,07/09/16,2016170613," 1,000.00 ",Housing Grant,Supplies & Services
Leeds City Council,13/11/2017,Strategic Landlord,Stoney Rock Court Sheltered Housing,06/09/16,2016170614, 100.00 ,Housing Grant,Supplies & Services
Leeds City Council,13/11/2017,Strategic Landlord,Street Work Soccer Academy Ltd,19/09/16,2016170615," 5,000.00 ",Housing Grant,Supplies & Services
Leeds City Council,13/11/2017,Strategic Landlord,The Ciaran Bingham Trust Foundation Trus,27/09/16,2016170616," 3,456.00 ",Housing Grant,Supplies & Services
Leeds City Council,13/11/2017,Strategic Landlord,Thorpe Primary School Pta,08/09/16,2016170617," 1,000.00 ",Housing Grant,Supplies & Services
Leeds City Council,13/11/2017,Strategic Landlord,Tingley Tara (Tenants And Residents),16/09/16,2016170618, 500.00 ,Housing Grant,Supplies & Services
Leeds City Council,13/11/2017,Adult Social Care,Shadwell Independent Library And Arts Ce,24/10/16,2016170619, 268.15 ,Adult Social Care Grant,Supplies & Services
Leeds City Council,13/11/2017,Citizens and Communities,Aireborough Supported Activities Scheme,12/10/16,2016170620," 1,622.00 ",Children's Services Grant,Supplies & Services
Leeds City Council,13/11/2017,Citizens and Communities,Angel Of Youths,13/10/16,2016170621," 3,654.00 ",Locality Grant,Supplies & Services
Leeds City Council,13/11/2017,Citizens and Communities,Angel Of Youths,13/10/16,2016170622," 3,654.00 ",Locality Grant,Supplies & Services
Leeds City Council,13/11/2017,Citizens and Communities,Barca - Leeds,06/10/16,2016170623," 1,987.35 ",Housing Grant,Supplies & Services
Leeds City Council,13/11/2017,Citizens and Communities,Barca - Leeds,06/10/16,2016170624," 8,750.00 ",Housing Grant,Supplies & Services
Leeds City Council,13/11/2017,Citizens and Communities,Barca - Leeds,31/10/16,2016170625," 8,750.00 ",Housing Grant,Supplies & Services
Leeds City Council,13/11/2017,Citizens and Communities,Beeston Festival,14/10/16,2016170626," 5,000.00 ",Neighbourhood Grant,Supplies & Services
Leeds City Council,13/11/2017,Citizens and Communities,Behno Group (Sisters),07/10/16,2016170627, 645.72 ,Neighbourhood Grant,Supplies & Services
Leeds City Council,13/11/2017,Citizens and Communities,Behno Group (Sisters),07/10/16,2016170628," 2,170.00 ",Neighbourhood Grant,Supplies & Services
Leeds City Council,13/11/2017,Citizens and Communities,Better Leeds Communities,13/10/16,2016170629," 1,305.03 ",Housing Grant,Supplies & Services
Leeds City Council,13/11/2017,Citizens and Communities,Black Health Initiative,05/10/16,2016170630, 100.00 ,Arts grant,Supplies & Services
Leeds City Council,13/11/2017,Citizens and Communities,Chapeltown Community Netball,07/10/16,2016170631," 2,483.81 ",Housing Grant,Supplies & Services
Leeds City Council,13/11/2017,Citizens and Communities,Christ Church Armley Community,12/10/16,2016170632," 2,469.54 ",Locality Grant,Supplies & Services
Leeds City Council,13/11/2017,Citizens and Communities,Fairfield Enterprise And Community Cic,18/10/16,2016170633," 1,250.00 ",Housing Grant,Supplies & Services
Leeds City Council,13/11/2017,Citizens and Communities,Heads Together Productions Ltd,18/10/16,2016170634," 2,768.00 ",Arts grant,Supplies & Services
Leeds City Council,13/11/2017,Citizens and Communities,Hunslet Nelson Cricket Club,14/10/16,2016170635," 2,479.57 ",Locality Grant,Supplies & Services
Leeds City Council,13/11/2017,Citizens and Communities,Leeds Citizens Advice Bureau,10/10/16,2016170636," 11,659.75 ",Advisory Grant,Supplies & Services
Leeds City Council,13/11/2017,Citizens and Communities,Leeds Citizens Advice Bureau,07/10/16,2016170637," 401,254.00 ",Advisory Grant,Supplies & Services
Leeds City Council,13/11/2017,Citizens and Communities,Ls14 Trust,07/10/16,2016170638, 200.00 ,Housing Grant,Supplies & Services
Leeds City Council,13/11/2017,Citizens and Communities,Leeds Mandela Warriors,07/10/16,2016170639," 2,120.00 ",Sports Grant,Supplies & Services
Leeds City Council,13/11/2017,Citizens and Communities,Leeds United Foundation,19/10/16,2016170640, 500.00 ,Sports Grant,Supplies & Services
Leeds City Council,13/11/2017,Citizens and Communities,Meanwood Junior Playscheme,19/10/16,2016170641, 725.00 ,Housing Grant,Supplies & Services
Leeds City Council,13/11/2017,Citizens and Communities,New Wortley Community Association,18/10/16,2016170642," 2,500.00 ",Housing Grant,Supplies & Services
Leeds City Council,13/11/2017,Citizens and Communities,New Wortley Community Association,18/10/16,2016170643," 2,500.00 ",Housing Grant,Supplies & Services
Leeds City Council,13/11/2017,Citizens and Communities,Northern Ballet Theatre Limited,19/10/16,2016170644, 500.00 ,Arts grant,Supplies & Services
Leeds City Council,13/11/2017,Citizens and Communities,Red Ladder Theatre Co Ltd,12/10/16,2016170645," 1,811.00 ",Arts grant,Supplies & Services
Leeds City Council,13/11/2017,Citizens and Communities,Rjc Productions Ltd,12/10/16,2016170646," 3,129.25 ",Arts grant,Supplies & Services
Leeds City Council,13/11/2017,Citizens and Communities,Radio Asian Fever Ltd,19/10/16,2016170647," 2,000.00 ",Locality Grant,Supplies & Services
Leeds City Council,13/11/2017,Citizens and Communities,Robin Hood Residents Association,21/10/16,2016170648, 500.00 ,Housing Grant,Supplies & Services
Leeds City Council,13/11/2017,Citizens and Communities,Seagulls Re-Use Ltd,19/10/16,2016170649, 500.00 ,Housing Grant,Supplies & Services
Leeds City Council,13/11/2017,Citizens and Communities,South Leeds Life Group,03/10/16,2016170650," 1,000.00 ",Neighbourhood Grant,Supplies & Services
Leeds City Council,13/11/2017,Citizens and Communities,St Marys The Blessed Virgin Hawksworth,05/10/16,2016170651," 1,250.00 ",Neighbourhood Grant,Supplies & Services
Leeds City Council,13/11/2017,Citizens and Communities,Street Work Soccer Academy Ltd,20/10/16,2016170652," 4,375.00 ",Housing Grant,Supplies & Services
Leeds City Council,13/11/2017,Citizens and Communities,Street Work Soccer Academy Ltd,19/10/16,2016170653," 1,920.00 ",Housing Grant,Supplies & Services
Leeds City Council,13/11/2017,Citizens and Communities,Street Work Soccer Academy Ltd,19/10/16,2016170654," 1,920.00 ",Housing Grant,Supplies & Services
Leeds City Council,13/11/2017,Citizens and Communities,The Conservation Volunteers,28/10/16,2016170655, 900.00 ,Support Grant,Supplies & Services
Leeds City Council,13/11/2017,Citizens and Communities,Upbeat Social Enterprises Cic,18/10/16,2016170656," 2,000.00 ",Neighbourhood Grant,Supplies & Services
Leeds City Council,13/11/2017,Citizens and Communities,Upbeat Social Enterprises Cic,18/10/16,2016170657," 2,000.00 ",Neighbourhood Grant,Supplies & Services
Leeds City Council,13/11/2017,Environment & Housing,Groundwork Leeds,28/10/16,2016170658," 10,000.00 ",Support Grant,Supplies & Services
Social Services Pooled Budgets,13/11/2017,Jcs For People With Learning Disabilitie,Leeds People First,14/10/16,2016170659," 2,177.75 ",Social Services Pooled Budget grant,Supplies & Services
Social Services Pooled Budgets,13/11/2017,Jcs For People With Learning Disabilitie,Meanwood Valley Urban Farm Ltd,14/10/16,2016170660," 17,826.00 ",Support Grant,Supplies & Services
Leeds City Council,13/11/2017,Strategic Accounts,Angel Of Youths,27/10/16,2016170661, 325.00 ,Locality Grant,Supplies & Services
Leeds City Council,13/11/2017,Strategic Accounts,Association Of Ukranians,17/10/16,2016170662, 250.00 ,Locality Grant,Supplies & Services
Leeds City Council,13/11/2017,Strategic Accounts,Atlanta Street Group Constitution,10/10/16,2016170663, 300.00 ,Locality Grant,Supplies & Services
Leeds City Council,13/11/2017,Strategic Accounts,Barca - Leeds,03/10/16,2016170664, 200.00 ,Housing Grant,Supplies & Services
Leeds City Council,13/11/2017,Strategic Accounts,Beeston In Bloom,24/10/16,2016170665, 750.00 ,Locality Grant,Supplies & Services
Leeds City Council,13/11/2017,Strategic Accounts,Bramley Elderly Action,10/10/16,2016170666, 300.00 ,Neighbourhood Grant,Supplies & Services
Leeds City Council,13/11/2017,Strategic Accounts,Beckett Park Community Association,03/10/16,2016170667, 200.00 ,Locality Grant,Supplies & Services
Leeds City Council,13/11/2017,Strategic Accounts,Bramley Phoenix,17/10/16,2016170668, 450.00 ,Locality Grant,Supplies & Services
Leeds City Council,13/11/2017,Strategic Accounts,Burnsall Court Tenants Group,03/10/16,2016170669, 199.00 ,Housing Grant,Supplies & Services
Leeds City Council,13/11/2017,Strategic Accounts,Christ Church Halton,31/10/16,2016170670, 300.00 ,Locality Grant,Supplies & Services
Leeds City Council,13/11/2017,Strategic Accounts,Cameo,03/10/16,2016170671, 300.00 ,Locality Grant,Supplies & Services
Leeds City Council,13/11/2017,Strategic Accounts,Cameo,10/10/16,2016170672, 500.00 ,Locality Grant,Supplies & Services
Leeds City Council,13/11/2017,Strategic Accounts,Carlton Primary School Pta,24/10/16,2016170673, 300.00 ,Neighbourhood Grant,Supplies & Services
Leeds City Council,13/11/2017,Strategic Accounts,Carlton Primary School Pta,31/10/16,2016170674, 300.00 ,Neighbourhood Grant,Supplies & Services
Leeds City Council,13/11/2017,Strategic Accounts,Carlton Village Residents Association,17/10/16,2016170675, 300.00 ,Housing Grant,Supplies & Services
Leeds City Council,13/11/2017,Strategic Accounts,Cielo,10/10/16,2016170676, 100.00 ,Locality Grant,Supplies & Services
Leeds City Council,13/11/2017,Strategic Accounts,Denshaws Newlands And Rydals Residents,03/10/16,2016170677, 100.00 ,Locality Grant,Supplies & Services
Leeds City Council,13/11/2017,Strategic Accounts,East Ardsley Community Association,03/10/16,2016170678, 200.00 ,Housing Grant,Supplies & Services
Leeds City Council,13/11/2017,Strategic Accounts,East & West Ardsley Royal British Legion,24/10/16,2016170679, 250.00 ,Locality Grant,Supplies & Services
Leeds City Council,13/11/2017,Strategic Accounts,Farsley Business Forum,03/10/16,2016170680, 400.00 ,Grant to Business,Supplies & Services
Leeds City Council,13/11/2017,Strategic Accounts,Friends Of Beckett Park,03/10/16,2016170681, 200.00 ,Locality Grant,Supplies & Services
Leeds City Council,13/11/2017,Strategic Accounts,Friends Of Micklefield,03/10/16,2016170682, 300.00 ,Locality Grant,Supplies & Services
Leeds City Council,13/11/2017,Strategic Accounts,Friends Of The Hollies,03/10/16,2016170683, 200.00 ,Locality Grant,Supplies & Services
Leeds City Council,13/11/2017,Strategic Accounts,Friends Of Parkinsons Park,31/10/16,2016170684, 150.00 ,Locality Grant,Supplies & Services
Leeds City Council,13/11/2017,Strategic Accounts,Guide Dogs For The Blind Association,03/10/16,2016170685, 100.00 ,Locality Grant,Supplies & Services
Leeds City Council,13/11/2017,Strategic Accounts,Garforth Community Christmas Committee,10/10/16,2016170686, 100.00 ,Locality Grant,Supplies & Services
Leeds City Council,13/11/2017,Strategic Accounts,Grief Series,03/10/16,2016170687, 150.00 ,Arts grant,Supplies & Services
Leeds City Council,13/11/2017,Strategic Accounts,Guiseley In Bloom,24/10/16,2016170688, 150.00 ,Locality Grant,Supplies & Services
Leeds City Council,13/11/2017,Strategic Accounts,Hamara (Hlc),03/10/16,2016170689," 1,000.00 ",Locality Grant,Supplies & Services
Leeds City Council,13/11/2017,Strategic Accounts,Hamara (Hlc),24/10/16,2016170690," 1,000.00 ",Locality Grant,Supplies & Services
Leeds City Council,13/11/2017,Strategic Accounts,Hunslet Parish Church Guides,03/10/16,2016170691, 430.00 ,Locality Grant,Supplies & Services
Leeds City Council,13/11/2017,Strategic Accounts,Leeds Refugee Forum,17/10/16,2016170692, 300.00 ,Supplementary School Grant,Supplies & Services
Leeds City Council,13/11/2017,Strategic Accounts,Lewisham Court Residents Association,03/10/16,2016170693, 100.00 ,Housing Grant,Supplies & Services
Leeds City Council,13/11/2017,Strategic Accounts,Lower Wortley Methodist Church,27/10/16,2016170694, 861.04 ,Locality Grant,Supplies & Services
Leeds City Council,13/11/2017,Strategic Accounts,Morley Elderly Action,03/10/16,2016170695, 100.00 ,Neighbourhood Grant,Supplies & Services
Leeds City Council,13/11/2017,Strategic Accounts,Methley Community Centre,31/10/16,2016170696, 200.00 ,Locality Grant,Supplies & Services
Leeds City Council,13/11/2017,Strategic Accounts,Midland House Social Club,24/10/16,2016170697, 200.00 ,Locality Grant,Supplies & Services
Leeds City Council,13/11/2017,Strategic Accounts,Morley United Services Club Ltd,31/10/16,2016170698, 150.00 ,Locality Grant,Supplies & Services
Leeds City Council,13/11/2017,Strategic Accounts,Roundhay Environmental Action Project,17/10/16,2016170699, 75.00 ,Locality Grant,Supplies & Services
Leeds City Council,13/11/2017,Strategic Accounts,Radharaman Society,10/10/16,2016170700, 300.00 ,Neighbourhood Grant,Supplies & Services
Leeds City Council,13/11/2017,Strategic Accounts,Radharaman Society,17/10/16,2016170701, 100.00 ,Neighbourhood Grant,Supplies & Services
Leeds City Council,13/11/2017,Strategic Accounts,Radharaman Society,24/10/16,2016170702, 250.00 ,Neighbourhood Grant,Supplies & Services
Leeds City Council,13/11/2017,Strategic Accounts,Rawdon St Peter'S C Of E School Pta,03/10/16,2016170703, 500.00 ,Locality Grant,Supplies & Services
Leeds City Council,13/11/2017,Strategic Accounts,Robin Hood Residents Association,24/10/16,2016170704, 100.00 ,Housing Grant,Supplies & Services
Leeds City Council,13/11/2017,Strategic Accounts,Rodley Village Community Group,10/10/16,2016170705, 100.00 ,Locality Grant,Supplies & Services
Leeds City Council,13/11/2017,Strategic Accounts,Rothwell & District Carnival Committee,31/10/16,2016170706, 438.00 ,Neighbourhood Grant,Supplies & Services
Leeds City Council,13/11/2017,Strategic Accounts,Rothwell N & S Aged People'S Welfare,17/10/16,2016170707, 150.00 ,Locality Grant,Supplies & Services
Leeds City Council,13/11/2017,Strategic Accounts,Rothwell Tenants & Residents Association,31/10/16,2016170708, 150.00 ,Housing Grant,Supplies & Services
Leeds City Council,13/11/2017,Strategic Accounts,St Augustines Court Residents,31/10/16,2016170709, 150.00 ,Housing Grant,Supplies & Services
Leeds City Council,13/11/2017,Strategic Accounts,Thorpe Residents & Coffee Morning Group,03/10/16,2016170710, 200.00 ,Locality Grant,Supplies & Services
Leeds City Council,13/11/2017,Strategic Accounts,Woodhouse Ridge Action Group,17/10/16,2016170711, 750.00 ,Locality Grant,Supplies & Services
Leeds City Council,13/11/2017,Strategic Accounts,Weetwood Lane Residents' Association,10/10/16,2016170712, 285.00 ,Locality Grant,Supplies & Services
Leeds City Council,13/11/2017,Strategic Accounts,West Park Residents Association,06/10/16,2016170713, 400.00 ,Locality Grant,Supplies & Services
Leeds City Council,13/11/2017,Strategic Accounts,Westerton Close Elderly Community Group,03/10/16,2016170714, 100.00 ,Housing Grant,Supplies & Services
Leeds City Council,13/11/2017,Strategic Landlord,Barca - Leeds,12/10/16,2016170715," 2,735.00 ",Housing Grant,Supplies & Services
Leeds City Council,13/11/2017,Strategic Landlord,Cross Green Residents Association,21/10/16,2016170716," 1,000.00 ",Locality Grant,Supplies & Services
Leeds City Council,13/11/2017,Strategic Landlord,East Ardsley Luncheon Club,20/10/16,2016170717, 970.00 ,Locality Grant,Supplies & Services
Leeds City Council,13/11/2017,Strategic Landlord,Glenthorpe & Walford Community Group,18/10/16,2016170718, 750.00 ,Housing Grant,Supplies & Services
Leeds City Council,13/11/2017,Strategic Landlord,Hyde Park Methodist Mission Church,25/10/16,2016170719, 144.00 ,Housing Grant,Supplies & Services
Leeds City Council,13/11/2017,Strategic Landlord,Ls14 Trust,11/10/16,2016170720, 899.00 ,Housing Grant,Supplies & Services
Leeds City Council,13/11/2017,Strategic Landlord,Ls14 Trust,31/10/16,2016170721," 1,000.00 ",Housing Grant,Supplies & Services
Leeds City Council,13/11/2017,Strategic Landlord,Ls14 Trust,31/10/16,2016170722," 1,000.00 ",Housing Grant,Supplies & Services
Leeds City Council,13/11/2017,Strategic Landlord,Ls14 Trust,31/10/16,2016170723, 244.00 ,Housing Grant,Supplies & Services
Leeds City Council,13/11/2017,Strategic Landlord,Rothwell & District Live At Home Scheme,14/10/16,2016170724," 5,000.00 ",Luncheon Club Grant,Supplies & Services
Leeds City Council,13/11/2017,Strategic Landlord,Spring Close Gardens Tara,13/10/16,2016170725, 136.00 ,Housing Grant,Supplies & Services
Leeds City Council,13/11/2017,Strategic Landlord,Stoney Rock Court Sheltered Housing,13/10/16,2016170726, 800.00 ,Housing Grant,Supplies & Services
Leeds City Council,13/11/2017,Strategic Landlord,The West Yorkshire Crc Ltd,07/10/16,2016170727," 14,642.99 ",Housing Grant,Supplies & Services
Leeds City Council,13/11/2017,Childrens Services,Unity Enterprise,14/11/16,2016170728, 20.00 ,Not a grant - miscode,Supplies & Services
Leeds City Council,13/11/2017,Citizens and Communities,24th S W Scout Group,18/11/16,2016170729, 250.00 ,Locality Grant,Supplies & Services
Leeds City Council,13/11/2017,Citizens and Communities,Alwoodley Park Methodist Luncheon Club,16/11/16,2016170730, 500.00 ,Luncheon Club Grant,Supplies & Services
Leeds City Council,13/11/2017,Citizens and Communities,Armley Helping Hands,25/11/16,2016170731, 500.00 ,Housing Grant,Supplies & Services
Leeds City Council,13/11/2017,Citizens and Communities,Ardsley Bowling Club,25/11/16,2016170732," 1,000.00 ",Housing Grant,Supplies & Services
Leeds City Council,13/11/2017,Citizens and Communities,Arthington Parish Room,08/11/16,2016170733, 758.00 ,Neighbourhood Grant,Supplies & Services
Leeds City Council,13/11/2017,Citizens and Communities,Black Health Initiative,22/11/16,2016170734," 1,928.36 ",Arts grant,Supplies & Services
Leeds City Council,13/11/2017,Citizens and Communities,Bramley Lights Project,16/11/16,2016170735," 1,670.00 ",Neighbourhood Grant,Supplies & Services
Leeds City Council,13/11/2017,Citizens and Communities,Caring Together In Woodhouse And Little,09/11/16,2016170736," 2,304.04 ",Locality Grant,Supplies & Services
Leeds City Council,13/11/2017,Citizens and Communities,Chapeltown Arts Festival Ltd,09/11/16,2016170737, 400.00 ,Housing Grant,Supplies & Services
Leeds City Council,13/11/2017,Citizens and Communities,Collingham And Linton Cricket Club,14/11/16,2016170738," 6,143.27 ",Neighbourhood Grant,Supplies & Services
Leeds City Council,13/11/2017,Citizens and Communities,Diocese Of Leeds St Jeanne Jugan,18/11/16,2016170739, 100.00 ,Locality Grant,Supplies & Services
Leeds City Council,13/11/2017,Citizens and Communities,Ebor Gardens Advice Centre,23/11/16,2016170740, 246.00 ,Neighbourhood Grant,Supplies & Services
Leeds City Council,13/11/2017,Citizens and Communities,Garforth Methodist Church,02/11/16,2016170741, 550.00 ,Sports Grant,Supplies & Services
Leeds City Council,13/11/2017,Citizens and Communities,Health For All (Leeds) Ltd,09/11/16,2016170742," 1,920.00 ",Housing Grant,Supplies & Services
Leeds City Council,13/11/2017,Citizens and Communities,Hunslet Club,17/11/16,2016170743," 5,797.55 ",Neighbourhood Grant,Supplies & Services
Leeds City Council,13/11/2017,Citizens and Communities,Interact Church & Community Partnership,18/11/16,2016170744," 4,640.80 ",Locality Grant,Supplies & Services
Leeds City Council,13/11/2017,Citizens and Communities,Leeds Play Network,09/11/16,2016170745," 7,500.00 ",Children's Services Grant,Supplies & Services
Leeds City Council,13/11/2017,Citizens and Communities,Ls14 Trust,17/11/16,2016170746," 1,300.00 ",Housing Grant,Supplies & Services
Leeds City Council,13/11/2017,Citizens and Communities,Ls14 Trust,17/11/16,2016170747, 720.00 ,Housing Grant,Supplies & Services
Leeds City Council,13/11/2017,Citizens and Communities,Leeds Somali Youth,04/11/16,2016170748," 1,400.00 ",Locality Grant,Supplies & Services
Leeds City Council,13/11/2017,Citizens and Communities,Lofthouse 2000 Brass Band,30/11/16,2016170749, 150.00 ,Locality Grant,Supplies & Services
Leeds City Council,13/11/2017,Citizens and Communities,New Wortley Community Association,11/11/16,2016170750," 4,235.00 ",Housing Grant,Supplies & Services
Leeds City Council,13/11/2017,Citizens and Communities,Next Generation Arts,23/11/16,2016170751," 6,716.00 ",Neighbourhood Grant,Supplies & Services
Leeds City Council,13/11/2017,Citizens and Communities,St Marys The Blessed Virgin Hawksworth,10/11/16,2016170752," 1,250.00 ",Neighbourhood Grant,Supplies & Services
Leeds City Council,13/11/2017,Citizens and Communities,St.Agnes United Church Hall,23/11/16,2016170753," 1,000.00 ",Locality Grant,Supplies & Services
Leeds City Council,13/11/2017,Citizens and Communities,The Cardigan Centre,18/11/16,2016170754," 3,082.00 ",Housing Grant,Supplies & Services
Leeds City Council,13/11/2017,Citizens and Communities,The Salvation Army,04/11/16,2016170755," 1,060.00 ",Locality Grant,Supplies & Services
Leeds City Council,13/11/2017,Citizens and Communities,Tingley With Woodkirk In Bloom,21/11/16,2016170756, 500.00 ,Neighbourhood Grant,Supplies & Services
Leeds City Council,13/11/2017,Citizens and Communities,Voluntary Action-Leeds,10/11/16,2016170757," 74,411.00 ",Children's Services Grant,Supplies & Services
Leeds City Council,13/11/2017,Citizens and Communities,Woodsley Road Community Centre,08/11/16,2016170758, 96.00 ,Neighbourhood Grant,Supplies & Services
Leeds City Council,13/11/2017,Citizens and Communities,Wycas,10/11/16,2016170759," 10,112.75 ",Infrastructure Support Grant,Supplies & Services
Leeds City Council,13/11/2017,Citizens and Communities,Young Minds,09/11/16,2016170760," 2,905.00 ",Neighbourhood Grant,Supplies & Services
Leeds City Council,13/11/2017,Citizens and Communities,Zest Health For Life,09/11/16,2016170761," 2,971.99 ",Neighbourhood Grant,Supplies & Services
Leeds City Council,13/11/2017,Citizens and Communities,Zest Health For Life,18/11/16,2016170762," 1,769.54 ",Neighbourhood Grant,Supplies & Services
Leeds City Council,13/11/2017,City Development,Dazl,17/11/16,2016170763, 641.00 ,Arts grant,Supplies & Services
Leeds City Council,13/11/2017,City Development,Interplay Theatre Trust,17/11/16,2016170764," 1,211.25 ",Arts grant,Supplies & Services
Leeds City Council,13/11/2017,City Development,Red Ladder Theatre Co Ltd,17/11/16,2016170765, 570.00 ,Arts grant,Supplies & Services
Leeds City Council,13/11/2017,City Development,Seagulls Re-Use Ltd,01/11/16,2016170766," 1,000.00 ",Leeds Inspired Grant,Supplies & Services
Leeds City Council,13/11/2017,City Development,Slanjayvah Danza,23/11/16,2016170767," 1,000.00 ",Leeds Inspired Grant,Supplies & Services
Leeds City Council,13/11/2017,City Development,West Yorkshire Playhouse,30/11/16,2016170768," 59,850.00 ",Arts grant,Supplies & Services
Leeds City Council,13/11/2017,Environment & Housing,Groundwork Leeds,16/11/16,2016170769," 10,000.00 ",Support Grant,Supplies & Services
Leeds City Council,13/11/2017,Environment & Housing,Groundwork Leeds,08/11/16,2016170770," 9,839.75 ",Support Grant,Supplies & Services
Leeds City Council,13/11/2017,Strategic Accounts,1st Crossgate Brownies,14/11/16,2016170771, 500.00 ,Neighbourhood Grant,Supplies & Services
Leeds City Council,13/11/2017,Strategic Accounts,Amaranth Football Club,07/11/16,2016170772, 200.00 ,Locality Grant,Supplies & Services
Leeds City Council,13/11/2017,Strategic Accounts,Allerton Bywater Cricket Club,28/11/16,2016170773, 371.00 ,Locality Grant,Supplies & Services
Leeds City Council,13/11/2017,Strategic Accounts,Burmantofts Senior Action,21/11/16,2016170774, 250.00 ,Neighbourhood Grant,Supplies & Services
Leeds City Council,13/11/2017,Strategic Accounts,Barwick Bowling Club,21/11/16,2016170775," 1,500.00 ",Neighbourhood Grant,Supplies & Services
Leeds City Council,13/11/2017,Strategic Accounts,Bridge Community Church,28/11/16,2016170776, 100.00 ,Locality Grant,Supplies & Services
Leeds City Council,13/11/2017,Strategic Accounts,Brudenell Parents Group,21/11/16,2016170777, 600.00 ,Locality Grant,Supplies & Services
Leeds City Council,13/11/2017,Strategic Accounts,Burley Top Community Network,28/11/16,2016170778, 300.00 ,Housing Grant,Supplies & Services
Leeds City Council,13/11/2017,Strategic Accounts,Burley Top Community Network,08/11/16,2016170779, 300.00 ,Housing Grant,Supplies & Services
Leeds City Council,13/11/2017,Strategic Accounts,Caring Together In Woodhouse And Little,14/11/16,2016170780, 400.00 ,Locality Grant,Supplies & Services
Leeds City Council,13/11/2017,Strategic Accounts,Crimbles Sheltered Housing Committee,14/11/16,2016170781, 400.00 ,Locality Grant,Supplies & Services
Leeds City Council,13/11/2017,Strategic Accounts,Cross Green Residents Association,07/11/16,2016170782, 100.00 ,Locality Grant,Supplies & Services
Leeds City Council,13/11/2017,Strategic Accounts,Drighlington Parish Council,21/11/16,2016170783, 100.00 ,Locality Grant,Supplies & Services
Leeds City Council,13/11/2017,Strategic Accounts,East Ardsley Art Club,14/11/16,2016170784, 100.00 ,Locality Grant,Supplies & Services
Leeds City Council,13/11/2017,Strategic Accounts,East Ardsley Luncheon Club,07/11/16,2016170785, 200.00 ,Locality Grant,Supplies & Services
Leeds City Council,13/11/2017,Strategic Accounts,Farsley Business Forum,14/11/16,2016170786, 825.00 ,Grant to Business,Supplies & Services
Leeds City Council,13/11/2017,Strategic Accounts,Garforth Tigers,21/11/16,2016170787, 250.00 ,Locality Grant,Supplies & Services
Leeds City Council,13/11/2017,Strategic Accounts,Glenthorpe & Walford Community Group,28/11/16,2016170788, 150.00 ,Housing Grant,Supplies & Services
Leeds City Council,13/11/2017,Strategic Accounts,Hyde Park Source,21/11/16,2016170789, 500.00 ,Housing Grant,Supplies & Services
Leeds City Council,13/11/2017,Strategic Accounts,Headingley Network,14/11/16,2016170790, 300.00 ,Locality Grant,Supplies & Services
Leeds City Council,13/11/2017,Strategic Accounts,Hilltop Good Companions,21/11/16,2016170791, 200.00 ,Locality Grant,Supplies & Services
Leeds City Council,13/11/2017,Strategic Accounts,Interact Church & Community Partnership,14/11/16,2016170792, 600.00 ,Locality Grant,Supplies & Services
Leeds City Council,13/11/2017,Strategic Accounts,John Ryley House Community Centre,21/11/16,2016170793, 219.50 ,Locality Grant,Supplies & Services
Leeds City Council,13/11/2017,Strategic Accounts,Kangaroo Kids Pre-School,14/11/16,2016170794, 93.79 ,Locality Grant,Supplies & Services
Leeds City Council,13/11/2017,Strategic Accounts,Leeds Mind,28/11/16,2016170795, 200.00 ,Locality Grant,Supplies & Services
Leeds City Council,13/11/2017,Strategic Accounts,Leeds Chinese Community Association Ltd,07/11/16,2016170796, 300.00 ,Arts grant,Supplies & Services
Leeds City Council,13/11/2017,Strategic Accounts,Leeds Minster Church,08/11/16,2016170797," 10,000.00 ",Civic Grant,Supplies & Services
Leeds City Council,13/11/2017,Strategic Accounts,Lofthouse Millennium Green,28/11/16,2016170798, 100.00 ,Locality Grant,Supplies & Services
Leeds City Council,13/11/2017,Strategic Accounts,Lord Mayor'S Charity Appeal,28/11/16,2016170799, 500.00 ,Locality Grant,Supplies & Services
Leeds City Council,13/11/2017,Strategic Accounts,Moor Allerton Elderly Care,28/11/16,2016170800, 100.00 ,Housing Grant,Supplies & Services
Leeds City Council,13/11/2017,Strategic Accounts,Moor Allerton Elderly Care,07/11/16,2016170801, 100.00 ,Housing Grant,Supplies & Services
Leeds City Council,13/11/2017,Strategic Accounts,Morley Community Church,07/11/16,2016170802, 200.00 ,Housing Grant,Supplies & Services
Leeds City Council,13/11/2017,Strategic Accounts,Methley Village Lights Committee,28/11/16,2016170803, 300.00 ,Locality Grant,Supplies & Services
Leeds City Council,13/11/2017,Strategic Accounts,Midland House Social Club,07/11/16,2016170804, 400.00 ,Locality Grant,Supplies & Services
Leeds City Council,13/11/2017,Strategic Accounts,New Wortley Community Association,28/11/16,2016170805, 300.00 ,Housing Grant,Supplies & Services
Leeds City Council,13/11/2017,Strategic Accounts,Older Peoples Action In The Locality,28/11/16,2016170806, 100.00 ,Housing Grant,Supplies & Services
Leeds City Council,13/11/2017,Strategic Accounts,Pasture View Social Committee,17/11/16,2016170807, 150.00 ,Locality Grant,Supplies & Services
Leeds City Council,13/11/2017,Strategic Accounts,Pool Sheltered Housing Social Club,07/11/16,2016170808, 150.00 ,Housing Grant,Supplies & Services
Leeds City Council,13/11/2017,Strategic Accounts,Pudsey Lights Committee,14/11/16,2016170809," 1,400.00 ",Locality Grant,Supplies & Services
Leeds City Council,13/11/2017,Strategic Accounts,Pudsey Swimming Club,28/11/16,2016170810, 400.00 ,Locality Grant,Supplies & Services
Leeds City Council,13/11/2017,Strategic Accounts,Queensview Residents Association,28/11/16,2016170811, 150.00 ,Housing Grant,Supplies & Services
Leeds City Council,13/11/2017,Strategic Accounts,Radharaman Society,07/11/16,2016170812, 250.00 ,Neighbourhood Grant,Supplies & Services
Leeds City Council,13/11/2017,Strategic Accounts,Robin Hood Residents Association,28/11/16,2016170813, 150.00 ,Housing Grant,Supplies & Services
Leeds City Council,13/11/2017,Strategic Accounts,Rossefield Manor Social Fund,21/11/16,2016170814, 300.00 ,Locality Grant,Supplies & Services
Leeds City Council,13/11/2017,Strategic Accounts,Rotary Technology Tournament,07/11/16,2016170815, 200.00 ,Locality Grant,Supplies & Services
Leeds City Council,13/11/2017,Strategic Accounts,Rothwell Christmas Hospitality Fund,07/11/16,2016170816, 200.00 ,Housing Grant,Supplies & Services
Leeds City Council,13/11/2017,Strategic Accounts,Rothwell Christmas Hospitality Fund,14/11/16,2016170817, 150.00 ,Housing Grant,Supplies & Services
Leeds City Council,13/11/2017,Strategic Accounts,Rothwell Christmas Hospitality Fund,21/11/16,2016170818, 100.00 ,Housing Grant,Supplies & Services
Leeds City Council,13/11/2017,Strategic Accounts,Rothwell Open Minds Ass,22/11/16,2016170819, 200.00 ,Locality Grant,Supplies & Services
Leeds City Council,13/11/2017,Strategic Accounts,Rothwell Tenants & Residents Association,14/11/16,2016170820, 16.00 ,Housing Grant,Supplies & Services
Leeds City Council,13/11/2017,Strategic Accounts,St Matthias Pcc,07/11/16,2016170821, 300.00 ,Neighbourhood Grant,Supplies & Services
Leeds City Council,13/11/2017,Strategic Accounts,St Matthias Pcc,21/11/16,2016170822, 250.00 ,Neighbourhood Grant,Supplies & Services
Leeds City Council,13/11/2017,Strategic Accounts,Seacroft Parochial Church Council,28/11/16,2016170823," 1,200.00 ",Housing Grant,Supplies & Services
Leeds City Council,13/11/2017,Strategic Accounts,Shadwell Horticultural Society,21/11/16,2016170824, 750.00 ,Locality Grant,Supplies & Services
Leeds City Council,13/11/2017,Strategic Accounts,Shire Oak Primary School Pupil,28/11/16,2016170825, 600.00 ,Locality Grant,Supplies & Services
Leeds City Council,13/11/2017,Strategic Accounts,South Leeds And Morley Explorer Scouts,28/11/16,2016170826, 400.00 ,Locality Grant,Supplies & Services
Leeds City Council,13/11/2017,Strategic Accounts,Sports On Saturday,07/11/16,2016170827, 400.00 ,Locality Grant,Supplies & Services
Leeds City Council,13/11/2017,Strategic Accounts,St Stephens Well Community Garden,07/11/16,2016170828, 300.00 ,Neighbourhood Grant,Supplies & Services
Leeds City Council,13/11/2017,Strategic Accounts,Swillington Village Hall,07/11/16,2016170829, 300.00 ,Neighbourhood Capital Grant,Supplies & Services
Leeds City Council,13/11/2017,Strategic Accounts,The Cardigan Centre,28/11/16,2016170830, 500.00 ,Housing Grant,Supplies & Services
Leeds City Council,13/11/2017,Strategic Accounts,The Friends Of Castleton,21/11/16,2016170831, 300.00 ,Locality Grant,Supplies & Services
Leeds City Council,13/11/2017,Strategic Accounts,Tingley Athletics Club,28/11/16,2016170832, 250.00 ,Locality Grant,Supplies & Services
Leeds City Council,13/11/2017,Strategic Accounts,Westerton Close Elderly Community Group,07/11/16,2016170833, 300.00 ,Housing Grant,Supplies & Services
Leeds City Council,13/11/2017,Strategic Accounts,Windmill Primary Pta,24/11/16,2016170834, 282.00 ,Locality Grant,Supplies & Services
Leeds City Council,13/11/2017,Strategic Landlord,Better Leeds Communities,04/11/16,2016170835," 5,000.00 ",Housing Grant,Supplies & Services
Leeds City Council,13/11/2017,Strategic Landlord,Cranmer Call Tenants And Residents,15/11/16,2016170836, 400.00 ,Locality Grant,Supplies & Services
Leeds City Council,13/11/2017,Strategic Landlord,Cross Green Residents Association,18/11/16,2016170837, 100.00 ,Locality Grant,Supplies & Services
Leeds City Council,13/11/2017,Strategic Landlord,Moorside Tenants And Residents,17/11/16,2016170838," 1,000.00 ",Housing Grant,Supplies & Services
Leeds City Council,13/11/2017,Strategic Landlord,Rothwell Tenants & Residents Association,14/11/16,2016170839, 450.00 ,Housing Grant,Supplies & Services
Leeds City Council,13/11/2017,Strategic Landlord,Seacroft Green Residents Association,24/11/16,2016170840, 100.00 ,Housing Grant,Supplies & Services
Leeds City Council,13/11/2017,Strategic Landlord,Seacroft Green Residents Association,24/11/16,2016170841, 100.00 ,Housing Grant,Supplies & Services
Leeds City Council,13/11/2017,Adult Social Care,Leeds Involving People,30/12/16,2016170842," 11,666.25 ",Adult Social Care Grant,Supplies & Services
Leeds City Council,13/11/2017,Adult Social Care,William Merritt Disabled Living,30/12/16,2016170843," 8,131.00 ",Adult Social Care Grant,Supplies & Services
Leeds City Council,13/11/2017,Citizens and Communities,Adel Neighbourhood Forum,08/12/16,2016170844, 811.50 ,Locality Grant,Supplies & Services
Leeds City Council,13/11/2017,Citizens and Communities,Alwoodley In Bloom,19/12/16,2016170845, 500.00 ,Locality Grant,Supplies & Services
Leeds City Council,13/11/2017,Citizens and Communities,Armley Juniors Project For Young People,28/12/16,2016170846," 2,071.50 ",Neighbourhood Grant,Supplies & Services
Leeds City Council,13/11/2017,Citizens and Communities,Barca - Leeds,06/12/16,2016170847," 1,958.07 ",Housing Grant,Supplies & Services
Leeds City Council,13/11/2017,Citizens and Communities,Catch,13/12/16,2016170848," 1,005.16 ",Neighbourhood Grant,Supplies & Services
Leeds City Council,13/11/2017,Citizens and Communities,Cfydc (Chance),05/12/16,2016170849," 4,020.00 ",Housing Grant,Supplies & Services
Leeds City Council,13/11/2017,Citizens and Communities,Christ Church Halton,09/12/16,2016170850, 132.00 ,Locality Grant,Supplies & Services
Leeds City Council,13/11/2017,Citizens and Communities,Care & Repair Leeds,07/12/16,2016170851, 180.00 ,Support Grant,Supplies & Services
Leeds City Council,13/11/2017,Citizens and Communities,Care & Repair Leeds,16/12/16,2016170852, 180.00 ,Support Grant,Supplies & Services
Leeds City Council,13/11/2017,Citizens and Communities,Care & Repair Leeds,28/12/16,2016170853, 240.00 ,Support Grant,Supplies & Services
Leeds City Council,13/11/2017,Citizens and Communities,Childrens Project,23/12/16,2016170854, 500.00 ,Neighbourhood Grant,Supplies & Services
Leeds City Council,13/11/2017,Citizens and Communities,Collingham Bowling Club,22/12/16,2016170855," 1,250.00 ",Locality Grant,Supplies & Services
Leeds City Council,13/11/2017,Citizens and Communities,Cross Green Residents Association,05/12/16,2016170856, 500.00 ,Locality Grant,Supplies & Services
Leeds City Council,13/11/2017,Citizens and Communities,Ebor Gardens Advice Centre,02/12/16,2016170857," 1,065.00 ",Neighbourhood Grant,Supplies & Services
Leeds City Council,13/11/2017,Citizens and Communities,Friends Of Middleton Park,02/12/16,2016170858," 3,800.00 ",Children's Services Grant,Supplies & Services
Leeds City Council,13/11/2017,Citizens and Communities,Friends Of Sandringham Park,15/12/16,2016170859, 500.00 ,Locality Grant,Supplies & Services
Leeds City Council,13/11/2017,Citizens and Communities,Getaway Girls,22/12/16,2016170860," 5,864.86 ",Housing Grant,Supplies & Services
Leeds City Council,13/11/2017,Citizens and Communities,Health For All (Leeds) Ltd,29/12/16,2016170861," 1,650.00 ",Housing Grant,Supplies & Services
Leeds City Council,13/11/2017,Citizens and Communities,Kirkstall Educational Cricket Club,20/12/16,2016170862, 480.00 ,Neighbourhood Grant,Supplies & Services
Leeds City Council,13/11/2017,Citizens and Communities,Leeds Grand Theatre & Opera,13/12/16,2016170863," 5,432.00 ",Creative Employment Grant,Supplies & Services
Leeds City Council,13/11/2017,Citizens and Communities,Lifeforce Productions,05/12/16,2016170864," 1,587.50 ",Arts grant,Supplies & Services
Leeds City Council,13/11/2017,Citizens and Communities,Ls14 Trust,15/12/16,2016170865, 140.00 ,Housing Grant,Supplies & Services
Leeds City Council,13/11/2017,Citizens and Communities,Leeds Rugby Foundation,23/12/16,2016170866," 14,000.00 ",Neighbourhood Grant,Supplies & Services
Leeds City Council,13/11/2017,Citizens and Communities,Moor Allerton Elderly Care,30/12/16,2016170867, 785.00 ,Housing Grant,Supplies & Services
Leeds City Council,13/11/2017,Citizens and Communities,Moor Allerton Elderly Care,30/12/16,2016170868," 1,820.00 ",Housing Grant,Supplies & Services
Leeds City Council,13/11/2017,Citizens and Communities,Methleyfest Organisation Committee,16/12/16,2016170869," 1,200.00 ",Locality Grant,Supplies & Services
Leeds City Council,13/11/2017,Citizens and Communities,New Wortley Community Association,01/12/16,2016170870, 500.00 ,Housing Grant,Supplies & Services
Leeds City Council,13/11/2017,Citizens and Communities,Prince Philip Centre Phab Club,07/12/16,2016170871, 772.25 ,Neighbourhood Grant,Supplies & Services
Leeds City Council,13/11/2017,Citizens and Communities,Rothwell & District Live At Home Scheme,15/12/16,2016170872, 844.40 ,Luncheon Club Grant,Supplies & Services
Leeds City Council,13/11/2017,Citizens and Communities,Shadwell Tennis Club,29/12/16,2016170873," 4,000.00 ",Neighbourhood Grant,Supplies & Services
Leeds City Council,13/11/2017,Citizens and Communities,St Margarets Church (Parish Centre),20/12/16,2016170874, 90.00 ,Neighbourhood Grant,Supplies & Services
Leeds City Council,13/11/2017,Citizens and Communities,The Cardigan Centre,01/12/16,2016170875," 2,586.00 ",Housing Grant,Supplies & Services
Leeds City Council,13/11/2017,Citizens and Communities,The Works Skatepark Charity,05/12/16,2016170876," 4,160.00 ",Children's Services Grant,Supplies & Services
Leeds City Council,13/11/2017,Citizens and Communities,Wcr Ltd,16/12/16,2016170877," 1,500.00 ",Locality Grant,Supplies & Services
Leeds City Council,13/11/2017,Citizens and Communities,West Leeds R.U.F.C,02/12/16,2016170878, 349.00 ,Sports Grant,Supplies & Services
Leeds City Council,13/11/2017,Citizens and Communities,Wetherby Arts Festival,07/12/16,2016170879, 500.00 ,Neighbourhood Grant,Supplies & Services
Leeds City Council,13/11/2017,City Development,Altogether Armley,19/12/16,2016170880, 600.00 ,Leeds Inspired Grant,Supplies & Services
Leeds City Council,13/11/2017,Environment & Housing,Care & Repair Leeds,02/12/16,2016170881," 5,000.00 ",Support Grant,Supplies & Services
Leeds City Council,13/11/2017,Environment & Housing,Leeds & Moortown Furniture Store,20/12/16,2016170882," 1,995.00 ",Homelessness Grant,Supplies & Services
Leeds City Council,13/11/2017,Environment & Housing,Leeds & Moortown Furniture Store,20/12/16,2016170883," 18,000.00 ",Homelessness Grant,Supplies & Services
Leeds City Council,13/11/2017,Environment & Housing,Rspb,22/12/16,2016170884," 2,688.00 ",Support Grant,Supplies & Services
Leeds City Council,13/11/2017,Environment & Housing,St Judes Furniture Store,20/12/16,2016170885," 18,000.00 ",Homelessness Grant,Supplies & Services
Leeds City Council,13/11/2017,Environment & Housing,The Conservation Volunteers,22/12/16,2016170886," 4,116.00 ",Support Grant,Supplies & Services
Leeds City Council,13/11/2017,Environment & Housing,The Conservation Volunteers,22/12/16,2016170887," 4,100.00 ",Support Grant,Supplies & Services
Leeds City Council,13/11/2017,Strategic Accounts,Arts To Share (Leeds),12/12/16,2016170888, 450.00 ,Locality Grant,Supplies & Services
Leeds City Council,13/11/2017,Strategic Accounts,Al Khidmat Centre,19/12/16,2016170889, 100.00 ,Luncheon Club Grant,Supplies & Services
Leeds City Council,13/11/2017,Strategic Accounts,Better Leeds Communities,19/12/16,2016170890, 150.00 ,Housing Grant,Supplies & Services
Leeds City Council,13/11/2017,Strategic Accounts,Bilal Centre,23/12/16,2016170891, 500.00 ,Locality Grant,Supplies & Services
Leeds City Council,13/11/2017,Strategic Accounts,Black Health Initiative,19/12/16,2016170892, 100.00 ,Arts grant,Supplies & Services
Leeds City Council,13/11/2017,Strategic Accounts,Burley Mill Allotments Association,19/12/16,2016170893, 420.00 ,Locality Grant,Supplies & Services
Leeds City Council,13/11/2017,Strategic Accounts,Chapel Allerton Methodist Church,19/12/16,2016170894, 50.00 ,Locality Grant,Supplies & Services
Leeds City Council,13/11/2017,Strategic Accounts,Childrens Project,05/12/16,2016170895, 100.00 ,Neighbourhood Grant,Supplies & Services
Leeds City Council,13/11/2017,Strategic Accounts,Churchwood & Drummonds Residents Assoc,12/12/16,2016170896, 200.00 ,Locality Grant,Supplies & Services
Leeds City Council,13/11/2017,Strategic Accounts,Cliff Top Park Residents Association,05/12/16,2016170897, 300.00 ,Locality Grant,Supplies & Services
Leeds City Council,13/11/2017,Strategic Accounts,Cragg Hill And Woodside Residents Group,23/12/16,2016170898, 339.00 ,Locality Grant,Supplies & Services
Leeds City Council,13/11/2017,Strategic Accounts,Denshaws Newlands And Rydals Residents,12/12/16,2016170899, 520.00 ,Locality Grant,Supplies & Services
Leeds City Council,13/11/2017,Strategic Accounts,Drighlington Old Folks Outing,19/12/16,2016170900, 150.00 ,Locality Grant,Supplies & Services
Leeds City Council,13/11/2017,Strategic Accounts,Friends Of Engine Fields,12/12/16,2016170901, 107.00 ,Locality Grant,Supplies & Services
Leeds City Council,13/11/2017,Strategic Accounts,Garforth In Bloom,12/12/16,2016170902, 230.00 ,Neighbourhood Grant,Supplies & Services
Leeds City Council,13/11/2017,Strategic Accounts,Gipton Methodist Church,05/12/16,2016170903, 600.00 ,Locality Grant,Supplies & Services
Leeds City Council,13/11/2017,Strategic Accounts,Great Preston 50/50 Social Club,23/12/16,2016170904, 300.00 ,Locality Grant,Supplies & Services
Leeds City Council,13/11/2017,Strategic Accounts,Guiseley Infant & Nursery School Fund,05/12/16,2016170905, 240.00 ,Locality Grant,Supplies & Services
Leeds City Council,13/11/2017,Strategic Accounts,Harehills Lane Baptist Church,19/12/16,2016170906, 100.00 ,Locality Grant,Supplies & Services
Leeds City Council,13/11/2017,Strategic Accounts,Hyde Park Source,12/12/16,2016170907, 200.00 ,Housing Grant,Supplies & Services
Leeds City Council,13/11/2017,Strategic Accounts,Hunslet Parish Church Guides,23/12/16,2016170908, 150.00 ,Locality Grant,Supplies & Services
Leeds City Council,13/11/2017,Strategic Accounts,Kidz In Kampz,12/12/16,2016170909, 100.00 ,Locality Grant,Supplies & Services
Leeds City Council,13/11/2017,Strategic Accounts,Leeds & District Gardeners Federation,23/12/16,2016170910, 450.00 ,Locality Grant,Supplies & Services
Leeds City Council,13/11/2017,Strategic Accounts,Leeds Black Elders Luncheon Club,23/12/16,2016170911, 100.00 ,Luncheon Club Grant,Supplies & Services
Leeds City Council,13/11/2017,Strategic Accounts,Lord Mayor'S Charity Appeal,05/12/16,2016170912," 1,000.00 ",Locality Grant,Supplies & Services
Leeds City Council,13/11/2017,Strategic Accounts,Lord Mayor'S Charity Appeal,12/12/16,2016170913, 200.00 ,Locality Grant,Supplies & Services
Leeds City Council,13/11/2017,Strategic Accounts,Lovell Park Residents Association,01/12/16,2016170914, 100.00 ,Locality Grant,Supplies & Services
Leeds City Council,13/11/2017,Strategic Accounts,Marsden Court Residents Association,05/12/16,2016170915, 100.00 ,Housing Grant,Supplies & Services
Leeds City Council,13/11/2017,Strategic Accounts,Moor Allerton Elderly Care,12/12/16,2016170916, 100.00 ,Housing Grant,Supplies & Services
Leeds City Council,13/11/2017,Strategic Accounts,Northfield Community Centre,12/12/16,2016170917, 120.00 ,Housing Grant,Supplies & Services
Leeds City Council,13/11/2017,Strategic Accounts,Older Peoples Action In The Locality,05/12/16,2016170918, 280.00 ,Housing Grant,Supplies & Services
Leeds City Council,13/11/2017,Strategic Accounts,Old Farnley Community Association,23/12/16,2016170919, 200.00 ,Locality Grant,Supplies & Services
Leeds City Council,13/11/2017,Strategic Accounts,Oulton And Woodlesford Neighbourhood,19/12/16,2016170920, 500.00 ,Locality Grant,Supplies & Services
Leeds City Council,13/11/2017,Strategic Accounts,Owls At Heart,12/12/16,2016170921, 500.00 ,Locality Grant,Supplies & Services
Leeds City Council,13/11/2017,Strategic Accounts,Owls At Heart,05/12/16,2016170922, 200.00 ,Locality Grant,Supplies & Services
Leeds City Council,13/11/2017,Strategic Accounts,Pudsey/Farsley Royal British Legion,23/12/16,2016170923, 200.00 ,Locality Grant,Supplies & Services
Leeds City Council,13/11/2017,Strategic Accounts,Queensview Residents Association,23/12/16,2016170924, 50.00 ,Housing Grant,Supplies & Services
Leeds City Council,13/11/2017,Strategic Accounts,Rjc Productions Ltd,05/12/16,2016170925, 150.00 ,Arts grant,Supplies & Services
Leeds City Council,13/11/2017,Strategic Accounts,Rawdon Community Library,19/12/16,2016170926, 35.00 ,Locality Grant,Supplies & Services
Leeds City Council,13/11/2017,Strategic Accounts,Roscoe Luncheon Club,19/12/16,2016170927, 100.00 ,Locality Grant,Supplies & Services
Leeds City Council,13/11/2017,Strategic Accounts,Rotary Technology Tournament,05/12/16,2016170928, 300.00 ,Locality Grant,Supplies & Services
Leeds City Council,13/11/2017,Strategic Accounts,Rotary Technology Tournament,12/12/16,2016170929, 100.00 ,Locality Grant,Supplies & Services
Leeds City Council,13/11/2017,Strategic Accounts,Stainbeck Church,19/12/16,2016170930, 50.00 ,Locality Grant,Supplies & Services
Leeds City Council,13/11/2017,Strategic Accounts,South Leeds Life Group,19/12/16,2016170931, 100.00 ,Neighbourhood Grant,Supplies & Services
Leeds City Council,13/11/2017,Strategic Accounts,St Anns Residents Association,09/12/16,2016170932, 300.00 ,Locality Grant,Supplies & Services
Leeds City Council,13/11/2017,Strategic Accounts,St Gabriels Youth Club,19/12/16,2016170933, 100.00 ,Locality Grant,Supplies & Services
Leeds City Council,13/11/2017,Strategic Accounts,St Martins Church,19/12/16,2016170934, 50.00 ,Locality Grant,Supplies & Services
Leeds City Council,13/11/2017,Strategic Accounts,Swinnow Community Centre,12/12/16,2016170935, 200.00 ,Housing Grant,Supplies & Services
Leeds City Council,13/11/2017,Strategic Accounts,Syrian Community Of Leeds,19/12/16,2016170936, 350.00 ,Luncheon Club Grant,Supplies & Services
Leeds City Council,13/11/2017,Strategic Accounts,The Ciaran Bingham Trust Foundation Trus,23/12/16,2016170937, 150.00 ,Housing Grant,Supplies & Services
Leeds City Council,13/11/2017,Strategic Accounts,The Etz Chaim Leisure Club,12/12/16,2016170938, 500.00 ,Locality Grant,Supplies & Services
Leeds City Council,13/11/2017,Strategic Accounts,Victoria Close Social Centre,12/12/16,2016170939, 300.00 ,Locality Grant,Supplies & Services
Leeds City Council,13/11/2017,Strategic Accounts,Wags Club,19/12/16,2016170940, 200.00 ,Locality Grant,Supplies & Services
Leeds City Council,13/11/2017,Strategic Accounts,Winthorpe Residents Association,12/12/16,2016170941, 150.00 ,Housing Grant,Supplies & Services
Leeds City Council,13/11/2017,Strategic Accounts,Wykebeck Valley Day Centre,19/12/16,2016170942, 100.00 ,Locality Grant,Supplies & Services
Leeds City Council,13/11/2017,Strategic Landlord,Button Hill Residents Association,07/12/16,2016170943, 100.00 ,Housing Grant,Supplies & Services
Leeds City Council,13/11/2017,Strategic Landlord,Cranmer Call Tenants And Residents,20/12/16,2016170944, 450.00 ,Locality Grant,Supplies & Services
Leeds City Council,13/11/2017,Strategic Landlord,Carlton Village Residents Association,12/12/16,2016170945, 200.00 ,Housing Grant,Supplies & Services
Leeds City Council,13/11/2017,Strategic Landlord,Dawsons Corner Tenants Association,20/12/16,2016170946, 300.00 ,Housing Grant,Supplies & Services
Leeds City Council,13/11/2017,Strategic Landlord,Freedom Church,29/12/16,2016170947, 620.00 ,Housing Grant,Supplies & Services
Leeds City Council,13/11/2017,Strategic Landlord,Hunslet Tenants And Residents,06/12/16,2016170948, 450.00 ,Housing Grant,Supplies & Services
Leeds City Council,13/11/2017,Strategic Landlord,Interact Church & Community Partnership,23/12/16,2016170949," 5,550.00 ",Locality Grant,Supplies & Services
Leeds City Council,13/11/2017,Strategic Landlord,Leeds United Foundation,15/12/16,2016170950," 4,181.00 ",Housing Grant,Supplies & Services
Leeds City Council,13/11/2017,Strategic Landlord,Marsden Court Residents Association,15/12/16,2016170951, 788.88 ,Housing Grant,Supplies & Services
Leeds City Council,13/11/2017,Strategic Landlord,Midland House Social Club,22/12/16,2016170952, 400.00 ,Locality Grant,Supplies & Services
Leeds City Council,13/11/2017,Strategic Landlord,Nursery Garth Community Group,13/12/16,2016170953, 100.00 ,Housing Grant,Supplies & Services
Leeds City Council,13/11/2017,Strategic Landlord,Queensview Residents Association,16/12/16,2016170954, 200.00 ,Housing Grant,Supplies & Services
Leeds City Council,13/11/2017,Strategic Landlord,Queenswood Tenants & Residents Assoc,12/12/16,2016170955, 600.00 ,Housing Grant,Supplies & Services
Leeds City Council,13/11/2017,Strategic Landlord,Richmond Hill Elderly Action,07/12/16,2016170956," 1,759.00 ",Housing Grant,Supplies & Services
Leeds City Council,13/11/2017,Strategic Landlord,Robin Hood Residents Association,07/12/16,2016170957," 1,000.00 ",Housing Grant,Supplies & Services
Leeds City Council,13/11/2017,Strategic Landlord,Saxton Gardens Residents Association,29/12/16,2016170958, 500.00 ,Housing Grant,Supplies & Services
Leeds City Council,13/11/2017,Strategic Landlord,Scholes Social Club,20/12/16,2016170959, 100.00 ,Housing Grant,Supplies & Services
Leeds City Council,13/11/2017,Strategic Landlord,Seacroft Green Residents Association,08/12/16,2016170960, 200.00 ,Housing Grant,Supplies & Services
Leeds City Council,13/11/2017,Strategic Landlord,St Augustines Court Residents,23/12/16,2016170961, 100.00 ,Housing Grant,Supplies & Services
Leeds City Council,13/11/2017,Strategic Landlord,The West Yorkshire Crc Ltd,23/12/16,2016170962," 21,964.49 ",Housing Grant,Supplies & Services
Leeds City Council,13/11/2017,Strategic Landlord,Thorpe Primary School Pta,12/12/16,2016170963, 500.00 ,Housing Grant,Supplies & Services
Leeds City Council,13/11/2017,Citizens and Communities,17th South West Leeds Scout Group,31/01/17,2016170964, 225.00 ,Locality Grant,Supplies & Services
Leeds City Council,13/11/2017,Citizens and Communities,Barca - Leeds,06/01/17,2016170965," 1,917.07 ",Housing Grant,Supplies & Services
Leeds City Council,13/11/2017,Citizens and Communities,Better Leeds Communities,13/01/17,2016170966," 2,700.00 ",Housing Grant,Supplies & Services
Leeds City Council,13/11/2017,Citizens and Communities,Black Health Initiative,11/01/17,2016170967, 225.00 ,Arts grant,Supplies & Services
Leeds City Council,13/11/2017,Citizens and Communities,Christ Church Halton,20/01/17,2016170968, 50.00 ,Locality Grant,Supplies & Services
Leeds City Council,13/11/2017,Citizens and Communities,Care & Repair Leeds,06/01/17,2016170969, 120.00 ,Support Grant,Supplies & Services
Leeds City Council,13/11/2017,Citizens and Communities,Care & Repair Leeds,06/01/17,2016170970, 780.00 ,Support Grant,Supplies & Services
Leeds City Council,13/11/2017,Citizens and Communities,Christ The Saviour Church,24/01/17,2016170971, 30.00 ,Locality Grant,Supplies & Services
Leeds City Council,13/11/2017,Citizens and Communities,Groundwork Leeds,26/01/17,2016170972," 1,795.00 ",Support Grant,Supplies & Services
Leeds City Council,13/11/2017,Citizens and Communities,Heads Together Productions Ltd,24/01/17,2016170973," 2,791.00 ",Arts grant,Supplies & Services
Leeds City Council,13/11/2017,Citizens and Communities,Hunslet Green Community Sports Club,17/01/17,2016170974," 10,000.00 ",Sports Grant,Supplies & Services
Leeds City Council,13/11/2017,Citizens and Communities,Leeds Citizens Advice Bureau,27/01/17,2016170975," 412,913.75 ",Advisory Grant,Supplies & Services
Leeds City Council,13/11/2017,Citizens and Communities,Leeds Development Education Centre,13/01/17,2016170976, 781.10 ,Locality Grant,Supplies & Services
Leeds City Council,13/11/2017,Citizens and Communities,Ls14 Trust,13/01/17,2016170977, 400.00 ,Housing Grant,Supplies & Services
Leeds City Council,13/11/2017,Citizens and Communities,Leeds Somali Youth,23/01/17,2016170978, 900.00 ,Locality Grant,Supplies & Services
Leeds City Council,13/11/2017,Citizens and Communities,Leeds United Foundation,06/01/17,2016170979," 1,000.00 ",Locality Grant,Supplies & Services
Leeds City Council,13/11/2017,Citizens and Communities,Morley Elderly Action,19/01/17,2016170980," 6,175.00 ",Neighbourhood Grant,Supplies & Services
Leeds City Council,13/11/2017,Citizens and Communities,New World Steel Orchestra,26/01/17,2016170981, 200.00 ,Neighbourhood Grant,Supplies & Services
Leeds City Council,13/11/2017,Citizens and Communities,Path Yorkshire,04/01/17,2016170982," 5,046.14 ",Locality Grant,Supplies & Services
Leeds City Council,13/11/2017,Citizens and Communities,Rjc Productions Ltd,11/01/17,2016170983," 2,230.00 ",Arts grant,Supplies & Services
Leeds City Council,13/11/2017,Citizens and Communities,Radharaman Society,11/01/17,2016170984," 1,600.00 ",Neighbourhood Grant,Supplies & Services
Leeds City Council,13/11/2017,Citizens and Communities,Radio Asian Fever Ltd,10/01/17,2016170985, 300.00 ,Locality Grant,Supplies & Services
Leeds City Council,13/11/2017,Citizens and Communities,Radio Asian Fever Ltd,10/01/17,2016170986, 200.00 ,Locality Grant,Supplies & Services
Leeds City Council,13/11/2017,Citizens and Communities,Rothwell & District Carnival Committee,13/01/17,2016170987, 500.00 ,Neighbourhood Grant,Supplies & Services
Leeds City Council,13/11/2017,Citizens and Communities,Shantona Womens Centre,25/01/17,2016170988, 200.00 ,Luncheon Club Grant,Supplies & Services
Leeds City Council,13/11/2017,Citizens and Communities,St John Ambulance,20/01/17,2016170989, 36.00 ,Neighbourhood Grant,Supplies & Services
Leeds City Council,13/11/2017,Citizens and Communities,Saudha Society Of Poetry And Indian,20/01/17,2016170990, 800.00 ,Arts grant,Supplies & Services
Leeds City Council,13/11/2017,Citizens and Communities,Seacroft Gala,20/01/17,2016170991, 428.20 ,Housing Grant,Supplies & Services
Leeds City Council,13/11/2017,Citizens and Communities,St Vincents Support Centre,16/01/17,2016170992, 500.00 ,Locality Grant,Supplies & Services
Leeds City Council,13/11/2017,Citizens and Communities,Swillington Pre School Play Group,13/01/17,2016170993, 445.99 ,Housing Grant,Supplies & Services
Leeds City Council,13/11/2017,Citizens and Communities,The Cardigan Centre,25/01/17,2016170994," 4,728.20 ",Housing Grant,Supplies & Services
Leeds City Council,13/11/2017,Citizens and Communities,The Conservation Volunteers,24/01/17,2016170995, 580.89 ,Support Grant,Supplies & Services
Leeds City Council,13/11/2017,Citizens and Communities,The Works Skatepark Charity,06/01/17,2016170996," 1,040.00 ",Children's Services Grant,Supplies & Services
Leeds City Council,13/11/2017,Citizens and Communities,Voluntary Action-Leeds,25/01/17,2016170997," 74,411.00 ",Children's Services Grant,Supplies & Services
Leeds City Council,13/11/2017,Citizens and Communities,Voluntary Action-Leeds,18/01/17,2016170998, 300.00 ,Children's Services Grant,Supplies & Services
Leeds City Council,13/11/2017,Citizens and Communities,Wycas,25/01/17,2016170999," 10,112.75 ",Infrastructure Support Grant,Supplies & Services
Leeds City Council,13/11/2017,Citizens and Communities,Zest Health For Life,06/01/17,2016171000," 1,250.00 ",Neighbourhood Grant,Supplies & Services
Leeds City Council,13/11/2017,Citizens and Communities,Zest Health For Life,20/01/17,2016171001, 200.00 ,Neighbourhood Grant,Supplies & Services
Leeds City Council,13/11/2017,City Development,Ls14 Trust,25/01/17,2016171002, 500.00 ,Housing Grant,Supplies & Services
Leeds City Council,13/11/2017,City Development,New Wortley Community Association,25/01/17,2016171003, 500.00 ,Housing Grant,Supplies & Services
Leeds City Council,13/11/2017,City Development,Roscoe Methodist Church,16/01/17,2016171004," 1,000.00 ",Leeds Inspired Grant,Supplies & Services
Leeds City Council,13/11/2017,City Development,Theatre Company Blah Blah Blah,03/01/17,2016171005, 760.00 ,Arts grant,Supplies & Services
Leeds City Council,13/11/2017,Environment & Housing,Groundwork Leeds,06/01/17,2016171006," 10,000.00 ",Support Grant,Supplies & Services
Social Services Pooled Budgets,13/11/2017,Jcs For People With Learning Disabilitie,Leeds People First,16/01/17,2016171007," 2,177.75 ",Social Services Pooled Budget grant,Supplies & Services
Social Services Pooled Budgets,13/11/2017,Jcs For People With Learning Disabilitie,Meanwood Valley Urban Farm,16/01/17,2016171008," 17,826.00 ",Support Grant,Supplies & Services
Leeds City Council,13/11/2017,Strategic Accounts,1st Gildersome Brownies,24/01/17,2016171009, 209.92 ,Locality Grant,Supplies & Services
Leeds City Council,13/11/2017,Strategic Accounts,2nd Calverley Scout Group,16/01/17,2016171010, 225.00 ,Locality Grant,Supplies & Services
Leeds City Council,13/11/2017,Strategic Accounts,Arts To Share (Leeds),30/01/17,2016171011, 300.00 ,Locality Grant,Supplies & Services
Leeds City Council,13/11/2017,Strategic Accounts,Beeston In Bloom,30/01/17,2016171012, 360.00 ,Locality Grant,Supplies & Services
Leeds City Council,13/11/2017,Strategic Accounts,Elmet Trefoil Guild,23/01/17,2016171013, 300.00 ,Locality Grant,Supplies & Services
Leeds City Council,13/11/2017,Strategic Accounts,Friends Of Moortown Park,16/01/17,2016171014, 100.00 ,Locality Grant,Supplies & Services
Leeds City Council,13/11/2017,Strategic Accounts,Garforth In Bloom,23/01/17,2016171015, 666.66 ,Neighbourhood Grant,Supplies & Services
Leeds City Council,13/11/2017,Strategic Accounts,Garforth Indoor Bowls,30/01/17,2016171016, 200.00 ,Locality Grant,Supplies & Services
Leeds City Council,13/11/2017,Strategic Accounts,Hunslet Parish Church Guides,16/01/17,2016171017, 280.00 ,Locality Grant,Supplies & Services
Leeds City Council,13/11/2017,Strategic Accounts,Islamic Centre Leeds,30/01/17,2016171018, 350.00 ,Locality Grant,Supplies & Services
Leeds City Council,13/11/2017,Strategic Accounts,Leeds Community Foundation,06/01/17,2016171019," 1,000.00 ",Adult Social Care Grant,Supplies & Services
Leeds City Council,13/11/2017,Strategic Accounts,Leeds Community Foundation,06/01/17,2016171020," 1,000.00 ",Adult Social Care Grant,Supplies & Services
Leeds City Council,13/11/2017,Strategic Accounts,Lwicct,23/01/17,2016171021, 250.00 ,Locality Grant,Supplies & Services
Leeds City Council,13/11/2017,Strategic Accounts,Lwicct,30/01/17,2016171022, 400.00 ,Locality Grant,Supplies & Services
Leeds City Council,13/11/2017,Strategic Accounts,Lincoln Green Community Cafe,25/01/17,2016171023, 100.00 ,Locality Grant,Supplies & Services
Leeds City Council,13/11/2017,Strategic Accounts,Lower Wortley Community Association,16/01/17,2016171024, 200.00 ,Locality Grant,Supplies & Services
Leeds City Council,13/11/2017,Strategic Accounts,Meanwood Valley Urban Farm,30/01/17,2016171025, 131.28 ,Locality Grant,Supplies & Services
Leeds City Council,13/11/2017,Strategic Accounts,Methley Methodist Church,09/01/17,2016171026, 750.00 ,Locality Grant,Supplies & Services
Leeds City Council,13/11/2017,Strategic Accounts,Royal Voluntary Service,30/01/17,2016171027, 100.00 ,Locality Grant,Supplies & Services
Leeds City Council,13/11/2017,Strategic Accounts,Saxton Gardens Residents Association,09/01/17,2016171028, 200.00 ,Housing Grant,Supplies & Services
Leeds City Council,13/11/2017,Strategic Accounts,South Leeds Life Group,16/01/17,2016171029, 100.00 ,Neighbourhood Grant,Supplies & Services
Leeds City Council,13/11/2017,Strategic Accounts,Woodcraft Folk North Leeds Woodchips,09/01/17,2016171030, 180.00 ,Locality Grant,Supplies & Services
Leeds City Council,13/11/2017,Strategic Landlord,Bridge Community Church,23/01/17,2016171031," 2,500.00 ",Housing Grant,Supplies & Services
Leeds City Council,13/11/2017,Strategic Landlord,Cardinal Court Tenants Association,19/01/17,2016171032, 100.00 ,Housing Grant,Supplies & Services
Leeds City Council,13/11/2017,Strategic Landlord,East Ardsley Community Association,12/01/17,2016171033, 801.00 ,Housing Grant,Supplies & Services
Leeds City Council,13/11/2017,Strategic Landlord,Hope,20/01/17,2016171034," 12,000.00 ",Neighbourhood Grant,Supplies & Services
Leeds City Council,13/11/2017,Strategic Landlord,Learning Partnerships,11/01/17,2016171035," 2,460.00 ",Housing Grant,Supplies & Services
Leeds City Council,13/11/2017,Strategic Landlord,Pembroke Community Group,25/01/17,2016171036, 100.00 ,Housing Grant,Supplies & Services
Leeds City Council,13/11/2017,Strategic Landlord,Poole Sheltered Housing Social Club,11/01/17,2016171037," 1,000.00 ",Housing Grant,Supplies & Services
Leeds City Council,13/11/2017,Strategic Landlord,Seacroft Gate Block 2,31/01/17,2016171038, 100.00 ,Support Grant,Supplies & Services
Leeds City Council,13/11/2017,Childrens Services,Baltica,01/02/17,2016171039," 1,000.00 ",Supplementary School Grant,Supplies & Services
Leeds City Council,13/11/2017,Childrens Services,Community Leeds After School,01/02/17,2016171040," 1,000.00 ",Supplementary School Grant,Supplies & Services
Leeds City Council,13/11/2017,Childrens Services,Hamara Supplementary School,01/02/17,2016171041," 1,500.00 ",Supplementary School Grant,Supplies & Services
Leeds City Council,13/11/2017,Childrens Services,Leeds Foster Carers Assocation,09/02/17,2016171042," 1,000.00 ",Children's Services Grant,Supplies & Services
Leeds City Council,13/11/2017,Childrens Services,Leeds Chinese Community School,01/02/17,2016171043," 2,000.00 ",Supplementary School Grant,Supplies & Services
Leeds City Council,13/11/2017,Childrens Services,Leeds Latvian Community,01/02/17,2016171044," 1,000.00 ",Supplementary School Grant,Supplies & Services
Leeds City Council,13/11/2017,Childrens Services,Leeds Refugee Forum,01/02/17,2016171045," 1,000.00 ",Supplementary School Grant,Supplies & Services
Leeds City Council,13/11/2017,Childrens Services,Vidia Sagar Cultural Group,01/02/17,2016171046," 1,000.00 ",Supplementary School Grant,Supplies & Services
Leeds City Council,13/11/2017,Citizens and Communities,Aireborough Supported Activities Scheme,21/02/17,2016171047," 6,394.00 ",Children's Services Grant,Supplies & Services
Leeds City Council,13/11/2017,Citizens and Communities,Armley Common Right Trust,28/02/17,2016171048," 1,000.00 ",Locality Grant,Supplies & Services
Leeds City Council,13/11/2017,Citizens and Communities,Barca - Leeds,10/02/17,2016171049," 1,341.72 ",Housing Grant,Supplies & Services
Leeds City Council,13/11/2017,Citizens and Communities,Barca - Leeds,01/02/17,2016171050," 8,750.00 ",Housing Grant,Supplies & Services
Leeds City Council,13/11/2017,Citizens and Communities,Bradford Dragons Basketball Club,10/02/17,2016171051," 1,008.00 ",Sports Grant,Supplies & Services
Leeds City Council,13/11/2017,Citizens and Communities,Cfydc (Chance),07/02/17,2016171052," 2,400.00 ",Housing Grant,Supplies & Services
Leeds City Council,13/11/2017,Citizens and Communities,Care & Repair Leeds,28/02/17,2016171053, 17.50 ,Support Grant,Supplies & Services
Leeds City Council,13/11/2017,Citizens and Communities,Care & Repair Leeds,28/02/17,2016171054, 300.00 ,Support Grant,Supplies & Services
Leeds City Council,13/11/2017,Citizens and Communities,Care & Repair Leeds,28/02/17,2016171055, 137.50 ,Support Grant,Supplies & Services
Leeds City Council,13/11/2017,Citizens and Communities,Care & Repair Leeds,28/02/17,2016171056, 420.00 ,Support Grant,Supplies & Services
Leeds City Council,13/11/2017,Citizens and Communities,Care & Repair Leeds,28/02/17,2016171057, 900.00 ,Support Grant,Supplies & Services
Leeds City Council,13/11/2017,Citizens and Communities,Care & Repair Leeds,16/02/17,2016171058, 33.00 ,Support Grant,Supplies & Services
Leeds City Council,13/11/2017,Citizens and Communities,Chapeltown Development Trust,17/02/17,2016171059," 3,674.80 ",Housing Grant,Supplies & Services
Leeds City Council,13/11/2017,Citizens and Communities,Churwell Cic,13/02/17,2016171060, 500.00 ,Children's Services Grant,Supplies & Services
Leeds City Council,13/11/2017,Citizens and Communities,Fairfield Enterprise And Community Cic,01/02/17,2016171061," 1,057.69 ",Housing Grant,Supplies & Services
Leeds City Council,13/11/2017,Citizens and Communities,Farsley Christmas Lights,16/02/17,2016171062, 134.07 ,Locality Grant,Supplies & Services
Leeds City Council,13/11/2017,Citizens and Communities,Getaway Girls,24/02/17,2016171063," 2,977.33 ",Housing Grant,Supplies & Services
Leeds City Council,13/11/2017,Citizens and Communities,Hamara (Hlc),23/02/17,2016171064," 1,500.00 ",Locality Grant,Supplies & Services
Leeds City Council,13/11/2017,Citizens and Communities,Harehills Cic,03/02/17,2016171065," 1,336.93 ",Neighbourhood Grant,Supplies & Services
Leeds City Council,13/11/2017,Citizens and Communities,Harehills Cic,02/02/17,2016171066, -   ,Neighbourhood Grant,Supplies & Services
Leeds City Council,13/11/2017,Citizens and Communities,Headingley Enterprise And Arts Centre,09/02/17,2016171067, 81.00 ,Neighbourhood Grant,Supplies & Services
Leeds City Council,13/11/2017,Citizens and Communities,Kirkstall Educational Cricket Club,24/02/17,2016171068," 4,160.00 ",Neighbourhood Grant,Supplies & Services
Leeds City Council,13/11/2017,Citizens and Communities,Ls14 Trust,06/02/17,2016171069, 670.00 ,Housing Grant,Supplies & Services
Leeds City Council,13/11/2017,Citizens and Communities,Moor Allerton Elderly Care,28/02/17,2016171070," 1,820.00 ",Housing Grant,Supplies & Services
Leeds City Council,13/11/2017,Citizens and Communities,Morley Elderly Action,10/02/17,2016171071," 6,175.00 ",Neighbourhood Grant,Supplies & Services
Leeds City Council,13/11/2017,Citizens and Communities,Morley Elderly Action,17/02/17,2016171072, 506.06 ,Neighbourhood Grant,Supplies & Services
Leeds City Council,13/11/2017,Citizens and Communities,Old Pool Bank Village Hall,02/02/17,2016171073, 300.00 ,Locality Grant,Supplies & Services
Leeds City Council,13/11/2017,Citizens and Communities,Rjc Productions Ltd,17/02/17,2016171074, 180.00 ,Arts grant,Supplies & Services
Leeds City Council,13/11/2017,Citizens and Communities,Slaid Hill In Bloom,17/02/17,2016171075, 972.62 ,Neighbourhood Grant,Supplies & Services
Leeds City Council,13/11/2017,Citizens and Communities,St John Ambulance,13/02/17,2016171076, 72.00 ,Neighbourhood Grant,Supplies & Services
Leeds City Council,13/11/2017,Citizens and Communities,Shadwell Tennis Club,28/02/17,2016171077," 3,300.00 ",Neighbourhood Grant,Supplies & Services
Leeds City Council,13/11/2017,Citizens and Communities,Street Work Soccer Academy Ltd,16/02/17,2016171078," 5,680.00 ",Housing Grant,Supplies & Services
Leeds City Council,13/11/2017,Citizens and Communities,The Cardigan Centre,03/02/17,2016171079," 2,400.60 ",Housing Grant,Supplies & Services
Leeds City Council,13/11/2017,Citizens and Communities,The Conservation Volunteers,15/02/17,2016171080, 773.16 ,Support Grant,Supplies & Services
Leeds City Council,13/11/2017,Citizens and Communities,The Parish Of Middleton (Leeds),02/02/17,2016171081, 22.50 ,Locality Grant,Supplies & Services
Leeds City Council,13/11/2017,Citizens and Communities,Upbeat Social Enterprises Cic,06/02/17,2016171082," 4,000.00 ",Neighbourhood Grant,Supplies & Services
Leeds City Council,13/11/2017,Environment & Housing,Barnardos,03/02/17,2016171083," 3,562.50 ",Homelessness Grant,Supplies & Services
Leeds City Council,13/11/2017,Environment & Housing,Care & Repair Leeds,01/02/17,2016171084," 5,000.00 ",Support Grant,Supplies & Services
Leeds City Council,13/11/2017,Strategic Accounts,168(City Of Leeds)Sqd,06/02/17,2016171085, 500.00 ,Locality Grant,Supplies & Services
Leeds City Council,13/11/2017,Strategic Accounts,1st Gildersome Guides,20/02/17,2016171086, 89.96 ,Locality Grant,Supplies & Services
Leeds City Council,13/11/2017,Strategic Accounts,Allerton Bywater Community Partnership,20/02/17,2016171087, 600.00 ,Locality Grant,Supplies & Services
Leeds City Council,13/11/2017,Strategic Accounts,Arts To Share (Leeds),13/02/17,2016171088, 150.00 ,Locality Grant,Supplies & Services
Leeds City Council,13/11/2017,Strategic Accounts,Angel Of Youths,23/02/17,2016171089, 900.00 ,Locality Grant,Supplies & Services
Leeds City Council,13/11/2017,Strategic Accounts,Christ Church Halton,06/02/17,2016171090, 500.00 ,Locality Grant,Supplies & Services
Leeds City Council,13/11/2017,Strategic Accounts,East Leeds Girls Rugby Club,27/02/17,2016171091, 500.00 ,Locality Grant,Supplies & Services
Leeds City Council,13/11/2017,Strategic Accounts,Friends Of Wigton Moor Woods,20/02/17,2016171092, 100.00 ,Locality Grant,Supplies & Services
Leeds City Council,13/11/2017,Strategic Accounts,Garforth Indoor Bowls,20/02/17,2016171093, 120.00 ,Locality Grant,Supplies & Services
Leeds City Council,13/11/2017,Strategic Accounts,Guiseley Methodist Church,13/02/17,2016171094, 37.00 ,Locality Grant,Supplies & Services
Leeds City Council,13/11/2017,Strategic Accounts,Garforth Neighbourhood Planning Forum,13/02/17,2016171095, 200.00 ,Locality Grant,Supplies & Services
Leeds City Council,13/11/2017,Strategic Accounts,Globe Not For Profit Community Interest,13/02/17,2016171096, 300.00 ,Locality Grant,Supplies & Services
Leeds City Council,13/11/2017,Strategic Accounts,Heads Together Productions Ltd,20/02/17,2016171097," 2,100.00 ",Arts grant,Supplies & Services
Leeds City Council,13/11/2017,Strategic Accounts,Horsforth Live At Home,13/02/17,2016171098, 468.95 ,Locality Grant,Supplies & Services
Leeds City Council,13/11/2017,Strategic Accounts,Inside Outside Childcare,06/02/17,2016171099, 200.00 ,Locality Grant,Supplies & Services
Leeds City Council,13/11/2017,Strategic Accounts,Jamaica Society Leeds,20/02/17,2016171100, 100.00 ,Locality Grant,Supplies & Services
Leeds City Council,13/11/2017,Strategic Accounts,Kaanz Badminton Club,27/02/17,2016171101, 50.00 ,Locality Grant,Supplies & Services
Leeds City Council,13/11/2017,Strategic Accounts,Little London Arts,06/02/17,2016171102, 100.00 ,Housing Grant,Supplies & Services
Leeds City Council,13/11/2017,Strategic Accounts,Leeds Judean Table Tennis Club,20/02/17,2016171103, 500.00 ,Locality Grant,Supplies & Services
Leeds City Council,13/11/2017,Strategic Accounts,Leeds University Union,06/02/17,2016171104, 200.00 ,Neighbourhood Grant,Supplies & Services
Leeds City Council,13/11/2017,Strategic Accounts,Micklefield Tenants & Residents Assoc,06/02/17,2016171105, 129.99 ,Locality Grant,Supplies & Services
Leeds City Council,13/11/2017,Strategic Accounts,Moorside Community Centre,20/02/17,2016171106, 300.00 ,Locality Grant,Supplies & Services
Leeds City Council,13/11/2017,Strategic Accounts,Otley Walking Festival,13/02/17,2016171107, 250.00 ,Locality Grant,Supplies & Services
Leeds City Council,13/11/2017,Strategic Accounts,Pembroke Community Group,13/02/17,2016171108, 100.00 ,Housing Grant,Supplies & Services
Leeds City Council,13/11/2017,Strategic Accounts,Queenswood Tenants & Residents Assoc,13/02/17,2016171109, 100.00 ,Housing Grant,Supplies & Services
Leeds City Council,13/11/2017,Strategic Accounts,Rodley Village Community Group,27/02/17,2016171110, 200.00 ,Locality Grant,Supplies & Services
Leeds City Council,13/11/2017,Strategic Accounts,Scholes Methodist Church,20/02/17,2016171111," 1,500.00 ",Locality Grant,Supplies & Services
Leeds City Council,13/11/2017,Strategic Accounts,Shadwell Horticultural Society,06/02/17,2016171112, 500.00 ,Locality Grant,Supplies & Services
Leeds City Council,13/11/2017,Strategic Accounts,The Oulton Society,27/02/17,2016171113, 275.25 ,Locality Grant,Supplies & Services
Leeds City Council,13/11/2017,Strategic Accounts,Yeadon & Rawdon Neighbourhood Watch,27/02/17,2016171114, 129.00 ,Locality Grant,Supplies & Services
Leeds City Council,13/11/2017,Strategic Accounts,Zest Health For Life,20/02/17,2016171115, 250.00 ,Neighbourhood Grant,Supplies & Services
Leeds City Council,13/11/2017,Strategic Landlord,Armley Helping Hands,14/02/17,2016171116," 1,665.00 ",Housing Grant,Supplies & Services
Leeds City Council,13/11/2017,Strategic Landlord,John O'Gaunts Tenants & Residents,03/02/17,2016171117, 400.00 ,Housing Grant,Supplies & Services
Leeds City Council,13/11/2017,Strategic Landlord,Leeds Foodbank South & East,03/02/17,2016171118," 1,304.00 ",Housing Grant,Supplies & Services
Leeds City Council,13/11/2017,Strategic Landlord,Leeds United Foundation,02/02/17,2016171119," 5,000.00 ",Housing Grant,Supplies & Services
Leeds City Council,13/11/2017,Strategic Landlord,Temple Newsam Learning Partnership Trust,24/02/17,2016171120," 5,000.00 ",Housing Grant,Supplies & Services
Leeds City Council,13/11/2017,Citizens and Communities,Aireborough Neighbourhood Development,03/03/17,2016171121," 1,000.00 ",Locality Grant,Supplies & Services
Leeds City Council,13/11/2017,Citizens and Communities,Barca - Leeds,24/03/17,2016171122," 1,243.31 ",Housing Grant,Supplies & Services
Leeds City Council,13/11/2017,Citizens and Communities,Barca - Leeds,30/03/17,2016171123," 1,748.46 ",Housing Grant,Supplies & Services
Leeds City Council,13/11/2017,Citizens and Communities,Behind Closed Doors (Bcd),30/03/17,2016171124, 400.00 ,Locality Grant,Supplies & Services
Leeds City Council,13/11/2017,Citizens and Communities,Behno Group (Sisters),03/03/17,2016171125," 3,365.00 ",Neighbourhood Grant,Supplies & Services
Leeds City Council,13/11/2017,Citizens and Communities,Better Leeds Communities,06/03/17,2016171126," 2,000.00 ",Housing Grant,Supplies & Services
Leeds City Council,13/11/2017,Citizens and Communities,Caring Together In Woodhouse And Little,07/03/17,2016171127," 2,129.04 ",Locality Grant,Supplies & Services
Leeds City Council,13/11/2017,Citizens and Communities,Catch,10/03/17,2016171128, 945.00 ,Neighbourhood Grant,Supplies & Services
Leeds City Council,13/11/2017,Citizens and Communities,City Of Leeds Ymca,22/03/17,2016171129," 1,350.00 ",Locality Grant,Supplies & Services
Leeds City Council,13/11/2017,Citizens and Communities,Care & Repair Leeds,17/03/17,2016171130, 60.00 ,Support Grant,Supplies & Services
Leeds City Council,13/11/2017,Citizens and Communities,Care & Repair Leeds,17/03/17,2016171131, 60.00 ,Support Grant,Supplies & Services
Leeds City Council,13/11/2017,Citizens and Communities,Care & Repair Leeds,20/03/17,2016171132,-120.00 ,Support Grant,Supplies & Services
Leeds City Council,13/11/2017,Citizens and Communities,Care & Repair Leeds,21/03/17,2016171133, 57.00 ,Support Grant,Supplies & Services
Leeds City Council,13/11/2017,Citizens and Communities,Care & Repair Leeds,24/03/17,2016171134, 240.00 ,Support Grant,Supplies & Services
Leeds City Council,13/11/2017,Citizens and Communities,Care & Repair Leeds,17/03/17,2016171135, 70.00 ,Support Grant,Supplies & Services
Leeds City Council,13/11/2017,Citizens and Communities,Christ Church Armley Community,28/03/17,2016171136, 249.00 ,Locality Grant,Supplies & Services
Leeds City Council,13/11/2017,Citizens and Communities,Dazl,31/03/17,2016171137," 3,800.00 ",Arts grant,Supplies & Services
Leeds City Council,13/11/2017,Citizens and Communities,Deen Enterprises Community Forum,03/03/17,2016171138," 1,893.99 ",Neighbourhood Grant,Supplies & Services
Leeds City Council,13/11/2017,Citizens and Communities,Getaway Girls,10/03/17,2016171139," 1,248.83 ",Housing Grant,Supplies & Services
Leeds City Council,13/11/2017,Citizens and Communities,Garforth Historical Society,03/03/17,2016171140, 300.00 ,Neighbourhood Grant,Supplies & Services
Leeds City Council,13/11/2017,Citizens and Communities,Hope,01/03/17,2016171141, 730.50 ,Neighbourhood Grant,Supplies & Services
Leeds City Council,13/11/2017,Citizens and Communities,Hunslet Festival,07/03/17,2016171142," 1,924.00 ",Locality Grant,Supplies & Services
Leeds City Council,13/11/2017,Citizens and Communities,Headingley Enterprise And Arts Centre,24/03/17,2016171143, 67.50 ,Neighbourhood Grant,Supplies & Services
Leeds City Council,13/11/2017,Citizens and Communities,Ls14 Trust,17/03/17,2016171144, 146.73 ,Housing Grant,Supplies & Services
Leeds City Council,13/11/2017,Citizens and Communities,Ls14 Trust,02/03/17,2016171145," 4,800.00 ",Housing Grant,Supplies & Services
Leeds City Council,13/11/2017,Citizens and Communities,Moor Allerton Elderly Care,14/03/17,2016171146, 785.00 ,Housing Grant,Supplies & Services
Leeds City Council,13/11/2017,Citizens and Communities,Moortown Social Club Over 60s Section,10/03/17,2016171147, 600.00 ,Neighbourhood Grant,Supplies & Services
Leeds City Council,13/11/2017,Citizens and Communities,Next Generation Arts,17/03/17,2016171148," 3,358.00 ",Neighbourhood Grant,Supplies & Services
Leeds City Council,13/11/2017,Citizens and Communities,Older Peoples Action In The Locality,01/03/17,2016171149, 498.00 ,Housing Grant,Supplies & Services
Leeds City Council,13/11/2017,Citizens and Communities,Older Peoples Action In The Locality,24/03/17,2016171150, 50.00 ,Housing Grant,Supplies & Services
Leeds City Council,13/11/2017,Citizens and Communities,Otley Action For Older People,02/03/17,2016171151, 500.00 ,Locality Grant,Supplies & Services
Leeds City Council,13/11/2017,Citizens and Communities,Pool Sports And Social Club,24/03/17,2016171152," 1,700.00 ",Locality Grant,Supplies & Services
Leeds City Council,13/11/2017,Citizens and Communities,Richmond Hill Elderly Action,15/03/17,2016171153," 1,000.00 ",Locality Grant,Supplies & Services
Leeds City Council,13/11/2017,Citizens and Communities,Rjc Productions Ltd,09/03/17,2016171154," 1,556.40 ",Arts grant,Supplies & Services
Leeds City Council,13/11/2017,Citizens and Communities,Rothwell 600,01/03/17,2016171155," 1,042.00 ",Neighbourhood Grant,Supplies & Services
Leeds City Council,13/11/2017,Citizens and Communities,Radharaman Society,08/03/17,2016171156, 800.00 ,Neighbourhood Grant,Supplies & Services
Leeds City Council,13/11/2017,Citizens and Communities,Red Road Allotments,10/03/17,2016171157," 1,000.00 ",Locality Grant,Supplies & Services
Leeds City Council,13/11/2017,Citizens and Communities,Shadwell Independent Library,10/03/17,2016171158," 2,657.00 ",Locality Grant,Supplies & Services
Leeds City Council,13/11/2017,Citizens and Communities,St Agnes Church Hall,17/03/17,2016171159, 985.00 ,Locality Grant,Supplies & Services
Leeds City Council,13/11/2017,Citizens and Communities,St Marys The Blessed Virgin Hawksworth,24/03/17,2016171160," 1,250.00 ",Neighbourhood Grant,Supplies & Services
Leeds City Council,13/11/2017,Citizens and Communities,St Marys The Blessed Virgin Hawksworth,31/03/17,2016171161," 1,250.00 ",Neighbourhood Grant,Supplies & Services
Leeds City Council,13/11/2017,Citizens and Communities,Tingley Methodist Church,20/03/17,2016171162," 1,000.00 ",Locality Grant,Supplies & Services
Leeds City Council,13/11/2017,Citizens and Communities,Touchstone - Leeds,01/03/17,2016171163, 500.40 ,Adult Social Care Grant,Supplies & Services
Leeds City Council,13/11/2017,Citizens and Communities,West Leeds Juniors Fc,01/03/17,2016171164, 500.00 ,Neighbourhood Grant,Supplies & Services
Leeds City Council,13/11/2017,Citizens and Communities,West Leeds Juniors Fc,01/03/17,2016171165, 500.00 ,Neighbourhood Grant,Supplies & Services
Leeds City Council,13/11/2017,Citizens and Communities,Young Minds,10/03/17,2016171166," 1,680.00 ",Neighbourhood Grant,Supplies & Services
Leeds City Council,13/11/2017,City Development,Artlink West Yorkshire,29/03/17,2016171167," 1,000.00 ",Leeds Inspired Grant,Supplies & Services
Leeds City Council,13/11/2017,City Development,Beeston Festival,17/03/17,2016171168," 3,080.00 ",Leeds Inspired Grant,Supplies & Services
Leeds City Council,13/11/2017,City Development,Rjc Productions Ltd,15/03/17,2016171169," 1,000.00 ",Leeds Inspired Grant,Supplies & Services
Leeds City Council,13/11/2017,City Development,Leeds West Indian Carnival,31/03/17,2016171170," 9,000.00 ",Arts grant,Supplies & Services
Leeds City Council,13/11/2017,City Development,Lifeforce Productions,14/03/17,2016171171," 4,205.00 ",Leeds Inspired Grant,Supplies & Services
Leeds City Council,13/11/2017,City Development,Northern Ballet Theatre Limited,13/03/17,2016171172," 13,575.00 ",Leeds Inspired Grant,Supplies & Services
Leeds City Council,13/11/2017,City Development,Pyramid Of Arts,22/03/17,2016171173, 950.00 ,Leeds Inspired Grant,Supplies & Services
Leeds City Council,13/11/2017,City Development,Red Ladder Theatre Co Ltd,14/03/17,2016171174," 6,000.00 ",Leeds Inspired Grant,Supplies & Services
Leeds City Council,13/11/2017,City Development,Seagulls Re-Use Ltd,14/03/17,2016171175," 12,798.00 ",Leeds Inspired Grant,Supplies & Services
Leeds City Council,13/11/2017,City Development,The Conservation Volunteers,14/03/17,2016171176," 9,850.00 ",Leeds Inspired Grant,Supplies & Services
Leeds City Council,13/11/2017,City Development,The Works Skatepark Charity,15/03/17,2016171177," 7,125.00 ",Leeds Inspired Grant,Supplies & Services
Leeds City Council,13/11/2017,City Development,Transform,23/03/17,2016171178," 25,000.00 ",ECOC Grant Payment,Supplies & Services
Leeds City Council,13/11/2017,Environment & Housing,Care & Repair Leeds,30/03/17,2016171179," 5,000.00 ",Support Grant,Supplies & Services
Leeds City Council,13/11/2017,Environment & Housing,Leeds & Moortown Furniture Store,16/03/17,2016171180," 18,000.00 ",Homelessness Grant,Supplies & Services
Leeds City Council,13/11/2017,Environment & Housing,Leeds & Moortown Furniture Store,16/03/17,2016171181," 1,995.00 ",Homelessness Grant,Supplies & Services
Leeds City Council,13/11/2017,Environment & Housing,St Judes Furniture Store,16/03/17,2016171182," 18,000.00 ",Homelessness Grant,Supplies & Services
Leeds City Council,13/11/2017,Public Health,Ebor Gardens Advice Centre,03/03/17,2016171183, 850.00 ,Neighbourhood Grant,Supplies & Services
Leeds City Council,13/11/2017,Strategic Accounts,Arts To Share (Leeds),06/03/17,2016171184, 50.00 ,Locality Grant,Supplies & Services
Leeds City Council,13/11/2017,Strategic Accounts,Artforms,27/03/17,2016171185, 100.00 ,Locality Grant,Supplies & Services
Leeds City Council,13/11/2017,Strategic Accounts,Barncroft Towers Residents Group,15/03/17,2016171186, 100.00 ,Locality Grant,Supplies & Services
Leeds City Council,13/11/2017,Strategic Accounts,Cranmer Call Tenants And Residents,13/03/17,2016171187, 250.00 ,Locality Grant,Supplies & Services
Leeds City Council,13/11/2017,Strategic Accounts,Cranmer Call Tenants And Residents,27/03/17,2016171188, 100.00 ,Locality Grant,Supplies & Services
Leeds City Council,13/11/2017,Strategic Accounts,Community Highlights,20/03/17,2016171189, 50.00 ,Locality Grant,Supplies & Services
Leeds City Council,13/11/2017,Strategic Accounts,Community Highlights,27/03/17,2016171190, 50.00 ,Locality Grant,Supplies & Services
Leeds City Council,13/11/2017,Strategic Accounts,Cross Green Residents Association,27/03/17,2016171191, 100.00 ,Locality Grant,Supplies & Services
Leeds City Council,13/11/2017,Strategic Accounts,Crossgates & District Angling Club,06/03/17,2016171192, 200.00 ,Locality Grant,Supplies & Services
Leeds City Council,13/11/2017,Strategic Accounts,Denbigh Social Club,27/03/17,2016171193, 130.00 ,Housing Grant,Supplies & Services
Leeds City Council,13/11/2017,Strategic Accounts,Denshaws Newlands And Rydals Residents,27/03/17,2016171194, 290.00 ,Locality Grant,Supplies & Services
Leeds City Council,13/11/2017,Strategic Accounts,Drighlington Parish Council,13/03/17,2016171195, 500.00 ,Locality Grant,Supplies & Services
Leeds City Council,13/11/2017,Strategic Accounts,For Disability Mobility,20/03/17,2016171196, 250.00 ,Neighbourhood Grant,Supplies & Services
Leeds City Council,13/11/2017,Strategic Accounts,Filipino Leeds Association,20/03/17,2016171197, 200.00 ,Locality Grant,Supplies & Services
Leeds City Council,13/11/2017,Strategic Accounts,Friends Of Micklefield,27/03/17,2016171198, 250.00 ,Locality Grant,Supplies & Services
Leeds City Council,13/11/2017,Strategic Accounts,Friends Of Dartmouth Park,27/03/17,2016171199, 200.00 ,Locality Grant,Supplies & Services
Leeds City Council,13/11/2017,Strategic Accounts,Headingley Development Trust Ltd,13/03/17,2016171200, 200.00 ,Neighbourhood Grant,Supplies & Services
Leeds City Council,13/11/2017,Strategic Accounts,Halton In Bloom,20/03/17,2016171201, 500.00 ,Locality Grant,Supplies & Services
Leeds City Council,13/11/2017,Strategic Accounts,Hyde Park Rangers Fc,27/03/17,2016171202, 350.00 ,Locality Grant,Supplies & Services
Leeds City Council,13/11/2017,Strategic Accounts,Islamic Centre Leeds,06/03/17,2016171203, 180.00 ,Locality Grant,Supplies & Services
Leeds City Council,13/11/2017,Strategic Accounts,June Project,27/03/17,2016171204, 400.00 ,Locality Grant,Supplies & Services
Leeds City Council,13/11/2017,Strategic Accounts,Kaanz Badminton Club,06/03/17,2016171205, 100.00 ,Locality Grant,Supplies & Services
Leeds City Council,13/11/2017,Strategic Accounts,Kidz In Kampz,13/03/17,2016171206, 200.00 ,Locality Grant,Supplies & Services
Leeds City Council,13/11/2017,Strategic Accounts,Kirkstall Crusaders Fc,06/03/17,2016171207, 300.00 ,Locality Grant,Supplies & Services
Leeds City Council,13/11/2017,Strategic Accounts,Leeds North And West Foodbank,06/03/17,2016171208," 2,200.00 ",Locality Grant,Supplies & Services
Leeds City Council,13/11/2017,Strategic Accounts,Leeds North And West Foodbank,27/03/17,2016171209, 526.31 ,Locality Grant,Supplies & Services
Leeds City Council,13/11/2017,Strategic Accounts,New Wortley Cricket Club,06/03/17,2016171210, 250.00 ,Locality Grant,Supplies & Services
Leeds City Council,13/11/2017,Strategic Accounts,Older Peoples Action In The Locality,06/03/17,2016171211, 100.00 ,Housing Grant,Supplies & Services
Leeds City Council,13/11/2017,Strategic Accounts,Pcd Family Support Group,21/03/17,2016171212, 200.00 ,Locality Grant,Supplies & Services
Leeds City Council,13/11/2017,Strategic Accounts,Richmond Hill Elderly Action,20/03/17,2016171213, 300.00 ,Locality Grant,Supplies & Services
Leeds City Council,13/11/2017,Strategic Accounts,Rosebank Millenium Green Trust,06/03/17,2016171214," 1,000.00 ",Locality Grant,Supplies & Services
Leeds City Council,13/11/2017,Strategic Accounts,Step,06/03/17,2016171215, 250.00 ,Neighbourhood Grant,Supplies & Services
Leeds City Council,13/11/2017,Strategic Accounts,Spin Star Twirlers,13/03/17,2016171216, 250.00 ,Locality Grant,Supplies & Services
Leeds City Council,13/11/2017,Strategic Accounts,St Theresas Retirement Club,13/03/17,2016171217, 200.00 ,Locality Grant,Supplies & Services
Leeds City Council,13/11/2017,Strategic Accounts,Swillington St Marys Scout Group,06/03/17,2016171218, 200.00 ,Locality Grant,Supplies & Services
Leeds City Council,13/11/2017,Strategic Landlord,Cranmer Call Tenants And Residents,20/03/17,2016171219, 350.00 ,Locality Grant,Supplies & Services
Leeds City Council,13/11/2017,Strategic Landlord,Cranmer Call Tenants And Residents,20/03/17,2016171220, 600.00 ,Locality Grant,Supplies & Services
Leeds City Council,13/11/2017,Strategic Landlord,Dawsons Corner Tenants Association,27/03/17,2016171221, 100.00 ,Support Grant,Supplies & Services
Leeds City Council,13/11/2017,Strategic Landlord,Denbigh Social Club,10/03/17,2016171222, 100.00 ,Housing Grant,Supplies & Services
Leeds City Council,13/11/2017,Strategic Landlord,Little London Tara,17/03/17,2016171223, 450.00 ,Support Grant,Supplies & Services
Leeds City Council,13/11/2017,Strategic Landlord,Marsden Court Residents Association,27/03/17,2016171224, 100.00 ,Housing Grant,Supplies & Services
Leeds City Council,13/11/2017,Strategic Landlord,Morley Elderly Action,02/03/17,2016171225," 4,523.94 ",Neighbourhood Grant,Supplies & Services
Leeds City Council,13/11/2017,Strategic Landlord,Moorside Tenants And Residents,30/03/17,2016171226, 180.95 ,Housing Grant,Supplies & Services
Leeds City Council,13/11/2017,Strategic Landlord,New Wortley Residents Association,08/03/17,2016171227, 450.00 ,Housing Grant,Supplies & Services
Leeds City Council,13/11/2017,Strategic Landlord,Saxton Gardens Residents Association,28/03/17,2016171228, 600.00 ,Housing Grant,Supplies & Services
Leeds City Council,13/11/2017,Strategic Landlord,Stoney Rock Court Sheltered Housing,28/03/17,2016171229, 500.00 ,Housing Grant,Supplies & Services
Leeds City Council,13/11/2017,Strategic Landlord,Thorpe Community Centre,22/03/17,2016171230, 300.00 ,Housing Grant,Supplies & Services
Leeds City Council,13/11/2017,Strategic Landlord,West Leeds Arlfc,06/03/17,2016171231," 5,000.00 ",Locality Grant,Supplies & Services
